"FISCAL_PERIOD","MONTH","FISCAL_YEAR","CALENDAR_YEAR","AGENCY","Expenditure_Description","DESCRIPTION","EXCLUDE_IND","VENDOR","TOTAL_ANNUAL_EXPENDITURE"
1,"July",2022,2021,"Agriculture","Grants and Subsidies","Agency Vendor Report",0,"Fred Hart Ragan",2981
1,"July",2022,2021,"Agriculture","Grants and Subsidies","Agency Vendor Report",0,"Gregory Paul Spears",6000
1,"July",2022,2021,"Agriculture","Grants and Subsidies","Agency Vendor Report",0,"James R Stites",6000
1,"July",2022,2021,"Agriculture","Grants and Subsidies","Agency Vendor Report",0,"ALAN RAY DUNEVANT",6000
1,"July",2022,2021,"Agriculture","Grants and Subsidies","Agency Vendor Report",0,"Chester D Ford",6000
1,"July",2022,2021,"Agriculture","Grants and Subsidies","Agency Vendor Report",0,"Leland Carter House",1920
1,"July",2022,2021,"Agriculture","Grants and Subsidies","Agency Vendor Report",0,"David Taylor McCall",10000
1,"July",2022,2021,"Agriculture","Grants and Subsidies","Agency Vendor Report",0,"Tracy Pendergrass",1823
1,"July",2022,2021,"Agriculture","Grants and Subsidies","Agency Vendor Report",0,"Daniel H Rich",6000
1,"July",2022,2021,"Agriculture","Grants and Subsidies","Agency Vendor Report",0,"Robert Keith Prater",1090
1,"July",2022,2021,"Agriculture","Grants and Subsidies","Agency Vendor Report",0,"Jessie Rex Wilson",1762
1,"July",2022,2021,"Agriculture","Grants and Subsidies","Agency Vendor Report",0,"John Conroy",6000
1,"July",2022,2021,"Agriculture","Grants and Subsidies","Agency Vendor Report",0,"Sara A Killion",6000
1,"July",2022,2021,"Agriculture","Grants and Subsidies","Agency Vendor Report",0,"Stephen D Freeman",10000
1,"July",2022,2021,"Agriculture","Grants and Subsidies","Agency Vendor Report",0,"TANNER R PRITCHETT",3000
1,"July",2022,2021,"Agriculture","Grants and Subsidies","Agency Vendor Report",0,"Shane C Qualls",3000
1,"July",2022,2021,"Agriculture","Grants and Subsidies","Agency Vendor Report",0,"Thomas Dan Bass",500
1,"July",2022,2021,"Agriculture","Grants and Subsidies","Agency Vendor Report",0,"Randall Jay Cooper",10000
1,"July",2022,2021,"Agriculture","Grants and Subsidies","Agency Vendor Report",0,"Jacob Fuqua",7504
1,"July",2022,2021,"Agriculture","Grants and Subsidies","Agency Vendor Report",0,"Fred Leimer",6000
1,"July",2022,2021,"Agriculture","Grants and Subsidies","Agency Vendor Report",0,"Daniel Justice Marchant",6000
1,"July",2022,2021,"Agriculture","Grants and Subsidies","Agency Vendor Report",0,"Andrew P Griffith",2573
1,"July",2022,2021,"Agriculture","Grants and Subsidies","Agency Vendor Report",0,"HEATHER MCGLOTHLIN",4576
1,"July",2022,2021,"Agriculture","Grants and Subsidies","Agency Vendor Report",0,"Jackie Dale Shaver",1500
1,"July",2022,2021,"Agriculture","Grants and Subsidies","Agency Vendor Report",0,"Rhyne D Douglas",6000
1,"July",2022,2021,"Agriculture","Grants and Subsidies","Agency Vendor Report",0,"Mark Maners",6000
1,"July",2022,2021,"Agriculture","Grants and Subsidies","Agency Vendor Report",0,"TURKEY CREEK CATTLE COMPANY LLC",1500
1,"July",2022,2021,"Agriculture","Grants and Subsidies","Agency Vendor Report",0,"William F Price",6000
1,"July",2022,2021,"Agriculture","Grants and Subsidies","Agency Vendor Report",0,"Smith County Commission LLC",3684
1,"July",2022,2021,"Agriculture","Grants and Subsidies","Agency Vendor Report",0,"AGLAUNCH INITIATIVE",87421.13
1,"July",2022,2021,"Agriculture","Grants and Subsidies","Agency Vendor Report",0,"Shop Springs Creamery LLC",12000
1,"July",2022,2021,"Agriculture","Grants and Subsidies","Agency Vendor Report",0,"JON PATRICK QUINN",3000
1,"July",2022,2021,"Agriculture","Grants and Subsidies","Agency Vendor Report",0,"Lonnie Lockner",540
1,"July",2022,2021,"Agriculture","Grants and Subsidies","Agency Vendor Report",0,"Daniel Gene Waggoner",4195
1,"July",2022,2021,"Agriculture","Grants and Subsidies","Agency Vendor Report",0,"Belinda L Twohig",6000
1,"July",2022,2021,"Agriculture","Grants and Subsidies","Agency Vendor Report",0,"Raymond Chad Hall",5895
1,"July",2022,2021,"Agriculture","Grants and Subsidies","Agency Vendor Report",0,"Jonathan Wayne Johnson",6000
1,"July",2022,2021,"Agriculture","Grants and Subsidies","Agency Vendor Report",0,"Joshua C Creecy",6000
1,"July",2022,2021,"Agriculture","Grants and Subsidies","Agency Vendor Report",0,"Jason A Crouch",1800
1,"July",2022,2021,"Agriculture","Grants and Subsidies","Agency Vendor Report",0,"Clark Laramie Adcock",1800
1,"July",2022,2021,"Agriculture","Grants and Subsidies","Agency Vendor Report",0,"Denise B Lineberry",6000
1,"July",2022,2021,"Agriculture","Grants and Subsidies","Agency Vendor Report",0,"Arlene Loudermilk",3240
1,"July",2022,2021,"Agriculture","Grants and Subsidies","Agency Vendor Report",0,"Luke C McPeak",6000
1,"July",2022,2021,"Agriculture","Grants and Subsidies","Agency Vendor Report",0,"Steven P Wright",4320
1,"July",2022,2021,"Agriculture","Grants and Subsidies","Agency Vendor Report",0,"Virginia S Mooneyhan",1500
1,"July",2022,2021,"Agriculture","Grants and Subsidies","Agency Vendor Report",0,"William Henry",6000
1,"July",2022,2021,"Agriculture","Grants and Subsidies","Agency Vendor Report",0,"Dean Hutchison",3000
1,"July",2022,2021,"Agriculture","Grants and Subsidies","Agency Vendor Report",0,"Richard Jenkins",6000
1,"July",2022,2021,"Agriculture","Grants and Subsidies","Agency Vendor Report",0,"Scott M Farmer",3750
1,"July",2022,2021,"Agriculture","Grants and Subsidies","Agency Vendor Report",0,"Edward Morgan",837
1,"July",2022,2021,"Agriculture","Grants and Subsidies","Agency Vendor Report",0,"Jason Kenneth Kincaid",1120
1,"July",2022,2021,"Environment and Conservation","Grants and Subsidies","Agency Vendor Report",0,"Moring Environmental Svs & Wooten Oil",735
1,"July",2022,2021,"Safety","Maint and Repairs","Agency Vendor Report",0,"HONEYCUTTS CLEANING SERVICE",3400
1,"July",2022,2021,"Safety","Travel","Agency Vendor Report",0,"FairField Inn & Suites",10805.6
1,"July",2022,2021,"Safety","Data Processing","Agency Vendor Report",0,"ACF Technologies Inc",389588.26
1,"July",2022,2021,"Safety","Prof Services Third Party","Agency Vendor Report",0,"Van Wagner Sports & Entertainment LLC",1818.19
1,"July",2022,2021,"Safety","Prof Services Third Party","Agency Vendor Report",0,"Deana Tompkins",1169.34
1,"July",2022,2021,"Safety","Data Processing","Agency Vendor Report",0,"BLACK BOX NETWORK SERVICES",5328.67
1,"July",2022,2021,"Children's Services","Grants and Subsidies","CSD Payments",0,"Cacact Inc",2573.52
1,"July",2022,2021,"Children's Services","Grants and Subsidies","CSD Payments",0,"Childrens Advocacy Ctr Of Hamilton Cnty",19852.9
1,"July",2022,2021,"Children's Services","Prof Services Third Party","CSD Payments",0,"Lu Anne R Dudley",2102.5
1,"July",2022,2021,"Children's Services","Prof Services Third Party","CSD Payments",0,"Thomas H Miller",2284.5
1,"July",2022,2021,"Children's Services","Grants and Subsidies","CSD Payments",0,"Thomas H Miller",50
1,"July",2022,2021,"Children's Services","Prof Services Third Party","CSD Payments",0,"OUT OF BOUNDS",5566
1,"July",2022,2021,"Children's Services","Prof Services Third Party","CSD Payments",0,"Law Office of Daniel Hellman",1500
1,"July",2022,2021,"Human Services","Prof Services Third Party","Agency Vendor Report",0,"Canon Financial Services Inc",5882.14
1,"July",2022,2021,"Human Services","Grants and Subsidies","Agency Vendor Report",0,"Agape Child And Family Services Inc",337986.19
1,"July",2022,2021,"Human Services","Grants and Subsidies","Agency Vendor Report",0,"Boys & Girls Clubs of Dumplin Valley Inc",11763.83
1,"July",2022,2021,"Human Services","Grants and Subsidies","Agency Vendor Report",0,"FOR THE KINGDOM INC",39606
1,"July",2022,2021,"Human Services","Prof Services Third Party","Agency Vendor Report",0,"American Esoteric Laboratories",82.9
1,"July",2022,2021,"Human Services","Supplies and Materials","Agency Vendor Report",0,"OFFICE DEPOT LLC",862.15
1,"July",2022,2021,"Human Services","Grants and Subsidies","Agency Vendor Report",0,"La Petite Academy",55359.53
1,"July",2022,2021,"Human Services","Grants and Subsidies","Agency Vendor Report",0,"Kingdom Kids Learning Center",2973.19
1,"July",2022,2021,"Human Services","Grants and Subsidies","Agency Vendor Report",0,"First Step Christian Daycare",5871.85
1,"July",2022,2021,"Human Services","Grants and Subsidies","Agency Vendor Report",0,"Ut Medical Group Inc",20
1,"July",2022,2021,"Human Services","Grants and Subsidies","Agency Vendor Report",0,"Children & Family Services Inc",3100
1,"July",2022,2021,"Human Services","Prof Services Third Party","Agency Vendor Report",0,"Bedford Co Clerk and Master",3142
1,"July",2022,2021,"Human Services","Grants and Subsidies","Agency Vendor Report",0,"Ashley Dewitt DO PC",20
1,"July",2022,2021,"Human Services","Grants and Subsidies","Agency Vendor Report",0,"Kids Putnam Inc",1517.52
1,"July",2022,2021,"Human Services","Rentals and Insurance","Agency Vendor Report",0,"Canon Solutions America Inc",42469.91
1,"July",2022,2021,"Human Services","Data Processing","Agency Vendor Report",0,"Canon Solutions America Inc",297.59
1,"July",2022,2021,"Human Services","Grants and Subsidies","Agency Vendor Report",0,"Child Creations",3318.69
1,"July",2022,2021,"Revenue","Grants and Subsidies","Agency Vendor Report",0,"Trustee Wayne County",287197.95
1,"July",2022,2021,"Revenue","State Shared Taxes","Agency Vendor Report",0,"Trustee Wayne County",339630.54
1,"July",2022,2021,"Revenue","Grants and Subsidies","Agency Vendor Report",0,"Weakley County Clerk",3460.7
1,"July",2022,2021,"Revenue","State Shared Taxes","Agency Vendor Report",0,"Weakley County Clerk",510.05
1,"July",2022,2021,"Revenue","Prof Services Third Party","Agency Vendor Report",0,"Weakley County Register Of Deeds",60
1,"July",2022,2021,"Revenue","Grants and Subsidies","Agency Vendor Report",0,"City Of Red Boiling Springs",14688.77
1,"July",2022,2021,"Revenue","State Shared Taxes","Agency Vendor Report",0,"City Of Red Boiling Springs",265.7
1,"July",2022,2021,"Revenue","Grants and Subsidies","Agency Vendor Report",0,"City Of Adamsville",30235.51
1,"July",2022,2021,"Revenue","State Shared Taxes","Agency Vendor Report",0,"City Of Adamsville",14319.57
1,"July",2022,2021,"Revenue","Grants and Subsidies","Agency Vendor Report",0,"City Of Sharon",13799.47
1,"July",2022,2021,"Revenue","State Shared Taxes","Agency Vendor Report",0,"City Of Sharon",45.32
1,"July",2022,2021,"Revenue","Grants and Subsidies","Agency Vendor Report",0,"Town Of White Pine",28623.93
1,"July",2022,2021,"Revenue","State Shared Taxes","Agency Vendor Report",0,"Town Of White Pine",344.2
1,"July",2022,2021,"Revenue","Grants and Subsidies","Agency Vendor Report",0,"Town Of Petersburg",8134.89
1,"July",2022,2021,"Revenue","State Shared Taxes","Agency Vendor Report",0,"Town Of Petersburg",13.45
1,"July",2022,2021,"Revenue","Grants and Subsidies","Agency Vendor Report",0,"City Of Red Bank",164718.88
1,"July",2022,2021,"Revenue","State Shared Taxes","Agency Vendor Report",0,"City Of Red Bank",1734.89
1,"July",2022,2021,"Revenue","Grants and Subsidies","Agency Vendor Report",0,"Town Of Hartsville",33000.12
1,"July",2022,2021,"Revenue","Grants and Subsidies","Agency Vendor Report",0,"City Of Celina",21060.17
1,"July",2022,2021,"Revenue","Grants and Subsidies","Agency Vendor Report",0,"City of Friendship",8952.64
1,"July",2022,2021,"Revenue","State Shared Taxes","Agency Vendor Report",0,"City of Friendship",20.3
1,"July",2022,2021,"Revenue","Grants and Subsidies","Agency Vendor Report",0,"Town Of Obion",14538.14
1,"July",2022,2021,"Revenue","State Shared Taxes","Agency Vendor Report",0,"Town Of Obion",79.96
1,"July",2022,2021,"Revenue","Grants and Subsidies","Agency Vendor Report",0,"City Of Germantown",1248173.26
1,"July",2022,2021,"Revenue","State Shared Taxes","Agency Vendor Report",0,"City Of Germantown",388018.4
1,"July",2022,2021,"Revenue","Grants and Subsidies","Agency Vendor Report",0,"City Of Whitwell",22473.96
1,"July",2022,2021,"Revenue","State Shared Taxes","Agency Vendor Report",0,"City Of Whitwell",314.61
1,"July",2022,2021,"Revenue","Prof Services Third Party","Agency Vendor Report",0,"Rutherford County Register of Deeds",324
1,"July",2022,2021,"Revenue","Grants and Subsidies","Agency Vendor Report",0,"Anderson County Clerk",11726.52
1,"July",2022,2021,"Revenue","State Shared Taxes","Agency Vendor Report",0,"Anderson County Clerk",7752.37
1,"July",2022,2021,"Revenue","Grants and Subsidies","Agency Vendor Report",0,"City Of Goodlettsville",226445.02
1,"July",2022,2021,"Revenue","State Shared Taxes","Agency Vendor Report",0,"City Of Goodlettsville",60945.57
1,"July",2022,2021,"Revenue","Grants and Subsidies","Agency Vendor Report",0,"Hawkins County Clerk",4584.1
1,"July",2022,2021,"Revenue","Grants and Subsidies","Agency Vendor Report",0,"Trustee Of Hawkins County",280575
1,"July",2022,2021,"Revenue","State Shared Taxes","Agency Vendor Report",0,"Trustee Of Hawkins County",1362843.83
1,"July",2022,2021,"Revenue","Grants and Subsidies","Agency Vendor Report",0,"Trustee Polk County",213681.92
1,"July",2022,2021,"Revenue","State Shared Taxes","Agency Vendor Report",0,"Trustee Polk County",294524.86
1,"July",2022,2021,"Revenue","Grants and Subsidies","Agency Vendor Report",0,"Town Of Dover",21198.43
1,"July",2022,2021,"Revenue","State Shared Taxes","Agency Vendor Report",0,"Town Of Dover",17500.57
1,"July",2022,2021,"Revenue","Grants and Subsidies","Agency Vendor Report",0,"Trustee Rutherford County",938150.07
1,"July",2022,2021,"Revenue","State Shared Taxes","Agency Vendor Report",0,"Trustee Rutherford County",17720403.91
1,"July",2022,2021,"Revenue","Grants and Subsidies","Agency Vendor Report",0,"City Of Jellico",32077.66
1,"July",2022,2021,"Revenue","State Shared Taxes","Agency Vendor Report",0,"City Of Jellico",455.64
1,"July",2022,2021,"Revenue","Grants and Subsidies","Agency Vendor Report",0,"City Of East Ridge",303302.1
1,"July",2022,2021,"Revenue","State Shared Taxes","Agency Vendor Report",0,"City Of East Ridge",3792.29
1,"July",2022,2021,"Revenue","Grants and Subsidies","Agency Vendor Report",0,"City Of Oak Ridge",550286.21
1,"July",2022,2021,"Revenue","State Shared Taxes","Agency Vendor Report",0,"City Of Oak Ridge",55141.01
1,"July",2022,2021,"Revenue","Grants and Subsidies","Agency Vendor Report",0,"Chester County Clerk",426.19
1,"July",2022,2021,"Revenue","State Shared Taxes","Agency Vendor Report",0,"Chester County Clerk",3417.72
1,"July",2022,2021,"Revenue","Grants and Subsidies","Agency Vendor Report",0,"City Of Charleston",9425.2
1,"July",2022,2021,"Revenue","State Shared Taxes","Agency Vendor Report",0,"City Of Charleston",23.19
1,"July",2022,2021,"Revenue","Grants and Subsidies","Agency Vendor Report",0,"Town Of Gates",8557.77
1,"July",2022,2021,"Revenue","Grants and Subsidies","Agency Vendor Report",0,"City Of Selmer",62342.53
1,"July",2022,2021,"Revenue","State Shared Taxes","Agency Vendor Report",0,"City Of Selmer",3615.69
1,"July",2022,2021,"Revenue","Grants and Subsidies","Agency Vendor Report",0,"City Of Fairview",117688.57
1,"July",2022,2021,"Revenue","State Shared Taxes","Agency Vendor Report",0,"City Of Fairview",3178.27
1,"July",2022,2021,"Revenue","Grants and Subsidies","Agency Vendor Report",0,"City Of Waynesboro",40851.22
1,"July",2022,2021,"Revenue","State Shared Taxes","Agency Vendor Report",0,"City Of Waynesboro",9784.91
1,"July",2022,2021,"Revenue","Grants and Subsidies","Agency Vendor Report",0,"City Of Gleason",21517.2
1,"July",2022,2021,"Revenue","Grants and Subsidies","Agency Vendor Report",0,"City Of Forest Hills",263743.74
1,"July",2022,2021,"Revenue","Grants and Subsidies","Agency Vendor Report",0,"Town Of Saulsbury",1523.41
1,"July",2022,2021,"Health","Grants and Subsidies","Agency Vendor Report",0,"Mountain Goat Trail Alliance Inc",107203.78
1,"July",2022,2021,"Health","Prof Services Third Party","Agency Vendor Report",0,"RealMed Corporation",5219.95
1,"July",2022,2021,"Health","Prof Services Third Party","Agency Vendor Report",0,"KAREN B KIRBY",7346.76
1,"July",2022,2021,"Health","Prof Services Third Party","Agency Vendor Report",0,"Derek Renfroe DMD",149.56
1,"July",2022,2021,"Health","Prof Services Third Party","Agency Vendor Report",0,"Christian Care Center of Memphis",100
1,"July",2022,2021,"Human Services","Prof Services Third Party","Agency Vendor Report",0,"General Sessions Court",446
1,"July",2022,2021,"Human Services","Prof Services Third Party","Agency Vendor Report",0,"Carter County Juvenile Clerk",1377
1,"July",2022,2021,"Human Services","Prof Services Third Party","Agency Vendor Report",0,"Carter County Circuit Court Clerk",108
1,"July",2022,2021,"Human Services","Prof Services Third Party","Agency Vendor Report",0,"Claiborne Co. Juvenile Court",165
1,"July",2022,2021,"Human Services","Prof Services Third Party","Agency Vendor Report",0,"Clay County Clerk And Master",197.3
1,"July",2022,2021,"Human Services","Prof Services Third Party","Agency Vendor Report",0,"DeKalb County Chancery Court",57
1,"July",2022,2021,"Human Services","Grants and Subsidies","Agency Vendor Report",0,"Hamilton County Sheriffs Office",15918.52
1,"July",2022,2021,"Human Services","Prof Services Third Party","Agency Vendor Report",0,"Chattanooga Hamilton Co Health Dept",360
1,"July",2022,2021,"Human Services","Prof Services Third Party","Agency Vendor Report",0,"Circuit Court Clerk",1582.5
1,"July",2022,2021,"Human Services","Grants and Subsidies","Agency Vendor Report",0,"Upper East TN Human Development Agency",166312.16
1,"July",2022,2021,"Human Services","Grants and Subsidies","Agency Vendor Report",0,"Happy Times Ccc",11043.45
1,"July",2022,2021,"Human Services","Grants and Subsidies","Agency Vendor Report",0,"First Star Learning Academy",4937.08
1,"July",2022,2021,"Human Services","Grants and Subsidies","Agency Vendor Report",0,"Kiddie Korner of Etowah",42803.72
1,"July",2022,2021,"Human Services","Grants and Subsidies","Agency Vendor Report",0,"Kiddie Kingdom Daycare",6552.32
1,"July",2022,2021,"Human Services","Grants and Subsidies","Agency Vendor Report",0,"Partnership For Families Children & Adul",15137.61
1,"July",2022,2021,"Human Services","Grants and Subsidies","Agency Vendor Report",0,"Sans Kiddie Kastle",870.66
1,"July",2022,2021,"Human Services","Grants and Subsidies","Agency Vendor Report",0,"Cadas Inc (Council For Alcohol And Drug",72678.34
1,"July",2022,2021,"Human Services","Grants and Subsidies","Agency Vendor Report",0,"Morristown-Hamblen Child Care and Early",2286.35
1,"July",2022,2021,"Human Services","Grants and Subsidies","Agency Vendor Report",0,"Mid East Community Act Agency",20664.01
1,"July",2022,2021,"Human Services","Grants and Subsidies","Agency Vendor Report",0,"Kings Daughters Day Care",5430.84
1,"July",2022,2021,"Human Services","Grants and Subsidies","Agency Vendor Report",0,"Northwest Tennessee Economic Dev Council",127625.41
1,"July",2022,2021,"Correction","Utilities and Fuel","Agency Vendor Report",0,"Republic Services",36056.86
1,"July",2022,2021,"Correction","Rentals and Insurance","Agency Vendor Report",0,"Republic Services",236.6
1,"July",2022,2021,"Correction","Maint and Repairs","Agency Vendor Report",0,"Roto-Rooter",1250
1,"July",2022,2021,"Correction","Prof Services Third Party","Agency Vendor Report",0,"Associates for Sexual Assault Prevention",6890
1,"July",2022,2021,"Correction","Maint and Repairs","Agency Vendor Report",0,"Buddi US LLC",97250.2
1,"July",2022,2021,"Correction","Prof Services Third Party","Agency Vendor Report",0,"Shred-It USA LLC",412.5
1,"July",2022,2021,"Correction","Data Processing","Agency Vendor Report",0,"Shred-It USA LLC",764.5
1,"July",2022,2021,"Correction","Travel","Agency Vendor Report",0,"Holiday Inn Hotel & Suites Mem",10498
1,"July",2022,2021,"Correction","Prof Services Third Party","Agency Vendor Report",0,"RISECredibilty Assessment & Professional",5075
1,"July",2022,2021,"Comptroller of the Treasury","Grants and Subsidies","Agency Vendor Report",0,"JONI STEINBURG",258.62
1,"July",2022,2021,"Comptroller of the Treasury","Grants and Subsidies","Agency Vendor Report",0,"JOYCE M RIDDLE",898
1,"July",2022,2021,"Comptroller of the Treasury","Grants and Subsidies","Agency Vendor Report",0,"JUAN J ARRIAZA",1758
1,"July",2022,2021,"Comptroller of the Treasury","Grants and Subsidies","Agency Vendor Report",0,"JUDY A CLINARD",964
1,"July",2022,2021,"Comptroller of the Treasury","Travel","Agency Vendor Report",0,"John Abrasaldo",1677.88
1,"July",2022,2021,"Comptroller of the Treasury","Grants and Subsidies","Agency Vendor Report",0,"KENNETH W DAMM",1031
1,"July",2022,2021,"Comptroller of the Treasury","Grants and Subsidies","Agency Vendor Report",0,"KEVIN M GABERT",986
1,"July",2022,2021,"Comptroller of the Treasury","Travel","Agency Vendor Report",0,"Kaitlyn Steele",349.74
1,"July",2022,2021,"Comptroller of the Treasury","Grants and Subsidies","Agency Vendor Report",0,"LEAMON MCCLAIN",1012
1,"July",2022,2021,"Comptroller of the Treasury","Grants and Subsidies","Agency Vendor Report",0,"LEWIS RICHARDS",1984.02
1,"July",2022,2021,"Comptroller of the Treasury","Grants and Subsidies","Agency Vendor Report",0,"LINDA HARRISON",328.78
1,"July",2022,2021,"Comptroller of the Treasury","Grants and Subsidies","Agency Vendor Report",0,"LINDA M TIPLER",258.62
1,"July",2022,2021,"Comptroller of the Treasury","Grants and Subsidies","Agency Vendor Report",0,"LISA A ROBERTS",716
1,"July",2022,2021,"Comptroller of the Treasury","Grants and Subsidies","Agency Vendor Report",0,"LLOYD J WISONG",1308
1,"July",2022,2021,"Finance and Administration","Grants and Subsidies","Agency Vendor Report",0,"Hickman County Government",365217
1,"July",2022,2021,"Finance and Administration","Grants and Subsidies","Agency Vendor Report",0,"Jefferson County Government",499374
1,"July",2022,2021,"Finance and Administration","Grants and Subsidies","Agency Vendor Report",0,"Register Of Deeds",331399
1,"July",2022,2021,"Finance and Administration","Grants and Subsidies","Agency Vendor Report",0,"Trustee Lake County",567796
1,"July",2022,2021,"Finance and Administration","Grants and Subsidies","Agency Vendor Report",0,"Lincoln County",14334.38
1,"July",2022,2021,"Finance and Administration","Grants and Subsidies","Agency Vendor Report",0,"Marion County Trustee",382281
1,"July",2022,2021,"Finance and Administration","Grants and Subsidies","Agency Vendor Report",0,"Montgomery County Tn",1206371
1,"July",2022,2021,"Finance and Administration","Grants and Subsidies","Agency Vendor Report",0,"Montgomery County Child Advocacy Center",3441.78
1,"July",2022,2021,"Finance and Administration","Grants and Subsidies","Agency Vendor Report",0,"Morgan County Government",347942
1,"July",2022,2021,"Finance and Administration","Grants and Subsidies","Agency Vendor Report",0,"OVERTON COUNT EXECUTIVE OFFICE",351777
1,"July",2022,2021,"Finance and Administration","Grants and Subsidies","Agency Vendor Report",0,"Trustee Of Putnam County",8614.43
1,"July",2022,2021,"Finance and Administration","Grants and Subsidies","Agency Vendor Report",0,"County Executive Of Putnam",617208
1,"July",2022,2021,"Finance and Administration","Grants and Subsidies","Agency Vendor Report",0,"Roane Co Trustee",5833.7
1,"July",2022,2021,"Finance and Administration","Grants and Subsidies","Agency Vendor Report",0,"Roane County Goverment",5724.68
1,"July",2022,2021,"Finance and Administration","Grants and Subsidies","Agency Vendor Report",0,"Roane County Government",494281
1,"July",2022,2021,"Finance and Administration","Grants and Subsidies","Agency Vendor Report",0,"County Of Rutherford",1770566
1,"July",2022,2021,"Finance and Administration","Grants and Subsidies","Agency Vendor Report",0,"Sevier County",23244.32
1,"July",2022,2021,"Finance and Administration","Grants and Subsidies","Agency Vendor Report",0,"Trustee Sevier County",8460.94
1,"July",2022,2021,"Finance and Administration","Grants and Subsidies","Agency Vendor Report",0,"SHELBY COUNTY GOVERNMENT",144138.5
1,"July",2022,2021,"Finance and Administration","Grants and Subsidies","Agency Vendor Report",0,"TRUSTEE OF SHELBY COUNTY",10254
1,"July",2022,2021,"Finance and Administration","Grants and Subsidies","Agency Vendor Report",0,"County Of Warren",438887
1,"July",2022,2021,"Finance and Administration","Grants and Subsidies","Agency Vendor Report",0,"Warren County Mayor",14427.23
1,"July",2022,2021,"Finance and Administration","Grants and Subsidies","Agency Vendor Report",0,"Director Of Accounts",8500
1,"July",2022,2021,"Finance and Administration","Grants and Subsidies","Agency Vendor Report",0,"Weakley County Dept of Finance",340.2
1,"July",2022,2021,"Finance and Administration","Grants and Subsidies","Agency Vendor Report",0,"White County Trustee",375133
1,"July",2022,2021,"Finance and Administration","Grants and Subsidies","Agency Vendor Report",0,"White County Government",2505.46
1,"July",2022,2021,"Finance and Administration","Grants and Subsidies","Agency Vendor Report",0,"White County Sheriffs Dept",979.32
1,"July",2022,2021,"Finance and Administration","Grants and Subsidies","Agency Vendor Report",0,"County Of Wayne",611987
1,"July",2022,2021,"Finance and Administration","Administrative Fees","Agency Vendor Report",0,"Department of Treasury",755519.93
1,"July",2022,2021,"Agriculture","Grants and Subsidies","Agency Vendor Report",0,"WILLIE HUGH DANIELS",3000
1,"July",2022,2021,"Agriculture","Grants and Subsidies","Agency Vendor Report",0,"LUTHER H WOODS",3745
1,"July",2022,2021,"Agriculture","Grants and Subsidies","Agency Vendor Report",0,"HUNTER ALAN WILLIAMS",9888
1,"July",2022,2021,"Agriculture","Grants and Subsidies","Agency Vendor Report",0,"PEYTON A SHELTON",2670
1,"July",2022,2021,"Agriculture","Grants and Subsidies","Agency Vendor Report",0,"ZACHARY THOMAS PRICE",3600
1,"July",2022,2021,"Agriculture","Grants and Subsidies","Agency Vendor Report",0,"KISHA M WEBB",596
1,"July",2022,2021,"Agriculture","Grants and Subsidies","Agency Vendor Report",0,"TRACI CHERISE ADAMS",6000
1,"July",2022,2021,"Agriculture","Grants and Subsidies","Agency Vendor Report",0,"JOHN KEVIN WIGGINS",6000
1,"July",2022,2021,"Agriculture","Grants and Subsidies","Agency Vendor Report",0,"SHANNON BLASE CASHION",10000
1,"July",2022,2021,"Agriculture","Grants and Subsidies","Agency Vendor Report",0,"CHARLES E COZART",3888
1,"July",2022,2021,"Agriculture","Grants and Subsidies","Agency Vendor Report",0,"JEAROD STEPHEN FLOWERS",10000
1,"July",2022,2021,"Agriculture","Grants and Subsidies","Agency Vendor Report",0,"JAMES W LANE",1000
1,"July",2022,2021,"Agriculture","Grants and Subsidies","Agency Vendor Report",0,"MARGIE MANNING",3360
1,"July",2022,2021,"Agriculture","Grants and Subsidies","Agency Vendor Report",0,"KIRK ALAN MCCORMICK",3600
1,"July",2022,2021,"Agriculture","Grants and Subsidies","Agency Vendor Report",0,"STEPHEN M RUSSELL",2400
1,"July",2022,2021,"Agriculture","Grants and Subsidies","Agency Vendor Report",0,"DONALD WILLIAM BUTRUM",4500
1,"July",2022,2021,"Agriculture","Grants and Subsidies","Agency Vendor Report",0,"JAMES W DAVIS",10000
1,"July",2022,2021,"Agriculture","Grants and Subsidies","Agency Vendor Report",0,"DANIEL GRAVES",5625
1,"July",2022,2021,"Agriculture","Grants and Subsidies","Agency Vendor Report",0,"JOHN T MCCARTHY SR",1337
1,"July",2022,2021,"Agriculture","Grants and Subsidies","Agency Vendor Report",0,"HOLDEN MCCONNELL FARMS",10000
1,"July",2022,2021,"Agriculture","Grants and Subsidies","Agency Vendor Report",0,"EDWARD EARL WATTS JR",1414
1,"July",2022,2021,"Agriculture","Grants and Subsidies","Agency Vendor Report",0,"DALTON K SHRUM",1500
1,"July",2022,2021,"Agriculture","Grants and Subsidies","Agency Vendor Report",0,"TYLER PARKER",10000
1,"July",2022,2021,"Agriculture","Grants and Subsidies","Agency Vendor Report",0,"JASON LAWSON",2224
1,"July",2022,2021,"Tourist Development","Utilities and Fuel","Direct Debit",0,"City of Bristol",708.43
1,"July",2022,2021,"Tourist Development","Utilities and Fuel","Direct Debit",0,"Erwin Utilities",2405.85
1,"July",2022,2021,"Tourist Development","Utilities and Fuel","Direct Debit",0,"Appalachian Power",1421.9
1,"July",2022,2021,"Tourist Development","Utilities and Fuel","Direct Debit",0,"Newport Utilities",2083.18
1,"July",2022,2021,"Tourist Development","Utilities and Fuel","Direct Debit",0,"City of Clarksville",3591.08
1,"July",2022,2021,"Tourist Development","Utilities and Fuel","Direct Debit",0,"Bristol Tenn Electric System",1285.4
1,"July",2022,2021,"Tourist Development","Utilities and Fuel","Direct Debit",0,"Memphis Light, Gas and Water",4198.51
1,"July",2022,2021,"Tourist Development","Utilities and Fuel","Direct Debit",0,"City of Baxter Utility Distric",2273.99
1,"July",2022,2021,"Tourist Development","Utilities and Fuel","Direct Debit",0,"Clarksville Dept of Electricit",1289.72
1,"July",2022,2021,"Tourist Development","Utilities and Fuel","Direct Debit",0,"Cumberland Electric Membership",1493.86
1,"July",2022,2021,"Tourist Development","Utilities and Fuel","Direct Debit",0,"Electric Power Board of Chatta",2957.93
1,"July",2022,2021,"Tourist Development","Utilities and Fuel","Direct Debit",0,"Forked Deer Electric Cooperati",1267.08
1,"July",2022,2021,"Tourist Development","Utilities and Fuel","Direct Debit",0,"Jellico Electric and Water Sys",9151.45
1,"July",2022,2021,"Tourist Development","Utilities and Fuel","Direct Debit",0,"Northwest Dyersburg Utiltity D",228.95
1,"July",2022,2021,"Tourist Development","Utilities and Fuel","Direct Debit",0,"Pulaski Electric, Water and Ga",2168.89
1,"July",2022,2021,"Tourist Development","Utilities and Fuel","Direct Debit",0,"Sequachee Valley Electric Coop",1379.62
1,"July",2022,2021,"Tourist Development","Utilities and Fuel","Direct Debit",0,"Tennessee-American Water Compa",4215.51
1,"July",2022,2021,"Tourist Development","Utilities and Fuel","Direct Debit",0,"Upper Cumberland Electric Coop",1977.59
1,"July",2022,2021,"Tourist Development","Supplies and Materials","Agency Vendor Report",0,"Grainger",12629.4
1,"July",2022,2021,"Environment and Conservation","Communications","Agency Vendor Report",0,"BLACK BOX NETWORK SERVICES",472.5
1,"July",2022,2021,"Environment and Conservation","Supplies and Materials","Agency Vendor Report",0,"BLUE WATER INDUSTRIES",1070.02
1,"July",2022,2021,"Environment and Conservation","Inventory","Agency Vendor Report",0,"T & L Honey",292.85
1,"July",2022,2021,"Environment and Conservation","Maint and Repairs","Agency Vendor Report",0,"Rushing Painting Co",9985.5
1,"July",2022,2021,"Environment and Conservation","Utilities and Fuel","Agency Vendor Report",0,"Richardson Waste Solutions",474.4
1,"July",2022,2021,"Environment and Conservation","Inventory","Agency Vendor Report",0,"K and J Designs",1666
1,"July",2022,2021,"Environment and Conservation","Buildings","Agency Vendor Report",0,"ROSS SERVICES CORPORATION",53945
1,"July",2022,2021,"Environment and Conservation","Maint and Repairs","Agency Vendor Report",0,"K Payne Contracting LLC",3055
1,"July",2022,2021,"Environment and Conservation","Maint and Repairs","Agency Vendor Report",0,"Sarah E Wilson",9850
1,"July",2022,2021,"Environment and Conservation","Supplies and Materials","Agency Vendor Report",0,"MEDICAL SOLUTIONS INC",280.98
1,"July",2022,2021,"Environment and Conservation","Supplies and Materials","Agency Vendor Report",0,"Sysco Knoxville LLC",1522.25
1,"July",2022,2021,"Environment and Conservation","Maint and Repairs","Agency Vendor Report",0,"Guardian Systems LLC",39.95
1,"July",2022,2021,"Environment and Conservation","Inventory","Agency Vendor Report",0,"Bowles Wholesale Bait Inc",172
1,"July",2022,2021,"Environment and Conservation","Inventory","Agency Vendor Report",0,"Patricia Ann Moore",269.5
1,"July",2022,2021,"Environment and Conservation","Maint and Repairs","Agency Vendor Report",0,"ALL PRO Construction",10495
1,"July",2022,2021,"Environment and Conservation","Inventory","Agency Vendor Report",0,"Interstate Batteries of Southwestern KY",201.9
1,"July",2022,2021,"Environment and Conservation","Maint and Repairs","Agency Vendor Report",0,"Okeena Termite & Pest Control LLC",487
1,"July",2022,2021,"Environment and Conservation","Data Processing","Agency Vendor Report",0,"WINDSOR SOLUTIONS INC",24358
1,"July",2022,2021,"Environment and Conservation","Utilities and Fuel","Agency Vendor Report",0,"Mood Media",234.44
1,"July",2022,2021,"Environment and Conservation","Maint and Repairs","Agency Vendor Report",0,"Clean Cut Lawn Service",1320
1,"July",2022,2021,"Environment and Conservation","Motor Vehicle Operation","Agency Vendor Report",0,"Parman Energy Group LLC",49326.54
1,"July",2022,2021,"Environment and Conservation","Inventory","Agency Vendor Report",0,"Parman Energy Group LLC",12306.76
1,"July",2022,2021,"Environment and Conservation","Motor Vehicle Operation","Agency Vendor Report",0,"Champion Car Wash LLC",379.81
1,"July",2022,2021,"Revenue","State Shared Taxes","Agency Vendor Report",0,"City Of Moscow",189.13
1,"July",2022,2021,"Revenue","Grants and Subsidies","Agency Vendor Report",0,"Town of New Tazewell",43349.19
1,"July",2022,2021,"Revenue","Grants and Subsidies","Agency Vendor Report",0,"City Of Grand Junction",4251.06
1,"July",2022,2021,"Revenue","Grants and Subsidies","Agency Vendor Report",0,"City Of Elkton",7511.31
1,"July",2022,2021,"Revenue","State Shared Taxes","Agency Vendor Report",0,"City Of Elkton",51.67
1,"July",2022,2021,"Revenue","Grants and Subsidies","Agency Vendor Report",0,"City Of Bell Buckle",27645.17
1,"July",2022,2021,"Safety","Prof Services Third Party","Agency Vendor Report",0,"General Sessions Court",480
1,"July",2022,2021,"Safety","Prof Services Third Party","Agency Vendor Report",0,"Lauderdale County Circuit Court Clerk",20
1,"July",2022,2021,"Safety","Prof Services Third Party","Agency Vendor Report",0,"Hardeman County Juvenile Court",520
1,"July",2022,2021,"Safety","Prof Services Third Party","Agency Vendor Report",0,"Obion County Juvenile Court",40
1,"July",2022,2021,"Safety","Prof Services Third Party","Agency Vendor Report",0,"Obion County General Sessions Court",450
1,"July",2022,2021,"Safety","Prof Services Third Party","Agency Vendor Report",0,"Hamilton County Sheriffs Office",2140
1,"July",2022,2021,"Safety","Prof Services Third Party","Agency Vendor Report",0,"Hamilton Co General Sessions Court",2550
1,"July",2022,2021,"Safety","Prof Services Third Party","Agency Vendor Report",0,"Hamilton County Circuit Court Clerk",10
1,"July",2022,2021,"Safety","Prof Services Third Party","Agency Vendor Report",0,"Criminal Court Clerk Of Hamilton County",870
1,"July",2022,2021,"Safety","Prof Services Third Party","Agency Vendor Report",0,"Blount County Sheriff",880
1,"July",2022,2021,"Safety","Prof Services Third Party","Agency Vendor Report",0,"BLOUNT COUNTY GENERAL SESSION  COURT",1450
1,"July",2022,2021,"Safety","Prof Services Third Party","Agency Vendor Report",0,"General Session Court",2400
1,"July",2022,2021,"Safety","Prof Services Third Party","Agency Vendor Report",0,"Bradley County Criminal Court",110
1,"July",2022,2021,"Safety","Prof Services Third Party","Agency Vendor Report",0,"Bradley County Sherriffs Office",535
1,"July",2022,2021,"Safety","Prof Services Third Party","Agency Vendor Report",0,"Carroll County Sheriff Dept",50
1,"July",2022,2021,"Safety","Prof Services Third Party","Agency Vendor Report",0,"Carroll Co Circuit Court Clk",50
1,"July",2022,2021,"Safety","Prof Services Third Party","Agency Vendor Report",0,"Carroll County General Session Court",330
1,"July",2022,2021,"Safety","Prof Services Third Party","Agency Vendor Report",0,"Carter County",530
1,"July",2022,2021,"Safety","Prof Services Third Party","Agency Vendor Report",0,"Carter County Sheriffs Dept",155
1,"July",2022,2021,"Safety","Prof Services Third Party","Agency Vendor Report",0,"Cheatham Co Sheriffs Dept",250
1,"July",2022,2021,"Safety","Prof Services Third Party","Agency Vendor Report",0,"Cheatham County Sheriffs Office",15
1,"July",2022,2021,"Safety","Prof Services Third Party","Agency Vendor Report",0,"Cheatham County Circuit Court Clerk",90
1,"July",2022,2021,"Safety","Prof Services Third Party","Agency Vendor Report",0,"Cheatham County General Sessions Court",500
1,"July",2022,2021,"Safety","Prof Services Third Party","Agency Vendor Report",0,"Coffee County",1700
1,"July",2022,2021,"Safety","Prof Services Third Party","Agency Vendor Report",0,"COFFEE COUNTY GOVT",355
1,"July",2022,2021,"Safety","Prof Services Third Party","Agency Vendor Report",0,"Coffee County Criminal Court",10
1,"July",2022,2021,"Safety","Prof Services Third Party","Agency Vendor Report",0,"Coffee County Circuit Court Clerk",100
1,"July",2022,2021,"Safety","Prof Services Third Party","Agency Vendor Report",0,"Circuit Court Clerk",50
1,"July",2022,2021,"Safety","Prof Services Third Party","Agency Vendor Report",0,"Cumberland Co Sheriff Dept",615
1,"July",2022,2021,"Safety","Prof Services Third Party","Agency Vendor Report",0,"Cumberland Co Criminal Clerk",30
1,"July",2022,2021,"Safety","Prof Services Third Party","Agency Vendor Report",0,"Cumberland Co Juvenile Clerk",30
1,"July",2022,2021,"Safety","Prof Services Third Party","Agency Vendor Report",0,"Cumberland County General Session Court",860
1,"July",2022,2021,"Children's Services","Prof Services Third Party","CSD Payments",0,"Texas Dept Of State Health Services",10
1,"July",2022,2021,"Children's Services","Grants and Subsidies","CSD Payments",0,"15th Judicial District Child Advocacy",11534.47
1,"July",2022,2021,"Children's Services","Prof Services Third Party","CSD Payments",0,"Dept Of Human Services",20
1,"July",2022,2021,"Children's Services","Prof Services Third Party","CSD Payments",0,"Minnesota Department Of Health",26
1,"July",2022,2021,"Children's Services","Grants and Subsidies","CSD Payments",0,"Jackson Transit Authority",70
1,"July",2022,2021,"Children's Services","Grants and Subsidies","CSD Payments",0,"COUNSELING AND CONSULTATION SERVICES INC",270
1,"July",2022,2021,"Children's Services","Prof Services Third Party","CSD Payments",0,"Marion County Newspapers Inc",687.52
1,"July",2022,2021,"Children's Services","Grants and Subsidies","CSD Payments",0,"Kennedy Law Firm",40
1,"July",2022,2021,"Children's Services","Prof Services Third Party","CSD Payments",0,"Gibson Court Reporting",344
1,"July",2022,2021,"Children's Services","Prof Services Third Party","CSD Payments",0,"Omni Visions Inc",24204.27
1,"July",2022,2021,"Children's Services","Grants and Subsidies","CSD Payments",0,"Omni Visions Inc",4986700.04
1,"July",2022,2021,"Children's Services","Grants and Subsidies","CSD Payments",0,"Harmony Family Center Inc",453736.78
1,"July",2022,2021,"Children's Services","Grants and Subsidies","CSD Payments",0,"DAVIS HOUSE CHILD ADVOCACY CENTER",13833.1
1,"July",2022,2021,"Children's Services","Grants and Subsidies","CSD Payments",0,"SERVALL LLC",125
1,"July",2022,2021,"Children's Services","Prof Services Third Party","CSD Payments",0,"Foreign Language Academy",1910
1,"July",2022,2021,"Children's Services","Prof Services Third Party","CSD Payments",0,"Wayne Halfway House",39583.46
1,"July",2022,2021,"Children's Services","Grants and Subsidies","CSD Payments",0,"Wayne Halfway House",2379509.57
1,"July",2022,2021,"Children's Services","Grants and Subsidies","CSD Payments",0,"Child Advocacy Center of Rutherford Coun",9030.8
1,"July",2022,2021,"Children's Services","Prof Services Third Party","CSD Payments",0,"American Esoteric Laboratories",625.49
1,"July",2022,2021,"Children's Services","Supplies and Materials","CSD Payments",0,"Office Depot Inc",11632.37
1,"July",2022,2021,"Children's Services","Data Processing","CSD Payments",0,"Office Depot Inc",333.28
1,"July",2022,2021,"Children's Services","Grants and Subsidies","CSD Payments",0,"East Tennessee Human Resource Agency Inc",28820.41
1,"July",2022,2021,"Children's Services","Prof Services Third Party","CSD Payments",0,"Associated Dental Group",67.3
1,"July",2022,2021,"Human Services","Prof Services Third Party","Agency Vendor Report",0,"Marshall County Juvenile Court",6497.5
1,"July",2022,2021,"Human Services","Prof Services Third Party","Agency Vendor Report",0,"Maury County",3013.05
1,"July",2022,2021,"Human Services","Prof Services Third Party","Agency Vendor Report",0,"Juvenile Court",3134.75
1,"July",2022,2021,"Human Services","Grants and Subsidies","Agency Vendor Report",0,"Maury County Trustee",5067.54
1,"July",2022,2021,"Human Services","Prof Services Third Party","Agency Vendor Report",0,"Maury Co Juvenile Clerk",525
1,"July",2022,2021,"Human Services","Grants and Subsidies","Agency Vendor Report",0,"P H P Learning Center",5805.8
1,"July",2022,2021,"Human Services","Grants and Subsidies","Agency Vendor Report",0,"Karamu Nutrition Program",508692.16
1,"July",2022,2021,"Human Services","Grants and Subsidies","Agency Vendor Report",0,"YouthCare Pediatrics",20
1,"July",2022,2021,"Human Services","Grants and Subsidies","Agency Vendor Report",0,"Childrens Corner",3034.05
1,"July",2022,2021,"Human Services","Grants and Subsidies","Agency Vendor Report",0,"Bountiful Basket Nutrition Program Inc",32840.51
1,"July",2022,2021,"Human Services","Data Processing","Agency Vendor Report",0,"DELOITTE CONSULTING LLP",1347853.02
1,"July",2022,2021,"Human Services","Data Processing","Agency Vendor Report",0,"Deloitte Consulting LLP",2065759
1,"July",2022,2021,"Human Services","Grants and Subsidies","Agency Vendor Report",0,"Boys & Girls Clubs in TN",3098580
1,"July",2022,2021,"Human Services","Grants and Subsidies","Agency Vendor Report",0,"Creative Minds Learning Academy",3141.46
1,"July",2022,2021,"Human Services","Supplies and Materials","Agency Vendor Report",0,"Cymbal Communications Corp",745.8
1,"July",2022,2021,"Human Services","Prof Services Third Party","Agency Vendor Report",0,"Saint Thomas River Park Hospital",320
1,"July",2022,2021,"Revenue","State Shared Taxes","Agency Vendor Report",0,"City Of Bell Buckle",33.01
1,"July",2022,2021,"Revenue","Grants and Subsidies","Agency Vendor Report",0,"City Of White House",168635.28
1,"July",2022,2021,"Revenue","State Shared Taxes","Agency Vendor Report",0,"City Of White House",21469.15
1,"July",2022,2021,"Revenue","Grants and Subsidies","Agency Vendor Report",0,"City Of Big Sandy",8069.71
1,"July",2022,2021,"Revenue","Grants and Subsidies","Agency Vendor Report",0,"City Of Ridgely",26996.96
1,"July",2022,2021,"Revenue","State Shared Taxes","Agency Vendor Report",0,"City Of Ridgely",1205.7
1,"July",2022,2021,"Revenue","Grants and Subsidies","Agency Vendor Report",0,"Trousdale Co Clerk",1395.17
1,"July",2022,2021,"Revenue","State Shared Taxes","Agency Vendor Report",0,"Trousdale Co Clerk",172.78
1,"July",2022,2021,"Revenue","Grants and Subsidies","Agency Vendor Report",0,"Town Of Cumberland City",4084.64
1,"July",2022,2021,"Revenue","State Shared Taxes","Agency Vendor Report",0,"Town Of Cumberland City",1170.82
1,"July",2022,2021,"Revenue","Grants and Subsidies","Agency Vendor Report",0,"Town Of Kimball",21649.78
1,"July",2022,2021,"Revenue","State Shared Taxes","Agency Vendor Report",0,"Town Of Kimball",72.71
1,"July",2022,2021,"Revenue","Grants and Subsidies","Agency Vendor Report",0,"City Of Greenback",16442.02
1,"July",2022,2021,"Revenue","Grants and Subsidies","Agency Vendor Report",0,"Town Of Tellico Plains",16909.43
1,"July",2022,2021,"Revenue","State Shared Taxes","Agency Vendor Report",0,"Town Of Tellico Plains",5.86
1,"July",2022,2021,"Revenue","Grants and Subsidies","Agency Vendor Report",0,"City Of Baxter",18611.52
1,"July",2022,2021,"Revenue","State Shared Taxes","Agency Vendor Report",0,"City Of Baxter",2152.64
1,"July",2022,2021,"Revenue","Grants and Subsidies","Agency Vendor Report",0,"City Of Lakesite",31539.99
1,"July",2022,2021,"Revenue","State Shared Taxes","Agency Vendor Report",0,"City Of Lakesite",169.79
1,"July",2022,2021,"Revenue","Grants and Subsidies","Agency Vendor Report",0,"City Of Mount Juliet",503469.68
1,"July",2022,2021,"Revenue","State Shared Taxes","Agency Vendor Report",0,"City Of Mount Juliet",21852.27
1,"July",2022,2021,"Revenue","Grants and Subsidies","Agency Vendor Report",0,"Town Of Oliver Springs",44755.68
1,"July",2022,2021,"Revenue","State Shared Taxes","Agency Vendor Report",0,"Town Of Oliver Springs",2846.21
1,"July",2022,2021,"Revenue","Grants and Subsidies","Agency Vendor Report",0,"City Of Cross Plains",28319.85
1,"July",2022,2021,"Revenue","Grants and Subsidies","Agency Vendor Report",0,"City Of Rockford",11248.76
1,"July",2022,2021,"Revenue","Grants and Subsidies","Agency Vendor Report",0,"Town Of Bulls Gap",10246.93
1,"July",2022,2021,"Revenue","Grants and Subsidies","Agency Vendor Report",0,"City Of Ethridge",6250.48
1,"July",2022,2021,"Revenue","Grants and Subsidies","Agency Vendor Report",0,"Town Of Burlison",5496.95
1,"July",2022,2021,"Revenue","Grants and Subsidies","Agency Vendor Report",0,"City Of Mosheim",32632.35
1,"July",2022,2021,"Revenue","Grants and Subsidies","Agency Vendor Report",0,"City Of Ardmore",16309.71
1,"July",2022,2021,"Revenue","State Shared Taxes","Agency Vendor Report",0,"City Of Ardmore",1100.78
1,"July",2022,2021,"Revenue","Grants and Subsidies","Agency Vendor Report",0,"Town Of Tazewell",39871.37
1,"July",2022,2021,"Revenue","Grants and Subsidies","Agency Vendor Report",0,"Hamilton County Clerks Office",59727.25
1,"July",2022,2021,"Revenue","Prof Services Third Party","Agency Vendor Report",0,"Cocke County Register of Deeds",96
1,"July",2022,2021,"Revenue","Grants and Subsidies","Agency Vendor Report",0,"Pickett County Trustee",167843.06
1,"July",2022,2021,"Revenue","State Shared Taxes","Agency Vendor Report",0,"Pickett County Trustee",142857.25
1,"July",2022,2021,"Revenue","Grants and Subsidies","Agency Vendor Report",0,"Pickett County Clerks Office",954.83
1,"July",2022,2021,"Revenue","Grants and Subsidies","Agency Vendor Report",0,"Trustee Tipton County",311344.84
1,"July",2022,2021,"Revenue","State Shared Taxes","Agency Vendor Report",0,"Trustee Tipton County",1221350.25
1,"July",2022,2021,"Revenue","Grants and Subsidies","Agency Vendor Report",0,"Town Of Eastview",9693.74
1,"July",2022,2021,"Revenue","Grants and Subsidies","Agency Vendor Report",0,"Town Of Gordonsville",18057.92
1,"July",2022,2021,"Revenue","State Shared Taxes","Agency Vendor Report",0,"Town Of Gordonsville",31319.61
1,"July",2022,2021,"Revenue","Grants and Subsidies","Agency Vendor Report",0,"Town Of Surgoinsville",24833.67
1,"July",2022,2021,"Revenue","Grants and Subsidies","Agency Vendor Report",0,"City Of Liberty",4022.11
1,"July",2022,2021,"Revenue","Grants and Subsidies","Agency Vendor Report",0,"City Of Palmer",8849.47
1,"July",2022,2021,"Revenue","Grants and Subsidies","Agency Vendor Report",0,"Town Of Scotts Hill",13133.48
1,"July",2022,2021,"Revenue","Grants and Subsidies","Agency Vendor Report",0,"Town of Dowelltown",4591.57
1,"July",2022,2021,"Revenue","Grants and Subsidies","Agency Vendor Report",0,"City Of Auburntown",3479.24
1,"July",2022,2021,"Revenue","Grants and Subsidies","Agency Vendor Report",0,"City Of Dandridge",49671.91
1,"July",2022,2021,"Revenue","State Shared Taxes","Agency Vendor Report",0,"City Of Dandridge",3302.6
1,"July",2022,2021,"Revenue","Grants and Subsidies","Agency Vendor Report",0,"City Of Medina",66712.3
1,"July",2022,2021,"Revenue","State Shared Taxes","Agency Vendor Report",0,"City Of Medina",3479.22
1,"July",2022,2021,"Revenue","Grants and Subsidies","Agency Vendor Report",0,"City Of Mount Carmel",71600.99
1,"July",2022,2021,"Revenue","Grants and Subsidies","Agency Vendor Report",0,"City Of Cornersville",16055.05
1,"July",2022,2021,"Revenue","Grants and Subsidies","Agency Vendor Report",0,"City Of Gilt Edge",6288.5
1,"July",2022,2021,"Revenue","Grants and Subsidies","Agency Vendor Report",0,"City Of Walden",88413.83
1,"July",2022,2021,"Revenue","Grants and Subsidies","Agency Vendor Report",0,"City Of Kingston Springs",48063.79
1,"July",2022,2021,"Revenue","Grants and Subsidies","Agency Vendor Report",0,"Giles County Clerk",1211.88
1,"July",2022,2021,"Revenue","State Shared Taxes","Agency Vendor Report",0,"Giles County Clerk",954.2
1,"July",2022,2021,"Revenue","Grants and Subsidies","Agency Vendor Report",0,"Trustee Madison County",460298.73
1,"July",2022,2021,"Revenue","State Shared Taxes","Agency Vendor Report",0,"Trustee Madison County",5963834.76
1,"July",2022,2021,"Revenue","Grants and Subsidies","Agency Vendor Report",0,"TOWN OF THOMPSONS STATION",59797.81
1,"July",2022,2021,"Revenue","State Shared Taxes","Agency Vendor Report",0,"TOWN OF THOMPSONS STATION",4457.37
1,"July",2022,2021,"Revenue","Grants and Subsidies","Agency Vendor Report",0,"Lincoln County Clerk",1805.85
1,"July",2022,2021,"Revenue","State Shared Taxes","Agency Vendor Report",0,"Lincoln County Clerk",2268.16
1,"July",2022,2021,"Revenue","Grants and Subsidies","Agency Vendor Report",0,"Roane County Clerk",12558.89
1,"July",2022,2021,"Revenue","State Shared Taxes","Agency Vendor Report",0,"Roane County Clerk",3380.02
1,"July",2022,2021,"Revenue","Grants and Subsidies","Agency Vendor Report",0,"Town Of Louisville",93236.22
1,"July",2022,2021,"Revenue","State Shared Taxes","Agency Vendor Report",0,"Town Of Louisville",596.9
1,"July",2022,2021,"Revenue","Grants and Subsidies","Agency Vendor Report",0,"City Of Sunbright",8180.68
1,"July",2022,2021,"Revenue","State Shared Taxes","Agency Vendor Report",0,"City Of Sunbright",3978.69
1,"July",2022,2021,"Revenue","Grants and Subsidies","Agency Vendor Report",0,"City of Centertown",3142.97
1,"July",2022,2021,"Revenue","Grants and Subsidies","Agency Vendor Report",0,"City Of Harrogate",65469.97
1,"July",2022,2021,"Revenue","Grants and Subsidies","Agency Vendor Report",0,"Sullivan County Clerk",23065.2
1,"July",2022,2021,"Revenue","Grants and Subsidies","Agency Vendor Report",0,"Jackson County Clerk",1359.02
1,"July",2022,2021,"Revenue","State Shared Taxes","Agency Vendor Report",0,"Jackson County Clerk",2154.1
1,"July",2022,2021,"Revenue","Grants and Subsidies","Agency Vendor Report",0,"City Of Plainview",27958.9
1,"July",2022,2021,"Revenue","Grants and Subsidies","Agency Vendor Report",0,"Town Of Doyle",6945.56
1,"July",2022,2021,"Revenue","Grants and Subsidies","Agency Vendor Report",0,"Blount County Clerk",22033.15
1,"July",2022,2021,"Revenue","State Shared Taxes","Agency Vendor Report",0,"Blount County Clerk",57090.1
1,"July",2022,2021,"Revenue","Grants and Subsidies","Agency Vendor Report",0,"Town Of Unicoi",51608.92
1,"July",2022,2021,"Revenue","Grants and Subsidies","Agency Vendor Report",0,"Johnson County Clerk",374.52
1,"July",2022,2021,"Revenue","State Shared Taxes","Agency Vendor Report",0,"Johnson County Clerk",12021.59
1,"July",2022,2021,"Revenue","Grants and Subsidies","Agency Vendor Report",0,"Town Of Pleasant View",63359.04
1,"July",2022,2021,"Revenue","State Shared Taxes","Agency Vendor Report",0,"Town Of Pleasant View",512.52
1,"July",2022,2021,"Revenue","Grants and Subsidies","Agency Vendor Report",0,"Town Of Nolensville",184518.22
1,"July",2022,2021,"Revenue","Grants and Subsidies","Agency Vendor Report",0,"Town Of Coopertown",66261.8
1,"July",2022,2021,"Revenue","State Shared Taxes","Agency Vendor Report",0,"Town Of Coopertown",106.32
1,"July",2022,2021,"Revenue","Grants and Subsidies","Agency Vendor Report",0,"TOWN OF BEAN STATION",41652.69
1,"July",2022,2021,"Revenue","State Shared Taxes","Agency Vendor Report",0,"TOWN OF BEAN STATION",151.53
1,"July",2022,2021,"Revenue","Grants and Subsidies","Agency Vendor Report",0,"Memphis Redbirds LLC",66814.02
1,"July",2022,2021,"Revenue","Grants and Subsidies","Agency Vendor Report",0,"Memphis & Shelby Co Sports Authority",229719.63
1,"July",2022,2021,"Revenue","Grants and Subsidies","Agency Vendor Report",0,"Bledsoe County Clerk",1543.5
1,"July",2022,2021,"Revenue","Prof Services Third Party","Agency Vendor Report",0,"Franklin County Register Of Deeds",96
1,"July",2022,2021,"Revenue","Grants and Subsidies","Agency Vendor Report",0,"TOWN OF THREE WAY",24185.76
1,"July",2022,2021,"Revenue","State Shared Taxes","Agency Vendor Report",0,"TOWN OF THREE WAY",468.15
1,"July",2022,2021,"Revenue","Grants and Subsidies","Agency Vendor Report",0,"Marshall County Clerk",1295.34
1,"July",2022,2021,"Revenue","Grants and Subsidies","Agency Vendor Report",0,"Lewis County Clerk",242.55
1,"July",2022,2021,"Revenue","State Shared Taxes","Agency Vendor Report",0,"Lewis County Clerk",876.51
1,"July",2022,2021,"Revenue","Grants and Subsidies","Agency Vendor Report",0,"Scott County Clerk",448.03
1,"July",2022,2021,"Revenue","Grants and Subsidies","Agency Vendor Report",0,"Hartsville Trousdale County",160408.71
1,"July",2022,2021,"Revenue","State Shared Taxes","Agency Vendor Report",0,"Hartsville Trousdale County",148499.75
1,"July",2022,2021,"Revenue","Grants and Subsidies","Agency Vendor Report",0,"City Of Belle Meade",389701.48
1,"July",2022,2021,"Revenue","Grants and Subsidies","Agency Vendor Report",0,"City Of Bolivar",73108.34
1,"July",2022,2021,"Revenue","State Shared Taxes","Agency Vendor Report",0,"City Of Bolivar",1710.02
1,"July",2022,2021,"Revenue","Grants and Subsidies","Agency Vendor Report",0,"City Of Brownsville",140597.47
1,"July",2022,2021,"Revenue","State Shared Taxes","Agency Vendor Report",0,"City Of Brownsville",668.22
1,"July",2022,2021,"Safety","Prof Services Third Party","Agency Vendor Report",0,"City Of Gibson",40
1,"July",2022,2021,"Safety","Prof Services Third Party","Agency Vendor Report",0,"City of Gibson",50
1,"July",2022,2021,"Safety","Prof Services Third Party","Agency Vendor Report",0,"Town Of Alexandria",170
1,"July",2022,2021,"Safety","Prof Services Third Party","Agency Vendor Report",0,"City Of Mcewen",40
1,"July",2022,2021,"Safety","Prof Services Third Party","Agency Vendor Report",0,"Mcewen Police Department",100
1,"July",2022,2021,"Safety","Prof Services Third Party","Agency Vendor Report",0,"City Of Brighton",270
1,"July",2022,2021,"Safety","Prof Services Third Party","Agency Vendor Report",0,"City Of Bluff City",110
1,"July",2022,2021,"Safety","Prof Services Third Party","Agency Vendor Report",0,"City Of Pigeon Forge",1140
1,"July",2022,2021,"Safety","Prof Services Third Party","Agency Vendor Report",0,"Pigeon Forge Police Dept",200
1,"July",2022,2021,"Safety","Prof Services Third Party","Agency Vendor Report",0,"Cocke County Sheriff Dept",25
1,"July",2022,2021,"Safety","Prof Services Third Party","Agency Vendor Report",0,"City Of Westmoreland",165
1,"July",2022,2021,"Safety","Prof Services Third Party","Agency Vendor Report",0,"City of Spring Hill",360
1,"July",2022,2021,"Safety","Prof Services Third Party","Agency Vendor Report",0,"City Of Spring Hill Police Dept",125
1,"July",2022,2021,"Safety","Prof Services Third Party","Agency Vendor Report",0,"General Sessions Court",850
1,"July",2022,2021,"Safety","Prof Services Third Party","Agency Vendor Report",0,"Cannon Co Sheriff Dept",40
1,"July",2022,2021,"Safety","Prof Services Third Party","Agency Vendor Report",0,"General Sessions Court",360
1,"July",2022,2021,"Safety","Prof Services Third Party","Agency Vendor Report",0,"Cannon County Circuit Court Clerk",80
1,"July",2022,2021,"Safety","Prof Services Third Party","Agency Vendor Report",0,"City Of New Johnsonville",25
1,"July",2022,2021,"Safety","Prof Services Third Party","Agency Vendor Report",0,"City of Niota",135
1,"July",2022,2021,"Safety","Grants and Subsidies","Agency Vendor Report",0,"City of Niota",54
1,"July",2022,2021,"Safety","Prof Services Third Party","Agency Vendor Report",0,"Town Of South Carthage",100
1,"July",2022,2021,"Safety","Grants and Subsidies","Agency Vendor Report",0,"City Of Pikeville",1567
1,"July",2022,2021,"Health","Training","Agency Vendor Report",0,"Rhapsody",796
1,"July",2022,2021,"Health","Prof Services Third Party","Agency Vendor Report",0,"Courtney Murray DO PC",401.5
1,"July",2022,2021,"Health","Grants and Subsidies","Agency Vendor Report",0,"Grace Healthcare of Cordova",2625.84
1,"July",2022,2021,"Health","Prof Services Third Party","Agency Vendor Report",0,"ADI Radiology PC",6431.42
1,"July",2022,2021,"Health","Prof Services Third Party","Agency Vendor Report",0,"Sharon K Carroll",1165.62
1,"July",2022,2021,"Human Services","Grants and Subsidies","Agency Vendor Report",0,"Hamilton County Trustee",32532.07
1,"July",2022,2021,"Tennessee Housing Development Agency","Grants and Subsidies","Agency Vendor Report",0,"Raven L Whiteside",408
1,"July",2022,2021,"Tennessee Arts Commission","Grants and Subsidies","Agency Vendor Report",0,"Northwest Tennessee Development District",6273.47
1,"July",2022,2021,"Tennessee Arts Commission","Grants and Subsidies","Agency Vendor Report",0,"South Central Tennessee Development Dist",10489.83
1,"July",2022,2021,"Tennessee Arts Commission","Grants and Subsidies","Agency Vendor Report",0,"Marion County Board of Education",8386
1,"July",2022,2021,"Tennessee Arts Commission","Grants and Subsidies","Agency Vendor Report",0,"Moore County High School",4756.88
1,"July",2022,2021,"Tennessee Arts Commission","Grants and Subsidies","Agency Vendor Report",0,"Trousdale County Schools",4595
1,"July",2022,2021,"Tennessee Arts Commission","Grants and Subsidies","Agency Vendor Report",0,"University of Tennessee",7239.56
1,"July",2022,2021,"Safety","Prof Services Third Party","Agency Vendor Report",0,"Town Of Collierville Police Dept",275
1,"July",2022,2021,"Safety","Prof Services Third Party","Agency Vendor Report",0,"City Of Cookeville",60
1,"July",2022,2021,"Safety","Prof Services Third Party","Agency Vendor Report",0,"Cookeville Police Dept.",425
1,"July",2022,2021,"Safety","Grants and Subsidies","Agency Vendor Report",0,"Cookeville Police Dept.",2918.07
1,"July",2022,2021,"Safety","Prof Services Third Party","Agency Vendor Report",0,"City Of Covington TN",150
1,"July",2022,2021,"Safety","Prof Services Third Party","Agency Vendor Report",0,"Covington Police Dept",50
1,"July",2022,2021,"Safety","Prof Services Third Party","Agency Vendor Report",0,"City Of Crossville",640
1,"July",2022,2021,"Safety","Prof Services Third Party","Agency Vendor Report",0,"City Of Dayton",285
1,"July",2022,2021,"Safety","Prof Services Third Party","Agency Vendor Report",0,"City Of Dyersburg",590
1,"July",2022,2021,"Safety","Prof Services Third Party","Agency Vendor Report",0,"Dyersburg Police Department",25
1,"July",2022,2021,"Safety","Prof Services Third Party","Agency Vendor Report",0,"City Of Elizabethton",970
1,"July",2022,2021,"Safety","Prof Services Third Party","Agency Vendor Report",0,"City Of Etowah",260
1,"July",2022,2021,"Safety","Prof Services Third Party","Agency Vendor Report",0,"Etowah Police Department",50
1,"July",2022,2021,"Safety","Prof Services Third Party","Agency Vendor Report",0,"City Of Franklin",290
1,"July",2022,2021,"Safety","Prof Services Third Party","Agency Vendor Report",0,"Franklin Police Department",150
1,"July",2022,2021,"Safety","Prof Services Third Party","Agency Vendor Report",0,"City Of Gatlinburg",200
1,"July",2022,2021,"Safety","Prof Services Third Party","Agency Vendor Report",0,"Gatlinburg Police Dept",150
1,"July",2022,2021,"Safety","Prof Services Third Party","Agency Vendor Report",0,"TOWN OF GREENEVILLE",1260
1,"July",2022,2021,"Safety","Grants and Subsidies","Agency Vendor Report",0,"TOWN OF GREENEVILLE",515.69
1,"July",2022,2021,"Safety","Prof Services Third Party","Agency Vendor Report",0,"City Of Henderson",275
1,"July",2022,2021,"Safety","Prof Services Third Party","Agency Vendor Report",0,"City Of Hohenwald",140
1,"July",2022,2021,"Safety","Prof Services Third Party","Agency Vendor Report",0,"Town Of Huntingdon",120
1,"July",2022,2021,"Safety","Prof Services Third Party","Agency Vendor Report",0,"City Of Jackson",3110
1,"July",2022,2021,"Safety","Prof Services Third Party","Agency Vendor Report",0,"City Of Johnson City",1390
1,"July",2022,2021,"Safety","Grants and Subsidies","Agency Vendor Report",0,"City Of Kingsport",5241.63
1,"July",2022,2021,"Safety","Prof Services Third Party","Agency Vendor Report",0,"City Of Kingsport Tn",350
1,"July",2022,2021,"Safety","Prof Services Third Party","Agency Vendor Report",0,"City Of Lafayette",150
1,"July",2022,2021,"Safety","Prof Services Third Party","Agency Vendor Report",0,"Lafayette Police Department",50
1,"July",2022,2021,"Safety","Prof Services Third Party","Agency Vendor Report",0,"City Of Lebanon",1930
1,"July",2022,2021,"Safety","Prof Services Third Party","Agency Vendor Report",0,"City Of Livingston",70
1,"July",2022,2021,"Safety","Prof Services Third Party","Agency Vendor Report",0,"Livingston Police Department",25
1,"July",2022,2021,"Safety","Prof Services Third Party","Agency Vendor Report",0,"City Of Madisonville",180
1,"July",2022,2021,"Safety","Prof Services Third Party","Agency Vendor Report",0,"Madisonville Police Department",50
1,"July",2022,2021,"Safety","Utilities and Fuel","Agency Vendor Report",0,"City Of Manchester",40.04
1,"July",2022,2021,"Safety","Prof Services Third Party","Agency Vendor Report",0,"City Of Manchester",635
1,"July",2022,2021,"Safety","Grants and Subsidies","Agency Vendor Report",0,"Manchester Police Department",5183.89
1,"July",2022,2021,"Safety","Prof Services Third Party","Agency Vendor Report",0,"City Of Maryville",10
1,"July",2022,2021,"Revenue","Rentals and Insurance","Agency Vendor Report",0,"Glen Hill North LLC",3746.35
1,"July",2022,2021,"Revenue","Data Processing","Agency Vendor Report",0,"Canon Solutions America Inc",1401.1
1,"July",2022,2021,"Safety","Prof Services Third Party","Agency Vendor Report",0,"Lincoln Co Gen Sessions Clerk",700
1,"July",2022,2021,"Safety","Prof Services Third Party","Agency Vendor Report",0,"City Of Sunbright",10
1,"July",2022,2021,"Safety","Prof Services Third Party","Agency Vendor Report",0,"Benton County General Sessions Clerk",450
1,"July",2022,2021,"Safety","Prof Services Third Party","Agency Vendor Report",0,"City Of Plainview",35
1,"July",2022,2021,"Safety","Grants and Subsidies","Agency Vendor Report",0,"Wilson County Trustee",14493.67
1,"July",2022,2021,"Safety","Prof Services Third Party","Agency Vendor Report",0,"Wilson County Sheriffs Office",975
1,"July",2022,2021,"Safety","Prof Services Third Party","Agency Vendor Report",0,"Town Of Unicoi",40
1,"July",2022,2021,"Safety","Prof Services Third Party","Agency Vendor Report",0,"Blount Co Circuit Court Clk",150
1,"July",2022,2021,"Safety","Prof Services Third Party","Agency Vendor Report",0,"Town Of Pleasant View",160
1,"July",2022,2021,"Safety","Prof Services Third Party","Agency Vendor Report",0,"TOWN OF NOLENSVILLE",75
1,"July",2022,2021,"Safety","Prof Services Third Party","Agency Vendor Report",0,"Town Of Nolensville",120
1,"July",2022,2021,"Safety","Prof Services Third Party","Agency Vendor Report",0,"Town Of Coopertown",110
1,"July",2022,2021,"Safety","Grants and Subsidies","Agency Vendor Report",0,"Town Of Coopertown",697.5
1,"July",2022,2021,"Safety","Prof Services Third Party","Agency Vendor Report",0,"Coopertown Police Department",150
1,"July",2022,2021,"Safety","Prof Services Third Party","Agency Vendor Report",0,"Unicoi County Sheriff Department",25
1,"July",2022,2021,"Safety","Prof Services Third Party","Agency Vendor Report",0,"TOWN OF BEAN STATION",360
1,"July",2022,2021,"Safety","Grants and Subsidies","Agency Vendor Report",0,"Wayne County Trustee",1245.97
1,"July",2022,2021,"Safety","Prof Services Third Party","Agency Vendor Report",0,"Grainger County Sheriff Department",165
1,"July",2022,2021,"Safety","Grants and Subsidies","Agency Vendor Report",0,"Grainger County Sheriff Department",2187.8
1,"July",2022,2021,"Safety","Prof Services Third Party","Agency Vendor Report",0,"City Of Belle Meade",155
1,"July",2022,2021,"Safety","Prof Services Third Party","Agency Vendor Report",0,"City Of Bolivar",370
1,"July",2022,2021,"Safety","Prof Services Third Party","Agency Vendor Report",0,"Bolivar Police Department",125
1,"July",2022,2021,"Safety","Prof Services Third Party","Agency Vendor Report",0,"City Of Brownsville",330
1,"July",2022,2021,"Safety","Prof Services Third Party","Agency Vendor Report",0,"Brownsville Police Department",50
1,"July",2022,2021,"Safety","Prof Services Third Party","Agency Vendor Report",0,"Town Of Bruceton",75
1,"July",2022,2021,"Safety","Prof Services Third Party","Agency Vendor Report",0,"City Of Clarksville",2250
1,"July",2022,2021,"Safety","Prof Services Third Party","Agency Vendor Report",0,"City of Clarksville",175
1,"July",2022,2021,"Safety","Prof Services Third Party","Agency Vendor Report",0,"City Of Cleveland",620
1,"July",2022,2021,"Safety","Grants and Subsidies","Agency Vendor Report",0,"Cleveland Police Department",9425.13
1,"July",2022,2021,"Safety","Prof Services Third Party","Agency Vendor Report",0,"City Of Clinton",310
1,"July",2022,2021,"Safety","Prof Services Third Party","Agency Vendor Report",0,"Clinton Police Department",125
1,"July",2022,2021,"Safety","Prof Services Third Party","Agency Vendor Report",0,"Columbia Police Department",880
1,"July",2022,2021,"Safety","Prof Services Third Party","Agency Vendor Report",0,"City of Copperhill",25
1,"July",2022,2021,"Safety","Prof Services Third Party","Agency Vendor Report",0,"City Of Cowan",120
1,"July",2022,2021,"Safety","Prof Services Third Party","Agency Vendor Report",0,"City Of Dyer",140
1,"July",2022,2021,"Safety","Prof Services Third Party","Agency Vendor Report",0,"Town Of Englewood",100
1,"July",2022,2021,"Safety","Grants and Subsidies","Agency Vendor Report",0,"Town Of Englewood",3334.24
1,"July",2022,2021,"Safety","Prof Services Third Party","Agency Vendor Report",0,"City Of Erwin",55
1,"July",2022,2021,"Safety","Prof Services Third Party","Agency Vendor Report",0,"City Of Fayetteville",90
1,"July",2022,2021,"Safety","Prof Services Third Party","Agency Vendor Report",0,"Fayetteville Police Department",200
1,"July",2022,2021,"Safety","Prof Services Third Party","Agency Vendor Report",0,"City Of Greenfield Police Dept",75
1,"July",2022,2021,"Safety","Prof Services Third Party","Agency Vendor Report",0,"City Of Harriman",180
1,"July",2022,2021,"Safety","Prof Services Third Party","Agency Vendor Report",0,"Harriman Police Department",100
1,"July",2022,2021,"Safety","Prof Services Third Party","Agency Vendor Report",0,"City Of Humboldt",110
1,"July",2022,2021,"Safety","Prof Services Third Party","Agency Vendor Report",0,"Humboldt Police Dept",100
1,"July",2022,2021,"Safety","Prof Services Third Party","Agency Vendor Report",0,"City Of Jefferson City",300
1,"July",2022,2021,"Safety","Prof Services Third Party","Agency Vendor Report",0,"Jefferson City Police Department",200
1,"July",2022,2021,"Safety","Prof Services Third Party","Agency Vendor Report",0,"Town of Jonesborough",70
1,"July",2022,2021,"Safety","Prof Services Third Party","Agency Vendor Report",0,"Jonesborough Police Department",25
1,"July",2022,2021,"Safety","Prof Services Third Party","Agency Vendor Report",0,"City Of Knoxville Police Department",875
1,"July",2022,2021,"Safety","Prof Services Third Party","Agency Vendor Report",0,"City Of Lafollette",190
1,"July",2022,2021,"Safety","Grants and Subsidies","Agency Vendor Report",0,"La Follette Police Dept",1137.39
1,"July",2022,2021,"Safety","Prof Services Third Party","Agency Vendor Report",0,"Lafollette Police Department",125
1,"July",2022,2021,"Safety","Prof Services Third Party","Agency Vendor Report",0,"City of Rocky Top",145
1,"July",2022,2021,"Safety","Prof Services Third Party","Agency Vendor Report",0,"City Of Lawrenceburg",330
1,"July",2022,2021,"Safety","Prof Services Third Party","Agency Vendor Report",0,"City Of Lenoir City",160
1,"July",2022,2021,"Safety","Prof Services Third Party","Agency Vendor Report",0,"Lenoir City Police Department",100
1,"July",2022,2021,"Safety","Grants and Subsidies","Agency Vendor Report",0,"Lenoir City Treasurer Recorder",6055.95
1,"July",2022,2021,"Safety","Prof Services Third Party","Agency Vendor Report",0,"City Of Lewisburg",395
1,"July",2022,2021,"Safety","Prof Services Third Party","Agency Vendor Report",0,"City Of Lexington",170
1,"July",2022,2021,"Children's Services","Travel","CSD Payments",0,"Hampton Inn",768
1,"July",2022,2021,"Children's Services","Prof Services Third Party","CSD Payments",0,"ELITE BRENTWOOD REPORTING SERV",3096.8
1,"July",2022,2021,"Children's Services","Grants and Subsidies","CSD Payments",0,"ELITE BRENTWOOD REPORTING SERV",36.66
1,"July",2022,2021,"Children's Services","Grants and Subsidies","CSD Payments",0,"Rolling Hills Hospital",34000
1,"July",2022,2021,"Children's Services","Grants and Subsidies","CSD Payments",0,"Safe Harbor Child Advocacy Center Inc",9333.37
1,"July",2022,2021,"Children's Services","Prof Services Third Party","CSD Payments",0,"Health Connect America Inc",8187.5
1,"July",2022,2021,"Environment and Conservation","Maint and Repairs","Agency Vendor Report",0,"UPCHURCH PLUMBING INC",62947.48
1,"July",2022,2021,"Environment and Conservation","Inventory","Agency Vendor Report",0,"Jr RangerLand",154.6
1,"July",2022,2021,"Correction","Supplies and Materials","Agency Vendor Report",0,"Symbolarts, Llc",249
1,"July",2022,2021,"Correction","Maint and Repairs","Agency Vendor Report",0,"Belfor USA Group Inc",2020068.1
1,"July",2022,2021,"Correction","Communications","Agency Vendor Report",0,"Pitney Bowes",85000
1,"July",2022,2021,"Correction","Supplies and Materials","Agency Vendor Report",0,"WOODWORKERS SUPPLY OF NEW MEXICO",117.75
1,"July",2022,2021,"Correction","Supplies and Materials","Agency Vendor Report",0,"Grizzly Industrial Inc",519.95
1,"July",2022,2021,"Correction","Supplies and Materials","Agency Vendor Report",0,"Amazon",2023.41
1,"July",2022,2021,"Correction","Motor Vehicle Operation","Agency Vendor Report",0,"Amazon",38.9
1,"July",2022,2021,"Correction","Grants and Subsidies","Agency Vendor Report",0,"Corrections Management Corp",27109.56
1,"July",2022,2021,"Correction","Prof Services Third Party","Agency Vendor Report",0,"Flynn Sign Company",6675
1,"July",2022,2021,"Correction","Maint and Repairs","Agency Vendor Report",0,"Central Sales Co Inc",85
1,"July",2022,2021,"Correction","Prof Services Third Party","Agency Vendor Report",0,"LexisNexis Risk Solutions",750
1,"July",2022,2021,"Correction","Prof Services Third Party","Agency Vendor Report",0,"Covington Animal Clinic",788
1,"July",2022,2021,"Correction","Travel","Agency Vendor Report",0,"Holiday Inn Select Vanderbilt",1431
1,"July",2022,2021,"Correction","Rentals and Insurance","Agency Vendor Report",0,"Auto-Chlor System",686
1,"July",2022,2021,"Correction","Communications","Agency Vendor Report",0,"FedEx",2740.02
1,"July",2022,2021,"Correction","Communications","Agency Vendor Report",0,"FedEx Freight",308
1,"July",2022,2021,"Correction","Supplies and Materials","Agency Vendor Report",0,"The Mulch Company",384
1,"July",2022,2021,"Correction","Supplies and Materials","Agency Vendor Report",0,"The Garden Barn",644.31
1,"July",2022,2021,"Correction","Travel","Agency Vendor Report",0,"Holiday Inn Express Hotel & Suites",480
1,"July",2022,2021,"Correction","Motor Vehicle Operation","Agency Vendor Report",0,"Fuelman",8168.19
1,"July",2022,2021,"Correction","Prof Services Third Party","Agency Vendor Report",0,"The Lamar Companies",6575
1,"July",2022,2021,"Correction","Prof Services Third Party","Agency Vendor Report",0,"Wenk/Wwkf",1979
1,"July",2022,2021,"Correction","Maint and Repairs","Agency Vendor Report",0,"Rose Construction Inc",21661.1
1,"July",2022,2021,"Correction","Grants and Subsidies","Agency Vendor Report",0,"Mid Cumberland Human Resource Agency",1500
1,"July",2022,2021,"Correction","Grants and Subsidies","Agency Vendor Report",0,"First Tn Human Resource Agency",8472.5
1,"July",2022,2021,"Correction","Maint and Repairs","Agency Vendor Report",0,"Guthrie Sales & Service Co Inc",6177
1,"July",2022,2021,"Correction","Supplies and Materials","Agency Vendor Report",0,"Jarvis Award Sign & Flag Co",256
1,"July",2022,2021,"Correction","Supplies and Materials","Agency Vendor Report",0,"CORRECTIONAL COUNSELING INC",4073.79
1,"July",2022,2021,"Correction","Rentals and Insurance","Agency Vendor Report",0,"East Tenn Rent-Alls",4197
1,"July",2022,2021,"Correction","Prof Services Third Party","Agency Vendor Report",0,"COUNSELING AND CONSULTATION SERVICES INC",5470
1,"July",2022,2021,"Correction","Travel","Agency Vendor Report",0,"Holiday Inn Express",3072
1,"July",2022,2021,"Correction","Supplies and Materials","Agency Vendor Report",0,"Colonial Hardware Inc",209.9
1,"July",2022,2021,"Correction","Supplies and Materials","Agency Vendor Report",0,"Johnstone Supply of Knoxville",1355.78
1,"July",2022,2021,"Correction","Maint and Repairs","Agency Vendor Report",0,"Grose Fire Protection Inc",1182.82
1,"July",2022,2021,"Correction","Prof Services Third Party","Agency Vendor Report",0,"Knoxville Center of the Deaf",849.45
1,"July",2022,2021,"Correction","Prof Services Third Party","Agency Vendor Report",0,"Burks Beverage LP",1600
1,"July",2022,2021,"Correction","Inventory","Agency Vendor Report",0,"Burks Beverage LP",15394.86
1,"July",2022,2021,"Correction","Supplies and Materials","Agency Vendor Report",0,"OFFICE DEPOT LLC",2077.09
1,"July",2022,2021,"Correction","Data Processing","Agency Vendor Report",0,"OFFICE DEPOT LLC",860.97
1,"July",2022,2021,"Correction","Supplies and Materials","Agency Vendor Report",0,"Office Depot Inc",1036.63
1,"July",2022,2021,"Correction","Data Processing","Agency Vendor Report",0,"Office Depot Inc",99.71
1,"July",2022,2021,"Correction","Prof Services Third Party","Agency Vendor Report",0,"Medical Education Assist Corp Dba Etsu",37900
1,"July",2022,2021,"District Attorneys General","Utilities and Fuel","Agency Vendor Report",0,"Volfirst",48.86
1,"July",2022,2021,"District Attorneys General","Communications","Agency Vendor Report",0,"Volfirst",64.95
1,"July",2022,2021,"District Attorneys General","Communications","Agency Vendor Report",0,"Ben Lomand Communications Inc",1276.58
1,"July",2022,2021,"District Attorneys General","Communications","Agency Vendor Report",0,"Highland Telephone Cooperative Inc",1233.34
1,"July",2022,2021,"District Attorneys General","Printing and Duplicating","Agency Vendor Report",0,"Lanzers Printing And Office Supply",90.7
1,"July",2022,2021,"District Attorneys General","Supplies and Materials","Agency Vendor Report",0,"Lanzers Printing And Office Supply",152.35
1,"July",2022,2021,"District Attorneys General","Data Processing","Agency Vendor Report",0,"Lanzers Printing And Office Supply",693.36
1,"July",2022,2021,"District Attorneys General","Rentals and Insurance","Agency Vendor Report",0,"M K T Rental",2100
1,"July",2022,2021,"District Attorneys General","Supplies and Materials","Agency Vendor Report",0,"McCollum Bottled Water",90.33
1,"July",2022,2021,"District Attorneys General","Rentals and Insurance","Agency Vendor Report",0,"McCollum Bottled Water",40.5
1,"July",2022,2021,"District Attorneys General","Printing and Duplicating","Agency Vendor Report",0,"A - Z Office Resource Inc",810
1,"July",2022,2021,"District Attorneys General","Supplies and Materials","Agency Vendor Report",0,"A - Z Office Resource Inc",2500.7
1,"July",2022,2021,"District Attorneys General","Data Processing","Agency Vendor Report",0,"A - Z Office Resource Inc",1072.78
1,"July",2022,2021,"District Attorneys General","Prof Services Third Party","Agency Vendor Report",0,"Eric S Engum Md",4200
1,"July",2022,2021,"District Attorneys General","Prof Services Third Party","Agency Vendor Report",0,"Kingsport Times-News",208
1,"July",2022,2021,"District Attorneys General","Rentals and Insurance","Agency Vendor Report",0,"American Data Management, Llc",281.35
1,"July",2022,2021,"District Attorneys General","Rentals and Insurance","Agency Vendor Report",0,"Thermocopy Of Tenn Inc",411.21
1,"July",2022,2021,"District Attorneys General","Maint and Repairs","Agency Vendor Report",0,"Lee Company",509
1,"July",2022,2021,"District Attorneys General","Supplies and Materials","Agency Vendor Report",0,"Office Mart",616.49
1,"July",2022,2021,"District Attorneys General","Rentals and Insurance","Agency Vendor Report",0,"K David Myers",1750
1,"July",2022,2021,"District Attorneys General","Prof Services Third Party","Agency Vendor Report",0,"Lori Bice",60
1,"July",2022,2021,"District Attorneys General","Supplies and Materials","Agency Vendor Report",0,"Purity Drinking Water LLC",5
1,"July",2022,2021,"District Attorneys General","Rentals and Insurance","Agency Vendor Report",0,"Purity Drinking Water LLC",119.8
1,"July",2022,2021,"District Attorneys General","Data Processing","Agency Vendor Report",0,"World Wide Technology LLC",222800.99
1,"July",2022,2021,"District Attorneys General","Prof Services Third Party","Agency Vendor Report",0,"Charrel Gambill",7
1,"July",2022,2021,"District Attorneys General","Prof Services Third Party","Agency Vendor Report",0,"Official Court Reporter for St",396
1,"July",2022,2021,"District Attorneys General","Prof Services Third Party","Agency Vendor Report",0,"Amy Mays",480.5
1,"July",2022,2021,"District Attorneys General","Maint and Repairs","Agency Vendor Report",0,"Pam White Lewis",400
1,"July",2022,2021,"Children's Services","Grants and Subsidies","CSD Payments",0,"Tristan Shawn Parker",274.48
1,"July",2022,2021,"Children's Services","Communications","CSD Payments",0,"At & T",-6.3
1,"July",2022,2021,"Children's Services","Grants and Subsidies","CSD Payments",0,"Annie J Jones",187.2
1,"July",2022,2021,"Children's Services","Prof Services Third Party","CSD Payments",0,"FOUNDATIONS FOR LIFE PRINCIPLES LLC",19552.5
1,"July",2022,2021,"Children's Services","Grants and Subsidies","CSD Payments",0,"FOUNDATIONS FOR LIFE PRINCIPLES LLC",50540
1,"July",2022,2021,"Children's Services","Prof Services Third Party","CSD Payments",0,"Frizzell & Frizzell PLLC",1254.5
1,"July",2022,2021,"Children's Services","Prof Services Third Party","CSD Payments",0,"Robert Steven Randolph",1381.5
1,"July",2022,2021,"Health","Prof Services Third Party","Agency Vendor Report",0,"Gamma Healthcare Inc",21000
1,"July",2022,2021,"Health","Data Processing","Agency Vendor Report",0,"Netsmart Technologies Inc",76148.86
1,"July",2022,2021,"Health","Prof Services Third Party","Agency Vendor Report",0,"CHAD S BOOMERSHINE",18000
1,"July",2022,2021,"Health","Data Processing","Agency Vendor Report",0,"Abbott Informatics Corporation",32620.79
1,"July",2022,2021,"Health","Grants and Subsidies","Agency Vendor Report",0,"Tennessee Federation of Fire Chaplains",10984.44
1,"July",2022,2021,"Health","Supplies and Materials","Agency Vendor Report",0,"Health & Wellness Compounding Pharmacy",3400.6
1,"July",2022,2021,"Health","Prof Services Third Party","Agency Vendor Report",0,"Melinda Dye Oldham",271.62
1,"July",2022,2021,"Health","Supplies and Materials","Agency Vendor Report",0,"O2SI Smart Solutions",2620.09
1,"July",2022,2021,"Health","Maint and Repairs","Agency Vendor Report",0,"Specialty Underwriters LLC",67257.5
1,"July",2022,2021,"Health","Travel","Agency Vendor Report",0,"Holiday Inn Express",705.6
1,"July",2022,2021,"Health","Maint and Repairs","Agency Vendor Report",0,"Welch Allyn Inc",499
1,"July",2022,2021,"Health","Supplies and Materials","Agency Vendor Report",0,"Right Source",2374.76
1,"July",2022,2021,"Health","Prof Services Third Party","Agency Vendor Report",0,"Providence Medical Clinic of K",679.06
1,"July",2022,2021,"Health","Training","Agency Vendor Report",0,"We R CPR LLC",32
1,"July",2022,2021,"Health","Prof Services Third Party","Agency Vendor Report",0,"Bryan Myers MD PC",1127.49
1,"July",2022,2021,"Health","Prof Services Third Party","Agency Vendor Report",0,"Free Medical Clinic of Oak Ridge Inc",5004.18
1,"July",2022,2021,"Health","Supplies and Materials","Agency Vendor Report",0,"Free Medical Clinic of Oak Ridge Inc",773
1,"July",2022,2021,"Health","Grants and Subsidies","Agency Vendor Report",0,"Free Medical Clinic of Oak Ridge Inc",2833.09
1,"July",2022,2021,"Health","Supplies and Materials","Agency Vendor Report",0,"Luminex Corporation",18126
1,"July",2022,2021,"Health","Supplies and Materials","Agency Vendor Report",0,"Crystal Springs",925.95
1,"July",2022,2021,"Health","Prof Services Third Party","Agency Vendor Report",0,"Metropolitan Hospital Authority",2596.69
1,"July",2022,2021,"Health","Prof Services Third Party","Agency Vendor Report",0,"Brush Art Corporation",54530
1,"July",2022,2021,"Health","Prof Services Third Party","Agency Vendor Report",0,"Womens Health Center",157.68
1,"July",2022,2021,"Health","Prof Services Third Party","Agency Vendor Report",0,"UT LeBonheur Pediatric Special",132.3
1,"July",2022,2021,"Health","Data Processing","Agency Vendor Report",0,"Prolifics Inc",125000
1,"July",2022,2021,"Health","Prof Services Third Party","Agency Vendor Report",0,"West Tennessee Medical Group Inc",3402.13
1,"July",2022,2021,"Health","Prof Services Third Party","Agency Vendor Report",0,"Center For Orthotics & Prosthetics",2832.16
1,"July",2022,2021,"Health","Grants and Subsidies","Agency Vendor Report",0,"Full Circle Womens Services",7500
1,"July",2022,2021,"Health","Grants and Subsidies","Agency Vendor Report",0,"Life Choices CPC of Dyersburg",8013.25
1,"July",2022,2021,"Health","Prof Services Third Party","Agency Vendor Report",0,"Professional Audiological Services Inc",2732.54
1,"July",2022,2021,"Health","Prof Services Third Party","Agency Vendor Report",0,"Xtend Healthcare LLC",4317035.08
1,"July",2022,2021,"Health","Prof Services Third Party","Agency Vendor Report",0,"Metro Knoxville HMA LLC",187.38
1,"July",2022,2021,"Health","Prof Services Third Party","Agency Vendor Report",0,"Tennova Healthcare Jefferson M",167.49
1,"July",2022,2021,"Health","Prof Services Third Party","Agency Vendor Report",0,"Cocke County HMA LLC",5154.01
1,"July",2022,2021,"Health","Prof Services Third Party","Agency Vendor Report",0,"Knoxville HMA Physicians Mgmt",1378.11
1,"July",2022,2021,"Health","Prof Services Third Party","Agency Vendor Report",0,"Middle TN Surgical Associates PLLC",122.31
1,"July",2022,2021,"Health","Prof Services Third Party","Agency Vendor Report",0,"Merril Harris",36.19
1,"July",2022,2021,"Health","Prof Services Third Party","Agency Vendor Report",0,"Tennessee Imaging Consultants",483.54
1,"July",2022,2021,"Health","Supplies and Materials","Agency Vendor Report",0,"Maine Molecular Quality Controls Inc",647.75
1,"July",2022,2021,"Health","Supplies and Materials","Agency Vendor Report",0,"Cookeville Pharmacy LLC",30
1,"July",2022,2021,"Health","Prof Services Third Party","Agency Vendor Report",0,"Prevent Child Abuse America",1600
1,"July",2022,2021,"Health","Supplies and Materials","Agency Vendor Report",0,"Airgas USA LLC",553.4
1,"July",2022,2021,"Health","Rentals and Insurance","Agency Vendor Report",0,"Airgas USA LLC",573.44
1,"July",2022,2021,"Health","Rentals and Insurance","Agency Vendor Report",0,"Enterprise Holdings Inc",8719.79
1,"July",2022,2021,"Health","Communications","Agency Vendor Report",0,"NI GOVERNMENT SERVICES INC",973.49
1,"July",2022,2021,"Health","Prof Services Third Party","Agency Vendor Report",0,"John H Epler PhD",5000
1,"July",2022,2021,"Health","Prof Services Third Party","Agency Vendor Report",0,"Ballad Health Medical Associates",1185.93
1,"July",2022,2021,"Health","Prof Services Third Party","Agency Vendor Report",0,"Food Rite #7",75.95
1,"July",2022,2021,"Health","Prof Services Third Party","Agency Vendor Report",0,"Michael E Cole MD PLLC",580.32
1,"July",2022,2021,"Health","Prof Services Third Party","Agency Vendor Report",0,"Panera LLC",125.1
1,"July",2022,2021,"Health","Prof Services Third Party","Agency Vendor Report",0,"Ashley Dewitt DO PC",281.05
1,"July",2022,2021,"Health","Supplies and Materials","Agency Vendor Report",0,"Numotion",5297.47
1,"July",2022,2021,"Health","Grants and Subsidies","Agency Vendor Report",0,"Tennessee Chapter of the American",5026.82
1,"July",2022,2021,"Health","Supplies and Materials","Agency Vendor Report",0,"R & M Family Pharmacy",60
1,"July",2022,2021,"Health","Rentals and Insurance","Agency Vendor Report",0,"Canon Solutions America Inc",87142.14
1,"July",2022,2021,"Health","Data Processing","Agency Vendor Report",0,"Canon Solutions America Inc",446.27
1,"July",2022,2021,"Health","Data Processing","Agency Vendor Report",0,"Western Michigan University",10240
1,"July",2022,2021,"Health","Supplies and Materials","Agency Vendor Report",0,"Medex Biocare",120
1,"July",2022,2021,"Health","Prof Services Third Party","Agency Vendor Report",0,"Celia Skelley",2766.38
1,"July",2022,2021,"Health","Supplies and Materials","Agency Vendor Report",0,"Cribs for Kids Inc",187
1,"July",2022,2021,"Human Services","Grants and Subsidies","Agency Vendor Report",0,"Southwest Human Resource Agency",793879.47
1,"July",2022,2021,"Children's Services","Prof Services Third Party","CSD Payments",0,"GONZALES WEEKLY CITIZEN PLAQUEMINE POST",495
1,"July",2022,2021,"Children's Services","Grants and Subsidies","CSD Payments",0,"Compassionate Care Inc",96990
1,"July",2022,2021,"Children's Services","Prof Services Third Party","CSD Payments",0,"ShearsPoint Inc",656
1,"July",2022,2021,"Human Services","Prof Services Third Party","Agency Vendor Report",0,"State Of Wyoming",10
1,"July",2022,2021,"Human Services","Grants and Subsidies","Agency Vendor Report",0,"Little Hands Christian Child Care Ctr",14184.51
1,"July",2022,2021,"Human Services","Grants and Subsidies","Agency Vendor Report",0,"Home Away From Home Child Care Ctr",14208.82
1,"July",2022,2021,"Human Services","Grants and Subsidies","Agency Vendor Report",0,"21st Century Cdc",4778.85
1,"July",2022,2021,"Human Services","Grants and Subsidies","Agency Vendor Report",0,"Ocoee Pediatrics Of Cleveland PC",20
1,"July",2022,2021,"Human Services","Prof Services Third Party","Agency Vendor Report",0,"IDEMIA IDENTITY AND SECURITY USA",1757.5
1,"July",2022,2021,"Human Services","Grants and Subsidies","Agency Vendor Report",0,"Creative Learning LLC",6081.82
1,"July",2022,2021,"Revenue","Grants and Subsidies","Agency Vendor Report",0,"City Of Union City",191179.64
1,"July",2022,2021,"Revenue","State Shared Taxes","Agency Vendor Report",0,"City Of Union City",8616.96
1,"July",2022,2021,"Revenue","Grants and Subsidies","Agency Vendor Report",0,"City Of Waverly",60729.82
1,"July",2022,2021,"Revenue","State Shared Taxes","Agency Vendor Report",0,"City Of Waverly",1074.13
1,"July",2022,2021,"Revenue","Grants and Subsidies","Agency Vendor Report",0,"Trustee Chester County",197758.7
1,"July",2022,2021,"Revenue","State Shared Taxes","Agency Vendor Report",0,"Trustee Chester County",373725.91
1,"July",2022,2021,"Revenue","Grants and Subsidies","Agency Vendor Report",0,"McNairy County Clerk",865.59
1,"July",2022,2021,"Revenue","Grants and Subsidies","Agency Vendor Report",0,"Trustee Morgan County",242521.38
1,"July",2022,2021,"Revenue","State Shared Taxes","Agency Vendor Report",0,"Trustee Morgan County",192191.29
1,"July",2022,2021,"Revenue","Grants and Subsidies","Agency Vendor Report",0,"Polk County Clerk",348.07
1,"July",2022,2021,"Revenue","State Shared Taxes","Agency Vendor Report",0,"Polk County Clerk",3947.25
1,"July",2022,2021,"Revenue","Prof Services Third Party","Agency Vendor Report",0,"Register Of Deeds",48
1,"July",2022,2021,"Revenue","Grants and Subsidies","Agency Vendor Report",0,"City Of Parsons",45927.19
1,"July",2022,2021,"Revenue","State Shared Taxes","Agency Vendor Report",0,"City Of Parsons",181.92
1,"July",2022,2021,"Revenue","Grants and Subsidies","Agency Vendor Report",0,"City Of Dresden",43590.25
1,"July",2022,2021,"Revenue","State Shared Taxes","Agency Vendor Report",0,"City Of Dresden",84.37
1,"July",2022,2021,"Revenue","Grants and Subsidies","Agency Vendor Report",0,"City Of Smithville",63562.08
1,"July",2022,2021,"Revenue","State Shared Taxes","Agency Vendor Report",0,"City Of Smithville",2679.41
1,"July",2022,2021,"Revenue","Grants and Subsidies","Agency Vendor Report",0,"City Of Jamestown",35908.3
1,"July",2022,2021,"Revenue","State Shared Taxes","Agency Vendor Report",0,"City Of Jamestown",936.53
1,"July",2022,2021,"Revenue","Grants and Subsidies","Agency Vendor Report",0,"City Of Woodbury",39946.45
1,"July",2022,2021,"Revenue","State Shared Taxes","Agency Vendor Report",0,"City Of Woodbury",208.35
1,"July",2022,2021,"Revenue","Grants and Subsidies","Agency Vendor Report",0,"Town Of Carthage",33459.1
1,"July",2022,2021,"Revenue","State Shared Taxes","Agency Vendor Report",0,"Town Of Carthage",72816.27
1,"July",2022,2021,"Revenue","Grants and Subsidies","Agency Vendor Report",0,"City Of Decatur",22475.4
1,"July",2022,2021,"Revenue","State Shared Taxes","Agency Vendor Report",0,"City Of Decatur",388.38
1,"July",2022,2021,"Revenue","Grants and Subsidies","Agency Vendor Report",0,"City Of Bartlett",881710.68
1,"July",2022,2021,"Revenue","State Shared Taxes","Agency Vendor Report",0,"City Of Bartlett",529978.92
1,"July",2022,2021,"Revenue","Grants and Subsidies","Agency Vendor Report",0,"City Of Linden",13365.91
1,"July",2022,2021,"Revenue","State Shared Taxes","Agency Vendor Report",0,"City Of Linden",4570.6
1,"July",2022,2021,"Revenue","Grants and Subsidies","Agency Vendor Report",0,"Town Of Jasper",48201.97
1,"July",2022,2021,"Revenue","State Shared Taxes","Agency Vendor Report",0,"Town Of Jasper",191.77
1,"July",2022,2021,"Revenue","Grants and Subsidies","Agency Vendor Report",0,"City of Dunlap",76098.51
1,"July",2022,2021,"Revenue","State Shared Taxes","Agency Vendor Report",0,"City of Dunlap",66773.92
1,"July",2022,2021,"Revenue","Grants and Subsidies","Agency Vendor Report",0,"Town of Tracy City",20261.13
1,"July",2022,2021,"Revenue","State Shared Taxes","Agency Vendor Report",0,"Town of Tracy City",11270.24
1,"July",2022,2021,"Correction","Prof Services Third Party","Agency Vendor Report",0,"Community Rehabilitation Agencies Of Tn",60376.54
1,"July",2022,2021,"Correction","Supplies and Materials","Agency Vendor Report",0,"Community Rehabilitation Agencies Of Tn",37886.72
1,"July",2022,2021,"Education","Grants and Subsidies","Agency Vendor Report",0,"Trustee Of Fayette County",116352.88
1,"July",2022,2021,"Education","Grants and Subsidies","Agency Vendor Report",0,"Trustee Franklin County",1149594.44
1,"July",2022,2021,"Education","Grants and Subsidies","Agency Vendor Report",0,"Giles County Trustee",1307554.51
1,"July",2022,2021,"Education","Grants and Subsidies","Agency Vendor Report",0,"Trustee Grundy County",1061.28
1,"July",2022,2021,"Education","Grants and Subsidies","Agency Vendor Report",0,"Hamblen County Department of Education",829313.01
1,"July",2022,2021,"Education","Prof Services Third Party","Agency Vendor Report",0,"Hamilton County School System",1344
1,"July",2022,2021,"Education","Grants and Subsidies","Agency Vendor Report",0,"Hamilton County Trustee",930656.16
1,"July",2022,2021,"Education","Grants and Subsidies","Agency Vendor Report",0,"Trustee Hancock County",266913.95
1,"July",2022,2021,"Education","Grants and Subsidies","Agency Vendor Report",0,"Trustee Hardeman County",797493.28
1,"July",2022,2021,"Education","Grants and Subsidies","Agency Vendor Report",0,"Hardin County Trustee",612704.26
1,"July",2022,2021,"Education","Grants and Subsidies","Agency Vendor Report",0,"Henderson County Trustee",18967.76
1,"July",2022,2021,"Safety","Grants and Subsidies","Agency Vendor Report",0,"Dickson County Sheriffs Office",11764.21
1,"July",2022,2021,"Safety","Prof Services Third Party","Agency Vendor Report",0,"Dickson County Sheriff Department",210
1,"July",2022,2021,"Safety","Prof Services Third Party","Agency Vendor Report",0,"Dickson County Circuit Court Clerk",170
1,"July",2022,2021,"Safety","Prof Services Third Party","Agency Vendor Report",0,"Dickson County General Sessions Court",1400
1,"July",2022,2021,"Safety","Prof Services Third Party","Agency Vendor Report",0,"Dyer County Sheriff",150
1,"July",2022,2021,"Safety","Prof Services Third Party","Agency Vendor Report",0,"Dyer Co Juvenile Clerk",10
1,"July",2022,2021,"Safety","Prof Services Third Party","Agency Vendor Report",0,"Dyer County General Sessions And",460
1,"July",2022,2021,"Safety","Prof Services Third Party","Agency Vendor Report",0,"General Sessions Court",710
1,"July",2022,2021,"Safety","Prof Services Third Party","Agency Vendor Report",0,"FRANKLIN COUNTY",90
1,"July",2022,2021,"Safety","Prof Services Third Party","Agency Vendor Report",0,"Franklin County Juvenile Court",10
1,"July",2022,2021,"Safety","Prof Services Third Party","Agency Vendor Report",0,"Franklin County General Sessions Court",570
1,"July",2022,2021,"Safety","Prof Services Third Party","Agency Vendor Report",0,"General Sessions Court",1540
1,"July",2022,2021,"Safety","Prof Services Third Party","Agency Vendor Report",0,"Greene Co Criminal Clerk",110
1,"July",2022,2021,"Education","Prof Services Third Party","Agency Vendor Report",0,"ELIZABETH EDKIN",3266.64
1,"July",2022,2021,"Education","Prof Services Third Party","Agency Vendor Report",0,"CALEB CASTILLO",2833.31
1,"July",2022,2021,"Education","Prof Services Third Party","Agency Vendor Report",0,"IESHIA HOYE",1777.76
1,"July",2022,2021,"Education","Prof Services Third Party","Agency Vendor Report",0,"LORI  E ECHOLS",1152.77
1,"July",2022,2021,"Education","Grants and Subsidies","Agency Vendor Report",0,"NOTRE DAME HIGH SCHOOL",599863.74
1,"July",2022,2021,"Education","Grants and Subsidies","Agency Vendor Report",0,"IMMACULATE CONCEPTION SCHOOL",98553.56
1,"July",2022,2021,"District Attorneys General","Rentals and Insurance","Agency Vendor Report",0,"Foutchs Coffee & Spring Water Inc",54
1,"July",2022,2021,"District Attorneys General","Rentals and Insurance","Agency Vendor Report",0,"Tennessee Municipal League",29918.01
1,"July",2022,2021,"District Attorneys General","Communications","Agency Vendor Report",0,"Twin Lakes Telephone Cooperative Corp",1238.79
1,"July",2022,2021,"District Attorneys General","Maint and Repairs","Agency Vendor Report",0,"Twin Lakes Telephone Cooperative Corp",50
1,"July",2022,2021,"Revenue","Grants and Subsidies","Agency Vendor Report",0,"Fayette County Clerk",5371.1
1,"July",2022,2021,"Revenue","State Shared Taxes","Agency Vendor Report",0,"Fayette County Clerk",52.67
1,"July",2022,2021,"Revenue","Prof Services Third Party","Agency Vendor Report",0,"Register Of Deeds",60
1,"July",2022,2021,"Revenue","Grants and Subsidies","Agency Vendor Report",0,"Trustee Of Fayette County",395594.69
1,"July",2022,2021,"Revenue","State Shared Taxes","Agency Vendor Report",0,"Trustee Of Fayette County",1086298.35
1,"July",2022,2021,"Revenue","Grants and Subsidies","Agency Vendor Report",0,"Franklin County Clerk",1212.16
1,"July",2022,2021,"Revenue","Grants and Subsidies","Agency Vendor Report",0,"Trustee Franklin County",339639.76
1,"July",2022,2021,"Revenue","State Shared Taxes","Agency Vendor Report",0,"Trustee Franklin County",1203715.04
1,"July",2022,2021,"Revenue","Grants and Subsidies","Agency Vendor Report",0,"Gibson County Clerk",5628.51
1,"July",2022,2021,"Revenue","State Shared Taxes","Agency Vendor Report",0,"Gibson County Clerk",687.62
1,"July",2022,2021,"Revenue","Prof Services Third Party","Agency Vendor Report",0,"Register Of Deeds",48
1,"July",2022,2021,"Revenue","Grants and Subsidies","Agency Vendor Report",0,"Gibson County Trustee",310831.09
1,"July",2022,2021,"Revenue","State Shared Taxes","Agency Vendor Report",0,"Gibson County Trustee",1518938.72
1,"July",2022,2021,"Revenue","Prof Services Third Party","Agency Vendor Report",0,"Register Of Deeds",24
1,"July",2022,2021,"Revenue","Grants and Subsidies","Agency Vendor Report",0,"Trustee Giles County",290399.47
1,"July",2022,2021,"Revenue","State Shared Taxes","Agency Vendor Report",0,"Trustee Giles County",986911.6
1,"July",2022,2021,"Revenue","Prof Services Third Party","Agency Vendor Report",0,"Register Of Deeds",12
1,"July",2022,2021,"Revenue","Grants and Subsidies","Agency Vendor Report",0,"Grundy County Clerk",1436.35
1,"July",2022,2021,"Revenue","Grants and Subsidies","Agency Vendor Report",0,"Trustee Grundy County",206237.79
1,"July",2022,2021,"Revenue","State Shared Taxes","Agency Vendor Report",0,"Trustee Grundy County",213210.64
1,"July",2022,2021,"Revenue","Prof Services Third Party","Agency Vendor Report",0,"Hamilton County Register Of Deeds",528
1,"July",2022,2021,"Revenue","Grants and Subsidies","Agency Vendor Report",0,"Hamilton County Trustee",1592366.02
1,"July",2022,2021,"Revenue","State Shared Taxes","Agency Vendor Report",0,"Hamilton County Trustee",16993373.84
1,"July",2022,2021,"Revenue","Prof Services Third Party","Agency Vendor Report",0,"REGISTER OF DEEDS",12
1,"July",2022,2021,"Revenue","Grants and Subsidies","Agency Vendor Report",0,"Trustee Hardeman County",261345.41
1,"July",2022,2021,"Revenue","State Shared Taxes","Agency Vendor Report",0,"Trustee Hardeman County",520267.45
1,"July",2022,2021,"Revenue","Prof Services Third Party","Agency Vendor Report",0,"Register Of Deeds",24
1,"July",2022,2021,"Revenue","Grants and Subsidies","Agency Vendor Report",0,"Hardin County Clerk",3551.7
1,"July",2022,2021,"Revenue","State Shared Taxes","Agency Vendor Report",0,"Hardin County Clerk",22933.45
1,"July",2022,2021,"Revenue","Grants and Subsidies","Agency Vendor Report",0,"City Of Gruetli-Laager",23465.41
1,"July",2022,2021,"Revenue","Grants and Subsidies","Agency Vendor Report",0,"Town Of Farragut",606110.23
1,"July",2022,2021,"Revenue","State Shared Taxes","Agency Vendor Report",0,"Town Of Farragut",78.9
1,"July",2022,2021,"Revenue","Grants and Subsidies","Agency Vendor Report",0,"City Of Philadelphia",8484.72
1,"July",2022,2021,"Revenue","Grants and Subsidies","Agency Vendor Report",0,"Trustee Knox County",2113777.85
1,"July",2022,2021,"Revenue","State Shared Taxes","Agency Vendor Report",0,"Trustee Knox County",23343520.92
1,"July",2022,2021,"Revenue","Grants and Subsidies","Agency Vendor Report",0,"Lauderdale County Trustee",238194.97
1,"July",2022,2021,"Revenue","State Shared Taxes","Agency Vendor Report",0,"Lauderdale County Trustee",470865.39
1,"July",2022,2021,"Revenue","Grants and Subsidies","Agency Vendor Report",0,"Trustee Lincoln County",298859.08
1,"July",2022,2021,"Revenue","State Shared Taxes","Agency Vendor Report",0,"Trustee Lincoln County",969324.43
1,"July",2022,2021,"Revenue","Prof Services Third Party","Agency Vendor Report",0,"Lincoln County Register Of Deeds",36
1,"July",2022,2021,"Revenue","Prof Services Third Party","Agency Vendor Report",0,"Register Of Deeds",72
1,"July",2022,2021,"Revenue","Grants and Subsidies","Agency Vendor Report",0,"Loudon County Clerk",3186.19
1,"July",2022,2021,"Revenue","Grants and Subsidies","Agency Vendor Report",0,"Loudon County Government",546408.61
1,"July",2022,2021,"Revenue","State Shared Taxes","Agency Vendor Report",0,"Loudon County Government",1583438.34
1,"July",2022,2021,"Revenue","Prof Services Third Party","Agency Vendor Report",0,"Register Of Deeds",12
1,"July",2022,2021,"Revenue","Grants and Subsidies","Agency Vendor Report",0,"Macon County Clerk",3449.16
1,"July",2022,2021,"Revenue","State Shared Taxes","Agency Vendor Report",0,"Macon County Clerk",256.94
1,"July",2022,2021,"Revenue","Grants and Subsidies","Agency Vendor Report",0,"Macon County Trustee",219121.4
1,"July",2022,2021,"Revenue","State Shared Taxes","Agency Vendor Report",0,"Macon County Trustee",637709.36
1,"July",2022,2021,"Revenue","Prof Services Third Party","Agency Vendor Report",0,"Register Of Deeds",120
1,"July",2022,2021,"Safety","Prof Services Third Party","Agency Vendor Report",0,"Washington County General Sessions Court",3520
1,"July",2022,2021,"Safety","Prof Services Third Party","Agency Vendor Report",0,"Trustee Weakley County",25
1,"July",2022,2021,"Safety","Prof Services Third Party","Agency Vendor Report",0,"General Session Court",290
1,"July",2022,2021,"Safety","Prof Services Third Party","Agency Vendor Report",0,"White Co Criminal Clerk",30
1,"July",2022,2021,"Safety","Prof Services Third Party","Agency Vendor Report",0,"White County Sheriffs Dept",125
1,"July",2022,2021,"Safety","Prof Services Third Party","Agency Vendor Report",0,"White Co Circuit Court Clerk",80
1,"July",2022,2021,"Safety","Prof Services Third Party","Agency Vendor Report",0,"Williamson County",40
1,"July",2022,2021,"Safety","Prof Services Third Party","Agency Vendor Report",0,"Williamson Co General Sessions",2290
1,"July",2022,2021,"Safety","Prof Services Third Party","Agency Vendor Report",0,"Wilson County General Sessions",2640
1,"July",2022,2021,"Safety","Prof Services Third Party","Agency Vendor Report",0,"Circuit Court Clerk Of Wilson Co",20
1,"July",2022,2021,"Safety","Prof Services Third Party","Agency Vendor Report",0,"General Sessions Court",380
1,"July",2022,2021,"Safety","Prof Services Third Party","Agency Vendor Report",0,"Circuit Court Clerk Of Wayne Co",40
1,"July",2022,2021,"Safety","Prof Services Third Party","Agency Vendor Report",0,"Circuit Court Clerk",1160
1,"July",2022,2021,"Safety","Prof Services Third Party","Agency Vendor Report",0,"US District Court Clerk",20
1,"July",2022,2021,"Safety","Prof Services Third Party","Agency Vendor Report",0,"United States District Court",70
1,"July",2022,2021,"Safety","Custodial Funds Payments","Agency Vendor Report",0,"ERIC DAVIS",175
1,"July",2022,2021,"Safety","Custodial Funds Payments","Agency Vendor Report",0,"DAMIAN HILL",175
1,"July",2022,2021,"Safety","Custodial Funds Payments","Agency Vendor Report",0,"ERIC HOWARD",175
1,"July",2022,2021,"Safety","Custodial Funds Payments","Agency Vendor Report",0,"REMONE RICE",175
1,"July",2022,2021,"Safety","Custodial Funds Payments","Agency Vendor Report",0,"THOMAS DIAL",175
1,"July",2022,2021,"Safety","Custodial Funds Payments","Agency Vendor Report",0,"TYRONE BELL",175
1,"July",2022,2021,"Safety","Custodial Funds Payments","Agency Vendor Report",0,"JAMES POTTER",175
1,"July",2022,2021,"Safety","Custodial Funds Payments","Agency Vendor Report",0,"RENASHA REED",175
1,"July",2022,2021,"Safety","Custodial Funds Payments","Agency Vendor Report",0,"Ryan Fleming",175
1,"July",2022,2021,"Safety","Custodial Funds Payments","Agency Vendor Report",0,"SHENG YAO LI",175
1,"July",2022,2021,"Safety","Custodial Funds Payments","Agency Vendor Report",0,"DONALD HARRIS",175
1,"July",2022,2021,"Safety","Custodial Funds Payments","Agency Vendor Report",0,"Matthew Hanic",1243
1,"July",2022,2021,"Safety","Custodial Funds Payments","Agency Vendor Report",0,"ALLISON GRIGGS",175
1,"July",2022,2021,"Safety","Custodial Funds Payments","Agency Vendor Report",0,"BENNY EPPS, JR",175
1,"July",2022,2021,"Safety","Custodial Funds Payments","Agency Vendor Report",0,"BRANDON TURNER",175
1,"July",2022,2021,"Safety","Custodial Funds Payments","Agency Vendor Report",0,"CALEB HARGROVE",175
1,"July",2022,2021,"Safety","Custodial Funds Payments","Agency Vendor Report",0,"CULLEN JACKSON",175
1,"July",2022,2021,"Safety","Custodial Funds Payments","Agency Vendor Report",0,"DESMONIAN HILL",175
1,"July",2022,2021,"Safety","Custodial Funds Payments","Agency Vendor Report",0,"KWANA FLETCHER",175
1,"July",2022,2021,"Safety","Custodial Funds Payments","Agency Vendor Report",0,"MARCUS EDWARDS",175
1,"July",2022,2021,"Safety","Custodial Funds Payments","Agency Vendor Report",0,"MICHAEL PALMER",175
1,"July",2022,2021,"Safety","Custodial Funds Payments","Agency Vendor Report",0,"SANTAZ SPENCER",175
1,"July",2022,2021,"Safety","Custodial Funds Payments","Agency Vendor Report",0,"STEFFON STEELE",175
1,"July",2022,2021,"Safety","Custodial Funds Payments","Agency Vendor Report",0,"CARLOS BRASSELL",175
1,"July",2022,2021,"Safety","Custodial Funds Payments","Agency Vendor Report",0,"CLARENCE CARTER",175
1,"July",2022,2021,"Safety","Custodial Funds Payments","Agency Vendor Report",0,"CLIFFORD BECTON",175
1,"July",2022,2021,"Safety","Custodial Funds Payments","Agency Vendor Report",0,"HARLEY SCHROYER",175
1,"July",2022,2021,"Safety","Custodial Funds Payments","Agency Vendor Report",0,"RAYMOND MORNING",175
1,"July",2022,2021,"Safety","Custodial Funds Payments","Agency Vendor Report",0,"COREY HUDDLESTON",175
1,"July",2022,2021,"Safety","Custodial Funds Payments","Agency Vendor Report",0,"JAVIER HERNANDEZ",175
1,"July",2022,2021,"Safety","Custodial Funds Payments","Agency Vendor Report",0,"CHRISTOPHER SMITH",350
1,"July",2022,2021,"Safety","Custodial Funds Payments","Agency Vendor Report",0,"CORDELL MCALISTER",175
1,"July",2022,2021,"Safety","Custodial Funds Payments","Agency Vendor Report",0,"GERARDO HERNANDEZ",175
1,"July",2022,2021,"Safety","Custodial Funds Payments","Agency Vendor Report",0,"GORDON B JOHNPIER",175
1,"July",2022,2021,"Human Services","Prof Services Third Party","Agency Vendor Report",0,"Unicoi County Juvenile Court",771
1,"July",2022,2021,"Human Services","Prof Services Third Party","Agency Vendor Report",0,"Clerk And Master Of Chancery Court",199
1,"July",2022,2021,"Human Services","Prof Services Third Party","Agency Vendor Report",0,"Lincoln County Clerk And Master",748.2
1,"July",2022,2021,"Human Services","Communications","Agency Vendor Report",0,"US Dept Of Homeland Security",180
1,"July",2022,2021,"Human Services","Grants and Subsidies","Agency Vendor Report",0,"Chattanooga State Community College",1403.45
1,"July",2022,2021,"Human Services","Prof Services Third Party","Agency Vendor Report",0,"Maury County Clerk And Master",829.05
1,"July",2022,2021,"Human Services","Grants and Subsidies","Agency Vendor Report",0,"Sharing Gods Love Childcare",8490.77
1,"July",2022,2021,"Human Services","Communications","Agency Vendor Report",0,"Pitney Bowes",100000
1,"July",2022,2021,"Human Services","Grants and Subsidies","Agency Vendor Report",0,"Future Leaders Learning Center",7043.29
1,"July",2022,2021,"Human Services","Grants and Subsidies","Agency Vendor Report",0,"Blessed Beginnings Learning Academy",1416.75
1,"July",2022,2021,"Human Services","Grants and Subsidies","Agency Vendor Report",0,"Erlanger Health System",44583
1,"July",2022,2021,"Human Services","Grants and Subsidies","Agency Vendor Report",0,"Ut Erlanger Primary Care Bledsoe",20
1,"July",2022,2021,"Human Services","Grants and Subsidies","Agency Vendor Report",0,"First Broad Street United Methodist",1690.6
1,"July",2022,2021,"Human Services","Prof Services Third Party","Agency Vendor Report",0,"Cookeville Regional Medical Center",820
1,"July",2022,2021,"Human Services","Grants and Subsidies","Agency Vendor Report",0,"East Tennessee Childrens Hosp Assoc Inc",20
1,"July",2022,2021,"Human Services","Prof Services Third Party","Agency Vendor Report",0,"Maury Regional Medical Ctr",1040
1,"July",2022,2021,"Human Services","Prof Services Third Party","Agency Vendor Report",0,"Henry County Medical Center",260
1,"July",2022,2021,"Human Services","Grants and Subsidies","Agency Vendor Report",0,"Little Miss Mag Early Learning Center",2719.2
1,"July",2022,2021,"Human Services","Grants and Subsidies","Agency Vendor Report",0,"St Lukes Community House",4889.59
1,"July",2022,2021,"Human Services","Grants and Subsidies","Agency Vendor Report",0,"Ywca Of Bristol",3127.64
1,"July",2022,2021,"Human Services","Grants and Subsidies","Agency Vendor Report",0,"Naval Support Activity CDC",1498.55
1,"July",2022,2021,"Human Services","Grants and Subsidies","Agency Vendor Report",0,"Family & Childrens Service",56942.08
1,"July",2022,2021,"Human Services","Communications","Agency Vendor Report",0,"TDS Telecom",202.35
1,"July",2022,2021,"Human Services","Communications","Agency Vendor Report",0,"DTC Communications",176.71
1,"July",2022,2021,"Human Services","Grants and Subsidies","Agency Vendor Report",0,"Holston United Meth.Home For Children In",6340.32
1,"July",2022,2021,"Human Services","Communications","Agency Vendor Report",0,"North Central Telephone Cooperative Inc",94.6
1,"July",2022,2021,"Human Services","Prof Services Third Party","Agency Vendor Report",0,"Castle Branch Inc",2864.3
1,"July",2022,2021,"Human Services","Grants and Subsidies","Agency Vendor Report",0,"New Beginnings International Ministry",176197.6
1,"July",2022,2021,"Human Services","Grants and Subsidies","Agency Vendor Report",0,"Fosters LLC",2395.73
1,"July",2022,2021,"Human Services","Grants and Subsidies","Agency Vendor Report",0,"The Greater Faith Temple COGIC",20448.48
1,"July",2022,2021,"Human Services","Grants and Subsidies","Agency Vendor Report",0,"ARTISTS FOR COMMUNITY TRANSFORMATION INT",15702.48
1,"July",2022,2021,"Human Services","Grants and Subsidies","Agency Vendor Report",0,"URBAN STRATEGIES INC",122136.05
1,"July",2022,2021,"Revenue","Grants and Subsidies","Agency Vendor Report",0,"Town Of Bruceton",19571
1,"July",2022,2021,"Revenue","State Shared Taxes","Agency Vendor Report",0,"Town Of Bruceton",0.01
1,"July",2022,2021,"Revenue","Grants and Subsidies","Agency Vendor Report",0,"City Of Clarksville",1993967.71
1,"July",2022,2021,"Revenue","State Shared Taxes","Agency Vendor Report",0,"City Of Clarksville",73332.79
1,"July",2022,2021,"Revenue","Grants and Subsidies","Agency Vendor Report",0,"City Of Cleveland",754260.36
1,"July",2022,2021,"Revenue","State Shared Taxes","Agency Vendor Report",0,"City Of Cleveland",36533.6
1,"July",2022,2021,"Revenue","Grants and Subsidies","Agency Vendor Report",0,"City Of Clinton",146706.02
1,"July",2022,2021,"Revenue","State Shared Taxes","Agency Vendor Report",0,"City Of Clinton",2711.93
1,"July",2022,2021,"Revenue","Grants and Subsidies","Agency Vendor Report",0,"City of Columbia Alarm Program",540462.44
1,"July",2022,2021,"Revenue","State Shared Taxes","Agency Vendor Report",0,"City of Columbia Alarm Program",28291.14
1,"July",2022,2021,"Revenue","Grants and Subsidies","Agency Vendor Report",0,"City of Copperhill",5439.67
1,"July",2022,2021,"Revenue","State Shared Taxes","Agency Vendor Report",0,"City of Copperhill",94.09
1,"July",2022,2021,"Revenue","Grants and Subsidies","Agency Vendor Report",0,"City Of Cowan",23769.64
1,"July",2022,2021,"Revenue","State Shared Taxes","Agency Vendor Report",0,"City Of Cowan",294.29
1,"July",2022,2021,"Revenue","Grants and Subsidies","Agency Vendor Report",0,"City Of Dyer",31163.04
1,"July",2022,2021,"Mental Health and Substance Abuse Services","Prof Services Third Party","Agency Vendor Report",0,"West Publishing Corporation",525.89
1,"July",2022,2021,"Mental Health and Substance Abuse Services","Maint and Repairs","Agency Vendor Report",0,"Mcguires Lawn Service",600
1,"July",2022,2021,"Mental Health and Substance Abuse Services","Prof Services Third Party","Agency Vendor Report",0,"LexisNexis",184
1,"July",2022,2021,"Mental Health and Substance Abuse Services","Supplies and Materials","Agency Vendor Report",0,"Lowes Of Chattanooga",211.42
1,"July",2022,2021,"Mental Health and Substance Abuse Services","Supplies and Materials","Agency Vendor Report",0,"Lowes Credit Services",86.58
1,"July",2022,2021,"Mental Health and Substance Abuse Services","Supplies and Materials","Agency Vendor Report",0,"Lowes Home Centers Inc",131.86
1,"July",2022,2021,"Mental Health and Substance Abuse Services","Supplies and Materials","Agency Vendor Report",0,"Lowes Of North Chattanooga",410.35
1,"July",2022,2021,"Mental Health and Substance Abuse Services","Motor Vehicle Operation","Agency Vendor Report",0,"Lowes Of North Chattanooga",69.8
1,"July",2022,2021,"Mental Health and Substance Abuse Services","Supplies and Materials","Agency Vendor Report",0,"American Paper & Twine Co",869.64
1,"July",2022,2021,"Mental Health and Substance Abuse Services","Maint and Repairs","Agency Vendor Report",0,"LAWSON ELECTRIC CO INC",1039.7
1,"July",2022,2021,"Mental Health and Substance Abuse Services","Supplies and Materials","Agency Vendor Report",0,"Institutional Wholesale Co Inc",151.2
1,"July",2022,2021,"Mental Health and Substance Abuse Services","Maint and Repairs","Agency Vendor Report",0,"STANDARD ELECTRIC COMPANY INC",6812.56
1,"July",2022,2021,"Human Services","Prof Services Third Party","Agency Vendor Report",0,"Hardin County General Sessions Court",2409
1,"July",2022,2021,"Human Services","Prof Services Third Party","Agency Vendor Report",0,"Henderson County Juvenile Court",1070
1,"July",2022,2021,"Human Services","Prof Services Third Party","Agency Vendor Report",0,"Henry Co Juvenile Court",2485
1,"July",2022,2021,"Human Services","Prof Services Third Party","Agency Vendor Report",0,"Henry County Chancery Court",228
1,"July",2022,2021,"Human Services","Prof Services Third Party","Agency Vendor Report",0,"Knox Co Chancery Court Clerk And Master",138
1,"July",2022,2021,"Human Services","Grants and Subsidies","Agency Vendor Report",0,"Gateway Learning Academy Llc",1745.05
1,"July",2022,2021,"Human Services","Grants and Subsidies","Agency Vendor Report",0,"First Tn Human Resource Agency",679.46
1,"July",2022,2021,"Human Services","Grants and Subsidies","Agency Vendor Report",0,"South Central Human Resource Agency",1225.64
1,"July",2022,2021,"Human Services","Grants and Subsidies","Agency Vendor Report",0,"American Child Care",12067.29
1,"July",2022,2021,"Human Services","Grants and Subsidies","Agency Vendor Report",0,"American Senior Care Centers I",6517.58
1,"July",2022,2021,"Human Services","Grants and Subsidies","Agency Vendor Report",0,"TLC Learning Academy",4022.45
1,"July",2022,2021,"Human Services","Prof Services Third Party","Agency Vendor Report",0,"Union County Juvenile Court",462
1,"July",2022,2021,"Human Services","Travel","Agency Vendor Report",0,"Fairfield Inn & Suites Nashvil",509.1
1,"July",2022,2021,"Human Services","Grants and Subsidies","Agency Vendor Report",0,"Kids Korner Daycare LLC",2734.7
1,"July",2022,2021,"Human Services","Grants and Subsidies","Agency Vendor Report",0,"Neighborhood Christian Centers Inc",82446.51
1,"July",2022,2021,"Human Services","Grants and Subsidies","Agency Vendor Report",0,"Education is The Key Childrens Center",7248.77
1,"July",2022,2021,"Revenue","Data Processing","Agency Vendor Report",0,"ACL Services Ltd",37171.74
1,"July",2022,2021,"Revenue","Supplies and Materials","Agency Vendor Report",0,"Matthew Bender & Company Inc",1308.06
1,"July",2022,2021,"Revenue","Data Processing","Agency Vendor Report",0,"Scan-Optics LLC",519
1,"July",2022,2021,"Revenue","Prof Services Third Party","Agency Vendor Report",0,"Shred-It USA LLC",43.23
1,"July",2022,2021,"Revenue","Prof Services Third Party","Agency Vendor Report",0,"Thomson Reuters - West",4340.32
1,"July",2022,2021,"Revenue","Prof Services Third Party","Agency Vendor Report",0,"West Publishing Corporation",500
1,"July",2022,2021,"Revenue","Prof Services Third Party","Agency Vendor Report",0,"LexisNexis",1242
1,"July",2022,2021,"Revenue","Printing and Duplicating","Agency Vendor Report",0,"Community Rehabilitation Agencies Of Tn",64654.25
1,"July",2022,2021,"Labor and Workforce Development","Travel","Agency Vendor Report",0,"Holiday Inn Express and Suites Nashville",192
1,"July",2022,2021,"Labor and Workforce Development","Rentals and Insurance","Agency Vendor Report",0,"Holiday Inn Express and Suites Nashville",139
1,"July",2022,2021,"Labor and Workforce Development","Utilities and Fuel","Agency Vendor Report",0,"Workforce Midsouth Inc",258.87
1,"July",2022,2021,"Labor and Workforce Development","Communications","Agency Vendor Report",0,"Workforce Midsouth Inc",768.46
1,"July",2022,2021,"Labor and Workforce Development","Maint and Repairs","Agency Vendor Report",0,"Workforce Midsouth Inc",1975.39
1,"July",2022,2021,"Labor and Workforce Development","Prof Services Third Party","Agency Vendor Report",0,"Workforce Midsouth Inc",5120.51
1,"July",2022,2021,"Labor and Workforce Development","Supplies and Materials","Agency Vendor Report",0,"Workforce Midsouth Inc",38.33
1,"July",2022,2021,"Labor and Workforce Development","Rentals and Insurance","Agency Vendor Report",0,"Workforce Midsouth Inc",12.54
1,"July",2022,2021,"Labor and Workforce Development","Grants and Subsidies","Agency Vendor Report",0,"Workforce Midsouth Inc",342370.54
1,"July",2022,2021,"Labor and Workforce Development","Prof Services Third Party","Agency Vendor Report",0,"VACO LLC",677220.02
1,"July",2022,2021,"Labor and Workforce Development","Grants and Subsidies","Agency Vendor Report",0,"BETTY J SMITH",273.73
1,"July",2022,2021,"Labor and Workforce Development","Grants and Subsidies","Agency Vendor Report",0,"DEREK SMITH",560
1,"July",2022,2021,"Labor and Workforce Development","Grants and Subsidies","Agency Vendor Report",0,"TIMOTHY L KERLEY",887.04
1,"July",2022,2021,"Labor and Workforce Development","Grants and Subsidies","Agency Vendor Report",0,"LINDA L CARLYLE",604.8
1,"July",2022,2021,"Labor and Workforce Development","Grants and Subsidies","Agency Vendor Report",0,"PATRICIA J SAMS",286.72
1,"July",2022,2021,"Labor and Workforce Development","Grants and Subsidies","Agency Vendor Report",0,"CHRISTINE LYN BAGBY",165.76
1,"July",2022,2021,"Labor and Workforce Development","Grants and Subsidies","Agency Vendor Report",0,"VERONICA GIBSON",2414.72
1,"July",2022,2021,"Labor and Workforce Development","Grants and Subsidies","Agency Vendor Report",0,"GUADALUPE PEREZ-CRUZ",291.2
1,"July",2022,2021,"Labor and Workforce Development","Grants and Subsidies","Agency Vendor Report",0,"WANDA K GREEN",383.04
1,"July",2022,2021,"Labor and Workforce Development","Grants and Subsidies","Agency Vendor Report",0,"DENISE M HAISLIP",1008
1,"July",2022,2021,"Tennessee Department of Treasury","Data Processing","Agency Vendor Report",0,"Canon Solutions America Inc",11.48
1,"July",2022,2021,"Tennessee Department of Treasury","Prof Services Third Party","Agency Vendor Report",0,"1 A LifeSafer of Arkansas Inc",2989.45
1,"July",2022,2021,"Tennessee Department of Treasury","Data Processing","Agency Vendor Report",0,"Melissa Data Corporation",9250
1,"July",2022,2021,"Tennessee Department of Treasury","Prof Services Third Party","Agency Vendor Report",0,"KNOWLEDGE SERVICES",18349.77
1,"July",2022,2021,"Tennessee Department of Treasury","Prof Services Third Party","Agency Vendor Report",0,"LexisNexis",14120.05
1,"July",2022,2021,"Tennessee Department of Treasury","Expenses on Investments","Agency Vendor Report",0,"L&B Realty  Advisors LLP",292758.96
1,"July",2022,2021,"Tennessee Department of Treasury","Prof Services Third Party","Agency Vendor Report",0,"June Puett",2000
1,"July",2022,2021,"Tennessee Department of Treasury","Prof Services Third Party","Agency Vendor Report",0,"CorVel Enterprise Comp Inc",28333.33
1,"July",2022,2021,"Tennessee Department of Treasury","Prof Services Third Party","Agency Vendor Report",0,"Williams & Jensen PLLC",5250
1,"July",2022,2021,"Tennessee Department of Treasury","Prof Services Third Party","Agency Vendor Report",0,"Rachel Barrett And Company LLC",800
1,"July",2022,2021,"Tennessee Department of Treasury","Prof Services Third Party","Agency Vendor Report",0,"Backgrounds Online",615.8
1,"July",2022,2021,"Tennessee Department of Treasury","Expenses on Investments","Agency Vendor Report",0,"Verus",77709
1,"July",2022,2021,"Tennessee Department of Treasury","Prof Services Third Party","Agency Vendor Report",0,"Tennessee Recovery And Monitoring Assign",56375.06
1,"July",2022,2021,"Tennessee Department of Treasury","Expenses on Investments","Agency Vendor Report",0,"Intex Solutions Inc",34200
1,"July",2022,2021,"Tennessee Department of Treasury","Prof Services Third Party","Agency Vendor Report",0,"Orange Reef Sustainable Business Results",10665
1,"July",2022,2021,"Tennessee Department of Treasury","Rentals and Insurance","Agency Vendor Report",0,"Culligan Of Nashville",141.79
1,"July",2022,2021,"Tennessee Department of Treasury","Expenses on Investments","Agency Vendor Report",0,"Townsend Group",137500
1,"July",2022,2021,"Tennessee Department of Treasury","Data Processing","Agency Vendor Report",0,"Ascensus College Savings Recordkeeping S",95500
1,"July",2022,2021,"Tennessee Department of Treasury","Expenses on Investments","Agency Vendor Report",0,"S&P Global Market Intelligence LLC",20000
1,"July",2022,2021,"Tennessee Department of Treasury","Expenses on Investments","Agency Vendor Report",0,"Abel Noser Solutions LLC",16250
1,"July",2022,2021,"Tennessee Department of Treasury","Prof Services Third Party","Agency Vendor Report",0,"Vital Records Control",26000
1,"July",2022,2021,"Tennessee Department of Treasury","Prof Services Third Party","Agency Vendor Report",0,"Findley Inc",303219
1,"July",2022,2021,"Tennessee Department of Treasury","Expenses on Investments","Agency Vendor Report",0,"AEW Capital Management LP",383097
1,"July",2022,2021,"Tennessee Department of Treasury","Expenses on Investments","Agency Vendor Report",0,"Robinson Bradshaw & Hinson PA",20154.5
1,"July",2022,2021,"Tennessee Department of Treasury","Expenses on Investments","Agency Vendor Report",0,"BLACKROCK FINANCIAL MANAGEMENT INC",101795
1,"July",2022,2021,"Tennessee Department of Treasury","Expenses on Investments","Agency Vendor Report",0,"AKSIA LLC",79167
1,"July",2022,2021,"Bureau of TennCare","Data Processing","Agency Vendor Report",0,"Appriss - Government",33333.33
1,"July",2022,2021,"Bureau of TennCare","Grants and Subsidies","Agency Vendor Report",0,"LENTZ PEDIATRICS PLC",1966
1,"July",2022,2021,"General Services","Utilities and Fuel","Agency Vendor Report",0,"City of Chattanooga",998.34
1,"July",2022,2021,"General Services","Utilities and Fuel","Agency Vendor Report",0,"Covington Gas, Water, Sewer & Sanitation",342.94
1,"July",2022,2021,"General Services","Rentals and Insurance","Agency Vendor Report",0,"Dayton City",9245.56
1,"July",2022,2021,"General Services","Utilities and Fuel","Agency Vendor Report",0,"Dyersburg Gas & Water Dept",220.49
1,"July",2022,2021,"General Services","Utilities and Fuel","Agency Vendor Report",0,"Water Department Of Elizabethton",382.56
1,"July",2022,2021,"General Services","Utilities and Fuel","Agency Vendor Report",0,"City Of Hohenwald",36.34
1,"July",2022,2021,"General Services","Utilities and Fuel","Agency Vendor Report",0,"Humboldt Utilities",1244.29
1,"July",2022,2021,"General Services","Utilities and Fuel","Agency Vendor Report",0,"Town Of Huntingdon",601.76
1,"July",2022,2021,"General Services","Utilities and Fuel","Agency Vendor Report",0,"City Of Jackson",1008.43
1,"July",2022,2021,"General Services","Rentals and Insurance","Agency Vendor Report",0,"City of Jackson",4500
1,"July",2022,2021,"General Services","Utilities and Fuel","Agency Vendor Report",0,"Knoxville Utilities Board",31
1,"July",2022,2021,"General Services","Utilities and Fuel","Agency Vendor Report",0,"City Of Madisonville",128.26
1,"July",2022,2021,"General Services","Utilities and Fuel","Agency Vendor Report",0,"City Of Manchester",52.24
1,"July",2022,2021,"General Services","Utilities and Fuel","Agency Vendor Report",0,"Mc Minnville Water & Sewer Dept.",1777.13
1,"July",2022,2021,"General Services","Utilities and Fuel","Agency Vendor Report",0,"Ripley Power And Light Company",916.43
1,"July",2022,2021,"General Services","Utilities and Fuel","Agency Vendor Report",0,"Rogersville Water Commission",153.13
1,"July",2022,2021,"General Services","Utilities and Fuel","Agency Vendor Report",0,"City of Tiptonville",141.98
1,"July",2022,2021,"General Services","Utilities and Fuel","Agency Vendor Report",0,"City Of Union City",814.43
1,"July",2022,2021,"General Services","Utilities and Fuel","Agency Vendor Report",0,"Lawrence Cnty Solid Waste Services",20
1,"July",2022,2021,"General Services","Utilities and Fuel","Agency Vendor Report",0,"Lewisburg Electric System",173.14
1,"July",2022,2021,"General Services","Utilities and Fuel","Agency Vendor Report",0,"City Of Smithville Water & Sewer Dept",163.22
1,"July",2022,2021,"General Services","Utilities and Fuel","Agency Vendor Report",0,"Jamestown Gas & Water Dept",42.03
1,"July",2022,2021,"General Services","Utilities and Fuel","Agency Vendor Report",0,"Woodbury Utility District",36.92
1,"July",2022,2021,"General Services","Utilities and Fuel","Agency Vendor Report",0,"Town Of Carthage",258
1,"July",2022,2021,"General Services","Utilities and Fuel","Agency Vendor Report",0,"Decatur Water System",42.02
1,"July",2022,2021,"General Services","Utilities and Fuel","Agency Vendor Report",0,"Savannah Utility Dept",135.92
1,"July",2022,2021,"General Services","Utilities and Fuel","Agency Vendor Report",0,"Jefferson-Cocke County Utility Dist",10
1,"July",2022,2021,"General Services","Utilities and Fuel","Agency Vendor Report",0,"Town Of Jasper",276.6
1,"July",2022,2021,"General Services","Utilities and Fuel","Agency Vendor Report",0,"Sevier County Elec System",415.76
1,"July",2022,2021,"General Services","Utilities and Fuel","Agency Vendor Report",0,"Piedmont Natural Gas Co",7039.05
1,"July",2022,2021,"General Services","Utilities and Fuel","Agency Vendor Report",0,"Volunteer Energy Cooperative",358.26
1,"July",2022,2021,"General Services","Utilities and Fuel","Agency Vendor Report",0,"Covington Electric System",1456.04
1,"July",2022,2021,"Transportation","Land","Agency Vendor Report",0,"Nancy Smith",1200
1,"July",2022,2021,"Transportation","Land","Agency Vendor Report",0,"PHILIP HALL",26000
1,"July",2022,2021,"Transportation","Land","Agency Vendor Report",0,"DEBORAH AMES",1500
1,"July",2022,2021,"Transportation","Land","Agency Vendor Report",0,"David Salyer",11550
1,"July",2022,2021,"Transportation","Land","Agency Vendor Report",0,"Donna Warren",300
1,"July",2022,2021,"Transportation","Land","Agency Vendor Report",0,"Steve Wyrick",56695.12
1,"July",2022,2021,"Transportation","Land","Agency Vendor Report",0,"Twylar Scott",2200
1,"July",2022,2021,"Transportation","Land","Agency Vendor Report",0,"Caine Montana",1600
1,"July",2022,2021,"Transportation","Land","Agency Vendor Report",0,"Callie Howard",2300
1,"July",2022,2021,"Transportation","Land","Agency Vendor Report",0,"Hagan Hensley",25000
1,"July",2022,2021,"Transportation","Land","Agency Vendor Report",0,"Wendy Coultry",1200
1,"July",2022,2021,"Transportation","Land","Agency Vendor Report",0,"Jerry Millwood",3200
1,"July",2022,2021,"Transportation","Land","Agency Vendor Report",0,"My Town Movers",500
1,"July",2022,2021,"Transportation","Land","Agency Vendor Report",0,"Shane Williams",1800
1,"July",2022,2021,"Transportation","Land","Agency Vendor Report",0,"Zella Williams",1000
1,"July",2022,2021,"Transportation","Land","Agency Vendor Report",0,"Clyde E. Glover",1570
1,"July",2022,2021,"Transportation","Land","Agency Vendor Report",0,"James McMillian",400
1,"July",2022,2021,"Transportation","Land","Agency Vendor Report",0,"Joe Pesterfield",300
1,"July",2022,2021,"Transportation","Land","Agency Vendor Report",0,"Dalenna Williams",1500
1,"July",2022,2021,"Transportation","Land","Agency Vendor Report",0,"SHIRLEY HARVILLE",4000
1,"July",2022,2021,"Transportation","Land","Agency Vendor Report",0,"Bobby Whittenburg",13097.7
1,"July",2022,2021,"Transportation","Land","Agency Vendor Report",0,"Carl D Rawdon and",6000
1,"July",2022,2021,"Transportation","Land","Agency Vendor Report",0,"Peter Sevarino and",18534.98
1,"July",2022,2021,"Transportation","Land","Agency Vendor Report",0,"The Salvation Army",300
1,"July",2022,2021,"Transportation","Land","Agency Vendor Report",0,"Brian J. Kuzara and",143000
1,"July",2022,2021,"Transportation","Land","Agency Vendor Report",0,"DR. JAY M. TRUSSLER",12000
1,"July",2022,2021,"Transportation","Land","Agency Vendor Report",0,"Glass Rentals, G.P.",9300
1,"July",2022,2021,"Transportation","Land","Agency Vendor Report",0,"Tommy V. Norman and",800
1,"July",2022,2021,"Transportation","Land","Agency Vendor Report",0,"BB&T now Truist Bank",5750
1,"July",2022,2021,"Transportation","Land","Agency Vendor Report",0,"Paul P. Provins, III",450
1,"July",2022,2021,"Transportation","Land","Agency Vendor Report",0,"Rhonda Kite Ratcliff",1325
1,"July",2022,2021,"Transportation","Land","Agency Vendor Report",0,"Timothy A Wilson and",300
1,"July",2022,2021,"Transportation","Land","Agency Vendor Report",0,"Randall & Janis Ayers",1230
1,"July",2022,2021,"Transportation","Land","Agency Vendor Report",0,"Terry and Sarah Short",400
1,"July",2022,2021,"Transportation","Land","Agency Vendor Report",0,"David and Donna Tipton",10000
1,"July",2022,2021,"Transportation","Land","Agency Vendor Report",0,"Eddie and Martha Moses",1500
1,"July",2022,2021,"Transportation","Land","Agency Vendor Report",0,"Knox County, Tennessee",8850
1,"July",2022,2021,"Transportation","Land","Agency Vendor Report",0,"Cleveland Storage Center",2800
1,"July",2022,2021,"Transportation","Land","Agency Vendor Report",0,"Gary Keith Pettigrew and",6165.66
1,"July",2022,2021,"Transportation","Land","Agency Vendor Report",0,"Julia and Kenneth Tuthill",18650
1,"July",2022,2021,"Transportation","Land","Agency Vendor Report",0,"Pilot Travel Centers, LLC",44780
1,"July",2022,2021,"Transportation","Land","Agency Vendor Report",0,"Ewing Moving Services Inc.",500
1,"July",2022,2021,"Transportation","Land","Agency Vendor Report",0,"Joseph Molignaro and wife,",64400
1,"July",2022,2021,"Transportation","Land","Agency Vendor Report",0,"Bobby and Sue Ellen Tolmant",2250
1,"July",2022,2021,"Transportation","Land","Agency Vendor Report",0,"CLEVELAND INVESTMENT GROUP, GP",640000
1,"July",2022,2021,"Transportation","Land","Agency Vendor Report",0,"Hallmark Cocke Estates TN, LLC",300
1,"July",2022,2021,"Transportation","Prof Services Third Party","Agency Vendor Report",0,"Maury County Register of Deeds",2699
1,"July",2022,2021,"Transportation","Land","Agency Vendor Report",0,"Crystal and Dwayne Gusta Parrish",1700
1,"July",2022,2021,"Transportation","Land","Agency Vendor Report",0,"Jenny L. Falconer and Randall J.",5970
1,"July",2022,2021,"Transportation","Prof Services Third Party","Agency Vendor Report",0,"Davidson County Register of Deeds",604
1,"July",2022,2021,"Transportation","Land","Agency Vendor Report",0,"JIM W. MYERS AND PAMELA KAY MYERS,",44120
1,"July",2022,2021,"Transportation","Land","Agency Vendor Report",0,"Carolyn Camp Gibbons and Richard S.",2950
1,"July",2022,2021,"Transportation","Land","Agency Vendor Report",0,"Dry Clean City of Johnson City, LLC",25000
1,"July",2022,2021,"Transportation","Prof Services Third Party","Agency Vendor Report",0,"Montgomery County Register of Deeds",1967
1,"July",2022,2021,"Transportation","Land","Agency Vendor Report",0,"CAROLYN JOAN WARD, TRUSTEE OF THE JOE",2000
1,"July",2022,2021,"Transportation","Land","Agency Vendor Report",0,"SHARON HYDER SUCCESSOR TRUSTEE OF THE",87320.8
1,"July",2022,2021,"Transportation","Land","Agency Vendor Report",0,"Teena M. Tipton and Dustin Teffeteller",8450
1,"July",2022,2021,"Transportation","Land","Agency Vendor Report",0,"Dustin Teffeteller and Wendy Teffeteller",22750
1,"July",2022,2021,"Transportation","Maint and Repairs","Agency Vendor Report",0,"Unifirst Corporation",506.33
1,"July",2022,2021,"Transportation","Supplies and Materials","Agency Vendor Report",0,"Unifirst Corporation",46.68
1,"July",2022,2021,"Correction","Prof Services Third Party","Agency Vendor Report",0,"Wcdz Wcmt Am/Fm",3200
1,"July",2022,2021,"Correction","Prof Services Third Party","Agency Vendor Report",0,"Thunderbolt Broadcasting Company",2001
1,"July",2022,2021,"Correction","Rentals and Insurance","Agency Vendor Report",0,"C & C Equipment Rental Inc",1082.51
1,"July",2022,2021,"Correction","Prof Services Third Party","Agency Vendor Report",0,"Medworks Occupational Medicine",90
1,"July",2022,2021,"Correction","Grants and Subsidies","Agency Vendor Report",0,"East Tennessee Human Resource Agency Inc",11522.5
1,"July",2022,2021,"Correction","Supplies and Materials","Agency Vendor Report",0,"Kenny Pipe & Supply",2092.64
1,"July",2022,2021,"Correction","Supplies and Materials","Agency Vendor Report",0,"Lauderdale Lumber & Hdwe",227.51
1,"July",2022,2021,"Correction","Maint and Repairs","Agency Vendor Report",0,"Isenhour Door Products Inc",3046.9
1,"July",2022,2021,"Correction","Supplies and Materials","Agency Vendor Report",0,"Isenhour Door Products Inc",23387.04
1,"July",2022,2021,"Correction","Prof Services Third Party","Agency Vendor Report",0,"Corecivic Of Tennessee LLC",6017436.78
1,"July",2022,2021,"Correction","Maint and Repairs","Agency Vendor Report",0,"WARE",7053.4
1,"July",2022,2021,"Health","Prof Services Third Party","Agency Vendor Report",0,"Claiborne County Medical Ctr",528.52
1,"July",2022,2021,"Health","Grants and Subsidies","Agency Vendor Report",0,"St Jude Childrens Research Hos",10406.69
1,"July",2022,2021,"Health","Prof Services Third Party","Agency Vendor Report",0,"Middle Tennessee Radiology Associates PC",196.29
1,"July",2022,2021,"Health","Communications","Agency Vendor Report",0,"Verizon Wireless",1197.98
1,"July",2022,2021,"Health","Prof Services Third Party","Agency Vendor Report",0,"RURAL HEALTH SERVICES CONSORTIUM INC",85.98
1,"July",2022,2021,"Health","Travel","Agency Vendor Report",0,"Doubletree Hotel",80.16
1,"July",2022,2021,"Health","Grants and Subsidies","Agency Vendor Report",0,"Methodist Le Bonheur Community Outreach",299775.41
1,"July",2022,2021,"Health","Prof Services Third Party","Agency Vendor Report",0,"Centennial Surgery Center LP",17640
1,"July",2022,2021,"Health","Travel","Agency Vendor Report",0,"Holiday Inn Express",791.04
1,"July",2022,2021,"Health","Prof Services Third Party","Agency Vendor Report",0,"Bristol Regional Med Center",153.79
1,"July",2022,2021,"Health","Prof Services Third Party","Agency Vendor Report",0,"Holston Valley Medical Center",1108.22
1,"July",2022,2021,"Health","Grants and Subsidies","Agency Vendor Report",0,"Bristol Regional Medical Center",1090.69
1,"July",2022,2021,"Health","Grants and Subsidies","Agency Vendor Report",0,"Wellmont Hlth Sys/Bristol Reg Med Ctr",129600
1,"July",2022,2021,"Health","Prof Services Third Party","Agency Vendor Report",0,"Marisol Aguirre",52.5
1,"July",2022,2021,"Health","Supplies and Materials","Agency Vendor Report",0,"Hollands Drug Inc",927.71
1,"July",2022,2021,"Health","Grants and Subsidies","Agency Vendor Report",0,"Tennessee Hospital Education & Research",1666862.18
1,"July",2022,2021,"Capital Improvements","Buildings","Agency Vendor Report",0,"BLAINE CONSTRUCTION CORP",95745.92
1,"July",2022,2021,"Capital Improvements","Buildings","Agency Vendor Report",0,"Blaine Construction Corp",1819172.56
1,"July",2022,2021,"Capital Improvements","Prof Services Third Party","Agency Vendor Report",0,"CTI ENGINEERS INC",25832.39
1,"July",2022,2021,"Capital Improvements","Prof Services Third Party","Agency Vendor Report",0,"TLC Engineering Solutions Inc",23641.66
1,"July",2022,2021,"Capital Improvements","Prof Services Third Party","Agency Vendor Report",0,"Everton Oglesby Architect PLLC",12816.94
1,"July",2022,2021,"Capital Improvements","Prof Services Third Party","Agency Vendor Report",0,"A2H Inc",38906.96
1,"July",2022,2021,"Capital Improvements","Prof Services Third Party","Agency Vendor Report",0,"Gobbell Hays Partners Inc",2878
1,"July",2022,2021,"Capital Improvements","Prof Services Third Party","Agency Vendor Report",0,"Rufus Johnson Associates Of Clarksville",20984.74
1,"July",2022,2021,"Capital Improvements","Maint and Repairs","Agency Vendor Report",0,"Merit Construction Inc",4312.45
1,"July",2022,2021,"Capital Improvements","Maint and Repairs","Agency Vendor Report",0,"Orion Building Corporation",198951.18
1,"July",2022,2021,"Capital Improvements","Buildings","Agency Vendor Report",0,"Doster Construction Co Inc",7055785.49
1,"July",2022,2021,"Capital Improvements","Maint and Repairs","Agency Vendor Report",0,"MAYSE CONSTRUCTION COMPANY",59700
1,"July",2022,2021,"Capital Improvements","Maint and Repairs","Agency Vendor Report",0,"KERRY G CAMPBELL INC",45781
1,"July",2022,2021,"Capital Improvements","Prof Services Third Party","Agency Vendor Report",0,"Fisher & Arnold Inc",6537.92
1,"July",2022,2021,"Capital Improvements","Prof Services Third Party","Agency Vendor Report",0,"I C Thomasson Associates Inc",4038.3
1,"July",2022,2021,"Capital Improvements","Prof Services Third Party","Agency Vendor Report",0,"Evans Taylor Foster Childress Architects",25941.46
1,"July",2022,2021,"Capital Improvements","Prof Services Third Party","Agency Vendor Report",0,"Hefferlin & Kronenberg Architects PLLC",21962.24
1,"July",2022,2021,"Capital Improvements","Buildings","Agency Vendor Report",0,"J & J CONTRACTORS INC",51518.5
1,"July",2022,2021,"Capital Improvements","Buildings","Agency Vendor Report",0,"J & J Contractors Inc",4256.5
1,"July",2022,2021,"Capital Improvements","Maint and Repairs","Agency Vendor Report",0,"Eye In the Sky LLC",59662.78
1,"July",2022,2021,"Capital Improvements","Prof Services Third Party","Agency Vendor Report",0,"Goodwyn Mills & Cawood Inc",94400.83
1,"July",2022,2021,"Capital Improvements","Buildings","Agency Vendor Report",0,"LEE ADCOCK CONSTRUCTION CO INC",843785.2
1,"July",2022,2021,"Capital Improvements","Buildings","Agency Vendor Report",0,"Lee Adcock Construction Co Inc",33715.71
1,"July",2022,2021,"Capital Improvements","Buildings","Agency Vendor Report",0,"Evans-Ailey Construction Inc",971307.16
1,"July",2022,2021,"Capital Improvements","Prof Services Third Party","Agency Vendor Report",0,"OHM Advisors",250
1,"July",2022,2021,"Capital Improvements","Maint and Repairs","Agency Vendor Report",0,"KING CONSTRUCTION GROUP INC",187924.58
1,"July",2022,2021,"Capital Improvements","Buildings","Agency Vendor Report",0,"J Cumby Construction Inc",48000
1,"July",2022,2021,"Capital Improvements","Prof Services Third Party","Agency Vendor Report",0,"Lewis Group Architects Inc PC (The)",66243.2
1,"July",2022,2021,"Capital Improvements","Prof Services Third Party","Agency Vendor Report",0,"Sparkman & Assocs Architects Inc",6093.79
1,"July",2022,2021,"Capital Improvements","Highway Construction","Agency Vendor Report",0,"The Tradesmen Group Inc",392693.57
1,"July",2022,2021,"Capital Improvements","Buildings","Agency Vendor Report",0,"BOGER CONSTRUCTION LLC",149433.93
1,"July",2022,2021,"Capital Improvements","Maint and Repairs","Agency Vendor Report",0,"Viktorhall Construction LLC",83832.3
1,"July",2022,2021,"Capital Improvements","Buildings","Agency Vendor Report",0,"SmartWatt Energy Inc",1758.09
1,"July",2022,2021,"Capital Improvements","Maint and Repairs","Agency Vendor Report",0,"FTM CONTRACTING",94905
1,"July",2022,2021,"Capital Improvements","Maint and Repairs","Agency Vendor Report",0,"FUEL TANK MAINTENANCE CO LLC",5933.25
1,"July",2022,2021,"Capital Improvements","Prof Services Third Party","Agency Vendor Report",0,"Edmonds Engineering Inc",1958.78
1,"July",2022,2021,"Capital Improvements","Maint and Repairs","Agency Vendor Report",0,"Broadway Electric Service Corp",31830.51
1,"July",2022,2021,"Capital Improvements","Prof Services Third Party","Agency Vendor Report",0,"Elizabeth Eason Architecture LLC",9511.62
1,"July",2022,2021,"Capital Improvements","Prof Services Third Party","Agency Vendor Report",0,"Hurst-Rosche Inc",36310.36
1,"July",2022,2021,"Capital Improvements","Buildings","Agency Vendor Report",0,"Henson Construction Services Inc",790597
1,"July",2022,2021,"Capital Improvements","Buildings","Agency Vendor Report",0,"SOUTHLAND CONSTRUCTORS INC",10096.35
1,"July",2022,2021,"Capital Improvements","Buildings","Agency Vendor Report",0,"Southland Constructors Inc",191830.65
1,"July",2022,2021,"Capital Improvements","Buildings","Agency Vendor Report",0,"THE CRISTMAN COMPANY",124515.23
1,"July",2022,2021,"Capital Improvements","Buildings","Agency Vendor Report",0,"The Christman Company",2365789.39
1,"July",2022,2021,"Capital Improvements","Prof Services Third Party","Agency Vendor Report",0,"Tinker Ma Inc",3486.67
1,"July",2022,2021,"Capital Improvements","Prof Services Third Party","Agency Vendor Report",0,"SPIRITARCHITECTURE GROUP LLC",426.34
1,"July",2022,2021,"Capital Improvements","Maint and Repairs","Agency Vendor Report",0,"ALLISON CONTRACTING COMPANY LLC",110519.3
1,"July",2022,2021,"Capital Improvements","Maint and Repairs","Agency Vendor Report",0,"Allison Contracting Company LLC",5816.8
1,"July",2022,2021,"Capital Improvements","Prof Services Third Party","Agency Vendor Report",0,"KMA Design",8065.86
1,"July",2022,2021,"Capital Improvements","Prof Services Third Party","Agency Vendor Report",0,"BSG Engineering",10079.33
1,"July",2022,2021,"Capital Improvements","Prof Services Third Party","Agency Vendor Report",0,"Cleveland Salmon Architect",1539.29
1,"July",2022,2021,"Capital Improvements","Buildings","Agency Vendor Report",0,"GREAT SOUTHERN RECREATION LLC",58574
1,"July",2022,2021,"Children's Services","Prof Services Third Party","CSD Payments",0,"Robert L Huddleston",1500
1,"July",2022,2021,"Children's Services","Prof Services Third Party","CSD Payments",0,"Brown & Associates Court Reporting",257.62
1,"July",2022,2021,"Children's Services","Prof Services Third Party","CSD Payments",0,"Tracy C Hollis",2352
1,"July",2022,2021,"Children's Services","Prof Services Third Party","CSD Payments",0,"Sharon Dawn Coppock Atty",4248.5
1,"July",2022,2021,"Children's Services","Prof Services Third Party","CSD Payments",0,"California Dept Of Health Services",50
1,"July",2022,2021,"Children's Services","Grants and Subsidies","CSD Payments",0,"CHILDHELP INC",5208.34
1,"July",2022,2021,"Children's Services","Grants and Subsidies","CSD Payments",0,"Childhelp USA",130929.3
1,"July",2022,2021,"Children's Services","Travel","CSD Payments",0,"Embassy Suites Hotel",6509
1,"July",2022,2021,"Children's Services","Grants and Subsidies","CSD Payments",0,"Cathedral Of Faith Community Church",5941.16
1,"July",2022,2021,"Children's Services","Prof Services Third Party","CSD Payments",0,"ARIZONA DEPT OF HEALTH",100
1,"July",2022,2021,"Children's Services","Grants and Subsidies","CSD Payments",0,"James L Proffitt II",4110
1,"July",2022,2021,"Children's Services","Grants and Subsidies","CSD Payments",0,"Bethany Christian Svcs of West TN",19759.79
1,"July",2022,2021,"Children's Services","Grants and Subsidies","CSD Payments",0,"Hannahs Hope",500
1,"July",2022,2021,"Children's Services","Prof Services Third Party","CSD Payments",0,"Michigan Dept Of Community Health",136
1,"July",2022,2021,"Children's Services","Grants and Subsidies","CSD Payments",0,"Dodson Pest Control",300
1,"July",2022,2021,"Children's Services","Prof Services Third Party","CSD Payments",0,"Kings Daughters School",6929.37
1,"July",2022,2021,"Children's Services","Grants and Subsidies","CSD Payments",0,"Kings Daughters School",218205
1,"July",2022,2021,"Children's Services","Prof Services Third Party","CSD Payments",0,"Cleveland Daily Banner",469.8
1,"July",2022,2021,"Children's Services","Grants and Subsidies","CSD Payments",0,"Ridgeview Psychiatric Hospital & Center",12838.98
1,"July",2022,2021,"Children's Services","Grants and Subsidies","CSD Payments",0,"Frontier Health Inc",126562.83
1,"July",2022,2021,"Children's Services","Prof Services Third Party","CSD Payments",0,"Florence Crittenton Agency",5886.87
1,"July",2022,2021,"Children's Services","Grants and Subsidies","CSD Payments",0,"Florence Crittenton Agency",196050.98
1,"July",2022,2021,"Children's Services","Supplies and Materials","CSD Payments",0,"Nashville Office Interiors",448.44
1,"July",2022,2021,"Children's Services","Grants and Subsidies","CSD Payments",0,"Monroe Harding Inc",172142.69
1,"July",2022,2021,"Children's Services","Grants and Subsidies","CSD Payments",0,"VANDERBILT UNIVERSITY",5000
1,"July",2022,2021,"Children's Services","Grants and Subsidies","CSD Payments",0,"Vanderbilt University",69318.7
1,"July",2022,2021,"Children's Services","Grants and Subsidies","CSD Payments",0,"Vanderbilt University Medical",207466.81
1,"July",2022,2021,"Children's Services","Grants and Subsidies","CSD Payments",0,"Martha OBryan Center Inc",4008.02
1,"July",2022,2021,"Children's Services","Grants and Subsidies","CSD Payments",0,"Childrens Advocacy Center of Sullivan C",10949.55
1,"July",2022,2021,"Children's Services","Prof Services Third Party","CSD Payments",0,"Miller & Miller Court Reporters",2148
1,"July",2022,2021,"Children's Services","Prof Services Third Party","CSD Payments",0,"Abraham Brietstein PhD & Assoc",675
1,"July",2022,2021,"Children's Services","Grants and Subsidies","CSD Payments",0,"Abraham Brietstein PhD & Assoc",4725
1,"July",2022,2021,"Children's Services","Grants and Subsidies","CSD Payments",0,"Goodwill Homes Community Services, Inc",50378
1,"July",2022,2021,"Children's Services","Prof Services Third Party","CSD Payments",0,"The Daily News",55
1,"July",2022,2021,"Children's Services","Prof Services Third Party","CSD Payments",0,"The Daily News Publishing Co",605
1,"July",2022,2021,"Children's Services","Prof Services Third Party","CSD Payments",0,"Union City Daily Messenger",1018.88
1,"July",2022,2021,"Children's Services","Grants and Subsidies","CSD Payments",0,"Meritan Inc",458177.2
1,"July",2022,2021,"Children's Services","Grants and Subsidies","CSD Payments",0,"Catholic Charities Of Tennessee Inc",29600
1,"July",2022,2021,"Children's Services","Grants and Subsidies","CSD Payments",0,"The Family Center Inc",17226.85
1,"July",2022,2021,"Children's Services","Prof Services Third Party","CSD Payments",0,"Polk County Publishing Co Inc",304.5
1,"July",2022,2021,"Children's Services","Travel","CSD Payments",0,"Doubletree Hotel",192
1,"July",2022,2021,"Children's Services","Prof Services Third Party","CSD Payments",0,"RAMON CORDERO",1373
1,"July",2022,2021,"Children's Services","Prof Services Third Party","CSD Payments",0,"Matt E Miller Attorney at Law",1500
1,"July",2022,2021,"Health","Grants and Subsidies","Agency Vendor Report",0,"Baptist Memorial Hosp Tipton",342513.27
1,"July",2022,2021,"Health","Grants and Subsidies","Agency Vendor Report",0,"Regional One Health",389139.07
1,"July",2022,2021,"Health","Prof Services Third Party","Agency Vendor Report",0,"HCA Health Services Of TN",276.8
1,"July",2022,2021,"Health","Grants and Subsidies","Agency Vendor Report",0,"TriStar Centennial Med Ctr",259200
1,"July",2022,2021,"Health","Grants and Subsidies","Agency Vendor Report",0,"TriStar StoneCrest Med Ctr",388800
1,"July",2022,2021,"Health","Prof Services Third Party","Agency Vendor Report",0,"LeConte Medical Center",2570.79
1,"July",2022,2021,"Health","Grants and Subsidies","Agency Vendor Report",0,"LeConte Medical Center",58012.21
1,"July",2022,2021,"Health","Prof Services Third Party","Agency Vendor Report",0,"Diagnostic Imaging PC",865.95
1,"July",2022,2021,"Health","Supplies and Materials","Agency Vendor Report",0,"Garretts Drug Center",130
1,"July",2022,2021,"Health","Prof Services Third Party","Agency Vendor Report",0,"ASCENSION MEDICAL GROUP SAINT THOMAS",3666.71
1,"July",2022,2021,"Health","Prof Services Third Party","Agency Vendor Report",0,"Friends In Need Health Center Inc",2053.93
1,"July",2022,2021,"Health","Supplies and Materials","Agency Vendor Report",0,"Friends In Need Health Center Inc",505.5
1,"July",2022,2021,"Health","Grants and Subsidies","Agency Vendor Report",0,"Friends In Need Health Center Inc",5117.74
1,"July",2022,2021,"Health","Prof Services Third Party","Agency Vendor Report",0,"Baptist Memorial Medical Group Inc",244.05
1,"July",2022,2021,"Health","Prof Services Third Party","Agency Vendor Report",0,"Partners For Healing",582.2
1,"July",2022,2021,"Health","Prof Services Third Party","Agency Vendor Report",0,"Mid South Dental Center",690
1,"July",2022,2021,"Health","Supplies and Materials","Agency Vendor Report",0,"Vital Care Of Paris",285.75
1,"July",2022,2021,"Health","Prof Services Third Party","Agency Vendor Report",0,"Mcminn Medical Imaging Pc",715.24
1,"July",2022,2021,"Health","Prof Services Third Party","Agency Vendor Report",0,"Johnson City Eye Clinic",158.2
1,"July",2022,2021,"Health","Prof Services Third Party","Agency Vendor Report",0,"Baptist Mem Hosp Union City",235.2
1,"July",2022,2021,"Health","Prof Services Third Party","Agency Vendor Report",0,"Knoxville Pediatric Ophthalmology PLLC",485.12
1,"July",2022,2021,"Health","Prof Services Third Party","Agency Vendor Report",0,"Knoxville Comprehensvie Breast Center",3685.49
1,"July",2022,2021,"Health","Prof Services Third Party","Agency Vendor Report",0,"TriStar Skyline Med Ctr",123753.78
1,"July",2022,2021,"Health","Grants and Subsidies","Agency Vendor Report",0,"TriStar Skyline Med Ctr",257895.92
1,"July",2022,2021,"Education","Grants and Subsidies","Agency Vendor Report",0,"Trustee Henry County",698617.72
1,"July",2022,2021,"Education","Grants and Subsidies","Agency Vendor Report",0,"Trustee Hickman County",187857.85
1,"July",2022,2021,"Education","Grants and Subsidies","Agency Vendor Report",0,"Houston County Trustee",304202.84
1,"July",2022,2021,"Education","Grants and Subsidies","Agency Vendor Report",0,"Trustee Of Humphreys County",359314.95
1,"July",2022,2021,"Education","Grants and Subsidies","Agency Vendor Report",0,"Trustee Jackson County",354315.37
1,"July",2022,2021,"Education","Grants and Subsidies","Agency Vendor Report",0,"Jefferson County Trustee",866646.25
1,"July",2022,2021,"Education","Grants and Subsidies","Agency Vendor Report",0,"City Univ School for Boys Prep",34600
1,"July",2022,2021,"Education","Grants and Subsidies","Agency Vendor Report",0,"President & Fellows of Harvard",3919.8
1,"July",2022,2021,"Education","Grants and Subsidies","Agency Vendor Report",0,"SAVE THE CHILDREN FEDERATION INC",73405.33
1,"July",2022,2021,"Education","Grants and Subsidies","Agency Vendor Report",0,"Save the Children Federation Inc",70691.46
1,"July",2022,2021,"Education","Grants and Subsidies","Agency Vendor Report",0,"Vanderbilt University Medical Center",249605.62
1,"July",2022,2021,"Education","Supplies and Materials","Agency Vendor Report",0,"Sam Ash Music Corporation",389.5
1,"July",2022,2021,"Education","Supplies and Materials","Agency Vendor Report",0,"Barnes & Noble Booksellers",97.51
1,"July",2022,2021,"Education","Communications","Agency Vendor Report",0,"AT & T",48.35
1,"July",2022,2021,"Education","Communications","Agency Vendor Report",0,"A T & T",400.21
1,"July",2022,2021,"Education","Communications","Agency Vendor Report",0,"At & T Mobility",64.49
1,"July",2022,2021,"Education","Grants and Subsidies","Agency Vendor Report",0,"LEAD Public Schools Inc",449849.97
1,"July",2022,2021,"Education","Grants and Subsidies","Agency Vendor Report",0,"Kipp Nashville",53145.7
1,"July",2022,2021,"Education","Grants and Subsidies","Agency Vendor Report",0,"Kipp Academy Nashville",445499.68
1,"July",2022,2021,"Education","Data Processing","Agency Vendor Report",0,"RANDA Solutions",133145.12
1,"July",2022,2021,"Education","Grants and Subsidies","Agency Vendor Report",0,"Promise Academy Inc",26509.08
1,"July",2022,2021,"Education","Grants and Subsidies","Agency Vendor Report",0,"Boys And Girls Club Of Scott County",44612.81
1,"July",2022,2021,"Education","Supplies and Materials","Agency Vendor Report",0,"Ready Mix USA LLC",1455
1,"July",2022,2021,"Education","Grants and Subsidies","Agency Vendor Report",0,"Sharon Morency Bryant",810
1,"July",2022,2021,"Education","Data Processing","Agency Vendor Report",0,"SHI International Corp",117877.29
1,"July",2022,2021,"Education","Supplies and Materials","Agency Vendor Report",0,"Blast Intermediate Unit 17",99.45
1,"July",2022,2021,"Education","Grants and Subsidies","Agency Vendor Report",0,"Agape Child And Family Services Inc",71715
1,"July",2022,2021,"Education","Grants and Subsidies","Agency Vendor Report",0,"Tennessee Opportunity Programs Inc",1683.2
1,"July",2022,2021,"Education","Prof Services Third Party","Agency Vendor Report",0,"BLR",407
1,"July",2022,2021,"Education","Prof Services Third Party","Agency Vendor Report",0,"DALE D RUDOLPH",1050
1,"July",2022,2021,"Education","Supplies and Materials","Agency Vendor Report",0,"US Bank National Association",868.43
1,"July",2022,2021,"Education","Training","Agency Vendor Report",0,"US Bank National Association",1000
1,"July",2022,2021,"Education","Data Processing","Agency Vendor Report",0,"US Bank National Association",1050
1,"July",2022,2021,"Education","Supplies and Materials","Agency Vendor Report",0,"Overdrive Inc",100
1,"July",2022,2021,"Education","Supplies and Materials","Agency Vendor Report",0,"E3 Diagnostics Inc",355
1,"July",2022,2021,"Education","Prof Services Third Party","Agency Vendor Report",0,"Becker Professional Education",600
1,"July",2022,2021,"Education","Supplies and Materials","Agency Vendor Report",0,"Blick Art Materials",18.97
1,"July",2022,2021,"Education","Supplies and Materials","Agency Vendor Report",0,"Seedlings Braille Books For Children",5.5
1,"July",2022,2021,"Education","Supplies and Materials","Agency Vendor Report",0,"Demco Inc",465.84
1,"July",2022,2021,"Education","Supplies and Materials","Agency Vendor Report",0,"Oshkosh Correctional Institution",800
1,"July",2022,2021,"Education","Grants and Subsidies","Agency Vendor Report",0,"Porter Leath",2238.6
1,"July",2022,2021,"Agriculture","Grants and Subsidies","Agency Vendor Report",0,"James Trevor Cline",5376
1,"July",2022,2021,"Agriculture","Grants and Subsidies","Agency Vendor Report",0,"Bryan Keith Barton",9750
1,"July",2022,2021,"Agriculture","Grants and Subsidies","Agency Vendor Report",0,"Samuel Patrick Godwin",6000
1,"July",2022,2021,"Agriculture","Grants and Subsidies","Agency Vendor Report",0,"Joe W Shelby",3330
1,"July",2022,2021,"Agriculture","Grants and Subsidies","Agency Vendor Report",0,"Bradley Leighton Keele",1575
1,"July",2022,2021,"Agriculture","Grants and Subsidies","Agency Vendor Report",0,"Tyler Shayne Kreger",1600
1,"July",2022,2021,"Agriculture","Grants and Subsidies","Agency Vendor Report",0,"Joe Thomas Smothers",500
1,"July",2022,2021,"Agriculture","Grants and Subsidies","Agency Vendor Report",0,"Dickson Regional Livestock Ctr LLC",684
1,"July",2022,2021,"Agriculture","Supplies and Materials","Agency Vendor Report",0,"Allflex",29418
1,"July",2022,2021,"Agriculture","Grants and Subsidies","Agency Vendor Report",0,"Browning Livestock Market LLC",4000
1,"July",2022,2021,"Agriculture","Grants and Subsidies","Agency Vendor Report",0,"The Humane Society Of Washington County",1800
1,"July",2022,2021,"Agriculture","Grants and Subsidies","Agency Vendor Report",0,"Tn Jr Angus Asso",2036.6
1,"July",2022,2021,"Agriculture","Grants and Subsidies","Agency Vendor Report",0,"Kenlee Brett Rinkes",10000
1,"July",2022,2021,"Agriculture","Grants and Subsidies","Agency Vendor Report",0,"Shirley Ann Watson",785
1,"July",2022,2021,"Agriculture","Grants and Subsidies","Agency Vendor Report",0,"Robert Wade Mansfield",7719
1,"July",2022,2021,"Agriculture","Grants and Subsidies","Agency Vendor Report",0,"Jonathan Kyle Owen",8925
1,"July",2022,2021,"Agriculture","Grants and Subsidies","Agency Vendor Report",0,"Timothy Clyde Adams",5400
1,"July",2022,2021,"Agriculture","Grants and Subsidies","Agency Vendor Report",0,"James Richard Wall",5087
1,"July",2022,2021,"Agriculture","Prof Services Third Party","Agency Vendor Report",0,"Mary Alexandra Motlow Richman",62.98
1,"July",2022,2021,"Agriculture","Grants and Subsidies","Agency Vendor Report",0,"Russell O Pedigo",6000
1,"July",2022,2021,"Agriculture","Grants and Subsidies","Agency Vendor Report",0,"Stacy D Vise",7300
1,"July",2022,2021,"Agriculture","Grants and Subsidies","Agency Vendor Report",0,"Kelsey Burke Brantley",1800
1,"July",2022,2021,"Agriculture","Grants and Subsidies","Agency Vendor Report",0,"Greg Roy Mitchell",611
1,"July",2022,2021,"Agriculture","Grants and Subsidies","Agency Vendor Report",0,"Richard Alan Walton",474
1,"July",2022,2021,"Agriculture","Grants and Subsidies","Agency Vendor Report",0,"John Harold Dodson",10000
1,"July",2022,2021,"Agriculture","Grants and Subsidies","Agency Vendor Report",0,"Danny Floyd Hildreth",6450
1,"July",2022,2021,"Agriculture","Grants and Subsidies","Agency Vendor Report",0,"Milton Joe Ashburn",6000
1,"July",2022,2021,"Agriculture","Grants and Subsidies","Agency Vendor Report",0,"Patrick Kent Jenkins",6000
1,"July",2022,2021,"Agriculture","Grants and Subsidies","Agency Vendor Report",0,"Lyle Kent Mason",6000
1,"July",2022,2021,"Agriculture","Grants and Subsidies","Agency Vendor Report",0,"Gary Wayne Taylor",1800
1,"July",2022,2021,"Agriculture","Grants and Subsidies","Agency Vendor Report",0,"Samuel Ted Cox",6000
1,"July",2022,2021,"Agriculture","Grants and Subsidies","Agency Vendor Report",0,"JESSE L CUNNINGHAM",6000
1,"July",2022,2021,"Agriculture","Grants and Subsidies","Agency Vendor Report",0,"Dennis Rodger Gregory",5793
1,"July",2022,2021,"Agriculture","Grants and Subsidies","Agency Vendor Report",0,"Deanna Michelle Magar",2056
1,"July",2022,2021,"Agriculture","Grants and Subsidies","Agency Vendor Report",0,"Nathan Dennis",6000
1,"July",2022,2021,"Agriculture","Grants and Subsidies","Agency Vendor Report",0,"Bryant H Stark",6000
1,"July",2022,2021,"Agriculture","Grants and Subsidies","Agency Vendor Report",0,"Dolly Jane Barnes",3000
1,"July",2022,2021,"Agriculture","Grants and Subsidies","Agency Vendor Report",0,"Jonathan Michael Holland",3900
1,"July",2022,2021,"Agriculture","Grants and Subsidies","Agency Vendor Report",0,"EDMOND S MARTIN",1800
1,"July",2022,2021,"Agriculture","Grants and Subsidies","Agency Vendor Report",0,"Tennessee Association of Farmers Markets",5468
1,"July",2022,2021,"Agriculture","Grants and Subsidies","Agency Vendor Report",0,"Jessee C Barnes",1685
1,"July",2022,2021,"Agriculture","Grants and Subsidies","Agency Vendor Report",0,"Matthew Hadley Barnett",1800
1,"July",2022,2021,"Agriculture","Grants and Subsidies","Agency Vendor Report",0,"Eric H Phillips",1800
1,"July",2022,2021,"Agriculture","Grants and Subsidies","Agency Vendor Report",0,"Ronald W Killen",6000
1,"July",2022,2021,"Agriculture","Grants and Subsidies","Agency Vendor Report",0,"Mickey Eugene Leighton",6000
1,"July",2022,2021,"Agriculture","Grants and Subsidies","Agency Vendor Report",0,"Willie Joe Freeman",10000
1,"July",2022,2021,"Agriculture","Grants and Subsidies","Agency Vendor Report",0,"Joseph Edwin Lowe",6000
1,"July",2022,2021,"Agriculture","Grants and Subsidies","Agency Vendor Report",0,"Darrell Joe Gillum Sr",1800
1,"July",2022,2021,"Agriculture","Grants and Subsidies","Agency Vendor Report",0,"Jeffrey Aaron Larimer",1000
1,"July",2022,2021,"Agriculture","Grants and Subsidies","Agency Vendor Report",0,"Safe Haven Animal Rescue Program",260
1,"July",2022,2021,"Agriculture","Grants and Subsidies","Agency Vendor Report",0,"Johnny A Ledford",6000
1,"July",2022,2021,"Agriculture","Grants and Subsidies","Agency Vendor Report",0,"Darrin R Barnes",480
1,"July",2022,2021,"Agriculture","Grants and Subsidies","Agency Vendor Report",0,"HT&L LLC",2810
1,"July",2022,2021,"Agriculture","Grants and Subsidies","Agency Vendor Report",0,"GARRICK MATTHEW HASKINS",6000
1,"July",2022,2021,"Agriculture","Grants and Subsidies","Agency Vendor Report",0,"Mary Halfacre",1355
1,"July",2022,2021,"Agriculture","Grants and Subsidies","Agency Vendor Report",0,"James C Fraysier",3780
1,"July",2022,2021,"Environment and Conservation","Supplies and Materials","Agency Vendor Report",0,"Abbotts Print Shop Inc",640
1,"July",2022,2021,"Environment and Conservation","Maint and Repairs","Agency Vendor Report",0,"Action Heating & Cooling Inc",2614.42
1,"July",2022,2021,"Environment and Conservation","Motor Vehicle Operation","Agency Vendor Report",0,"Mcminnville Lawn & Garden",23.45
1,"July",2022,2021,"Environment and Conservation","Rentals and Insurance","Agency Vendor Report",0,"Saint Mark Ame Zion Church",60
1,"July",2022,2021,"Environment and Conservation","Supplies and Materials","Agency Vendor Report",0,"Supreme Building Products",5570.33
1,"July",2022,2021,"Environment and Conservation","Motor Vehicle Operation","Agency Vendor Report",0,"Edgar Evins Marina",352.72
1,"July",2022,2021,"Environment and Conservation","Inventory","Agency Vendor Report",0,"Printing Partners",72
1,"July",2022,2021,"Environment and Conservation","Utilities and Fuel","Agency Vendor Report",0,"Morristown Utilities Commission",112.58
1,"July",2022,2021,"Environment and Conservation","Grants and Subsidies","Agency Vendor Report",0,"Columbia Academy",2850
1,"July",2022,2021,"Environment and Conservation","Communications","Agency Vendor Report",0,"Ritter Communcation",1548.37
1,"July",2022,2021,"Environment and Conservation","Utilities and Fuel","Agency Vendor Report",0,"Twin Lakes Telephone Cooperative Corp",158.45
1,"July",2022,2021,"Environment and Conservation","Communications","Agency Vendor Report",0,"Twin Lakes Telephone Cooperative Corp",3827.13
1,"July",2022,2021,"Agriculture","Grants and Subsidies","Agency Vendor Report",0,"Knox County Government",7868.58
1,"July",2022,2021,"Agriculture","Grants and Subsidies","Agency Vendor Report",0,"Knox County Health Dept",12561.53
1,"July",2022,2021,"Agriculture","Grants and Subsidies","Agency Vendor Report",0,"Southwest Human Resource Agency",8693.58
1,"July",2022,2021,"Agriculture","Utilities and Fuel","Agency Vendor Report",0,"Hornsby Water District",35.9
1,"July",2022,2021,"Agriculture","Prof Services Third Party","Agency Vendor Report",0,"JF GRIFFIN PUBLISHING LLC",9200
1,"July",2022,2021,"Agriculture","Grants and Subsidies","Agency Vendor Report",0,"Sullivan County-Soil Conservation Dist",2346.54
1,"July",2022,2021,"Agriculture","Grants and Subsidies","Agency Vendor Report",0,"Weakley County Scd",17355.63
1,"July",2022,2021,"Agriculture","Grants and Subsidies","Agency Vendor Report",0,"Hamblen Soil Conservation District",20849
1,"July",2022,2021,"Agriculture","Utilities and Fuel","Agency Vendor Report",0,"Bean Station Utility District",48.23
1,"July",2022,2021,"Agriculture","Grants and Subsidies","Agency Vendor Report",0,"City of Clarksville",2856.85
1,"July",2022,2021,"Agriculture","Grants and Subsidies","Agency Vendor Report",0,"City Of Milan",220.5
1,"July",2022,2021,"Agriculture","Utilities and Fuel","Agency Vendor Report",0,"Newbern Light, Gas & Water",46.23
1,"July",2022,2021,"Agriculture","Grants and Subsidies","Agency Vendor Report",0,"Grainger County Scd",59256
1,"July",2022,2021,"Agriculture","Grants and Subsidies","Agency Vendor Report",0,"Hardin County Animal Svs",1300
1,"July",2022,2021,"Agriculture","Prof Services Third Party","Agency Vendor Report",0,"Intertek USA Inc",170946
1,"July",2022,2021,"Agriculture","Grants and Subsidies","Agency Vendor Report",0,"Mountain Empire Animal Hospital",228
1,"July",2022,2021,"Mental Health and Substance Abuse Services","Supplies and Materials","Agency Vendor Report",0,"Henry Schein Inc",1150
1,"July",2022,2021,"Mental Health and Substance Abuse Services","Supplies and Materials","Agency Vendor Report",0,"Roche Diagnostic Corp",1728.88
1,"July",2022,2021,"Mental Health and Substance Abuse Services","Maint and Repairs","Agency Vendor Report",0,"Maynard Select LLC",9332.48
1,"July",2022,2021,"Mental Health and Substance Abuse Services","Communications","Agency Vendor Report",0,"Fisher Scientific",4.7
1,"July",2022,2021,"Mental Health and Substance Abuse Services","Supplies and Materials","Agency Vendor Report",0,"Sherwin Williams",814.66
1,"July",2022,2021,"Mental Health and Substance Abuse Services","Supplies and Materials","Agency Vendor Report",0,"Grainger",23873.98
1,"July",2022,2021,"Mental Health and Substance Abuse Services","Motor Vehicle Operation","Agency Vendor Report",0,"Grainger",203.56
1,"July",2022,2021,"Mental Health and Substance Abuse Services","Supplies and Materials","Agency Vendor Report",0,"W W Grainger Inc",31
1,"July",2022,2021,"Mental Health and Substance Abuse Services","Maint and Repairs","Agency Vendor Report",0,"KONE INC",1185
1,"July",2022,2021,"Mental Health and Substance Abuse Services","Supplies and Materials","Agency Vendor Report",0,"Medline Industries Inc",518.9
1,"July",2022,2021,"Mental Health and Substance Abuse Services","Utilities and Fuel","Agency Vendor Report",0,"Stericycle, Inc",60
1,"July",2022,2021,"Mental Health and Substance Abuse Services","Prof Services Third Party","Agency Vendor Report",0,"Shred-It USA LLC",1396.12
1,"July",2022,2021,"Mental Health and Substance Abuse Services","Data Processing","Agency Vendor Report",0,"Insight Public Sector Inc",391.4
1,"July",2022,2021,"Mental Health and Substance Abuse Services","Supplies and Materials","Agency Vendor Report",0,"Cdw Government Inc",207.87
1,"July",2022,2021,"Mental Health and Substance Abuse Services","Data Processing","Agency Vendor Report",0,"Cdw Government Inc",159.35
1,"July",2022,2021,"Mental Health and Substance Abuse Services","Maint and Repairs","Agency Vendor Report",0,"Ameripride Services Inc",6574.93
1,"July",2022,2021,"Mental Health and Substance Abuse Services","Prof Services Third Party","Agency Vendor Report",0,"Thomson Reuters - West",1523.78
1,"July",2022,2021,"Correction","Prof Services Third Party","Agency Vendor Report",0,"James Hill",875
1,"July",2022,2021,"Correction","Rentals and Insurance","Agency Vendor Report",0,"Michael Farrar",450
1,"July",2022,2021,"Correction","Communications","Agency Vendor Report",0,"Spectrum",1323.79
1,"July",2022,2021,"Correction","Equipment","Agency Vendor Report",0,"Hanel Storage Systems",38410.9
1,"July",2022,2021,"Correction","Supplies and Materials","Agency Vendor Report",0,"Smart Work Ethics",2400
1,"July",2022,2021,"Correction","Grants and Subsidies","Agency Vendor Report",0,"Hardeman County Correctional Facilities",6289083.13
1,"July",2022,2021,"Correction","Maint and Repairs","Agency Vendor Report",0,"GREGORY PEST SOLUTIONS",50
1,"July",2022,2021,"Mental Health and Substance Abuse Services","Maint and Repairs","Agency Vendor Report",0,"CS3 INC",5105.21
1,"July",2022,2021,"Mental Health and Substance Abuse Services","Maint and Repairs","Agency Vendor Report",0,"State Systems Inc",5925
1,"July",2022,2021,"Mental Health and Substance Abuse Services","Maint and Repairs","Agency Vendor Report",0,"Allstar Fire Protection Inc",3808
1,"July",2022,2021,"Mental Health and Substance Abuse Services","Maint and Repairs","Agency Vendor Report",0,"Aquaphase Inc",1073
1,"July",2022,2021,"Mental Health and Substance Abuse Services","Rentals and Insurance","Agency Vendor Report",0,"Nexair LLC",608.07
1,"July",2022,2021,"Mental Health and Substance Abuse Services","Maint and Repairs","Agency Vendor Report",0,"Certified Laboratories",1175
1,"July",2022,2021,"Mental Health and Substance Abuse Services","Maint and Repairs","Agency Vendor Report",0,"Alsco Inc",2281.5
1,"July",2022,2021,"Mental Health and Substance Abuse Services","Supplies and Materials","Agency Vendor Report",0,"VWR International",268.4
1,"July",2022,2021,"Mental Health and Substance Abuse Services","Maint and Repairs","Agency Vendor Report",0,"Aramark Uniform Services Inc",4900.09
1,"July",2022,2021,"Mental Health and Substance Abuse Services","Grants and Subsidies","Agency Vendor Report",0,"Dickson Police Department",7544.3
1,"July",2022,2021,"Mental Health and Substance Abuse Services","Grants and Subsidies","Agency Vendor Report",0,"Greene County",10099.82
1,"July",2022,2021,"Mental Health and Substance Abuse Services","Communications","Agency Vendor Report",0,"EPB Fiber Optics",107.42
1,"July",2022,2021,"Court System","Prof Services Third Party","Agency Vendor Report",0,"Tabitha Ruth Jolley",910.72
1,"July",2022,2021,"Court System","Prof Services Third Party","Agency Vendor Report",0,"William Joseph Bell",2040
1,"July",2022,2021,"Court System","Prof Services Third Party","Agency Vendor Report",0,"Melissa Lynn McGowan",4780
1,"July",2022,2021,"Court System","Prof Services Third Party","Agency Vendor Report",0,"Rogers Law Group",3425
1,"July",2022,2021,"Court System","Prof Services Third Party","Agency Vendor Report",0,"MICHELLE BREEDING",1165
1,"July",2022,2021,"Court System","Prof Services Third Party","Agency Vendor Report",0,"Kelly Ann Wojciechowski",8263
1,"July",2022,2021,"Court System","Prof Services Third Party","Agency Vendor Report",0,"GEORGE EDWARD SAMUEL PETTIGREW",5575
1,"July",2022,2021,"Court System","Prof Services Third Party","Agency Vendor Report",0,"Rebecca S Montgomery Attorney at Law",600
1,"July",2022,2021,"Court System","Prof Services Third Party","Agency Vendor Report",0,"Lila Kathleen Mitchell",680
1,"July",2022,2021,"Court System","Data Processing","Agency Vendor Report",0,"Main Street Connections LLC",800
1,"July",2022,2021,"Court System","Prof Services Third Party","Agency Vendor Report",0,"Jordan Chandler Long",5245
1,"July",2022,2021,"Court System","Prof Services Third Party","Agency Vendor Report",0,"Law Office of Keith A Pope",10092
1,"July",2022,2021,"Court System","Prof Services Third Party","Agency Vendor Report",0,"Lena Dorothy Beal",1605.2
1,"July",2022,2021,"Court System","Prof Services Third Party","Agency Vendor Report",0,"Brandy Spurgin-Floyd",3079.77
1,"July",2022,2021,"Court System","Prof Services Third Party","Agency Vendor Report",0,"Agente LLC",5566.6
1,"July",2022,2021,"Court System","Prof Services Third Party","Agency Vendor Report",0,"Kimberlee A Waterhouse",485
1,"July",2022,2021,"Court System","Prof Services Third Party","Agency Vendor Report",0,"Law Office of Edward D Hastings",3645
1,"July",2022,2021,"Court System","Prof Services Third Party","Agency Vendor Report",0,"Andrew Pate Atty",2000
1,"July",2022,2021,"Court System","Prof Services Third Party","Agency Vendor Report",0,"Alan Robert Moore",1890
1,"July",2022,2021,"Court System","Rentals and Insurance","Agency Vendor Report",0,"Enterprise Holdings Inc",392.02
1,"July",2022,2021,"Court System","Prof Services Third Party","Agency Vendor Report",0,"Jonathan Jay Cheatwood",3215.44
1,"July",2022,2021,"Court System","Prof Services Third Party","Agency Vendor Report",0,"Leslie McAnally",1586.3
1,"July",2022,2021,"Court System","Prof Services Third Party","Agency Vendor Report",0,"David Samuel Barnette Jr Atty",3695
1,"July",2022,2021,"Court System","Prof Services Third Party","Agency Vendor Report",0,"Jacqueline Strong Moss",4368.75
1,"July",2022,2021,"Court System","Prof Services Third Party","Agency Vendor Report",0,"Jack A Leonard",775
1,"July",2022,2021,"Court System","Prof Services Third Party","Agency Vendor Report",0,"Nicholas Tuck McGregor",14010
1,"July",2022,2021,"Court System","Prof Services Third Party","Agency Vendor Report",0,"Gentry Arnoid & Mitchell PLLC",300
1,"July",2022,2021,"Court System","Prof Services Third Party","Agency Vendor Report",0,"Rex V Sparks Atty",6505
1,"July",2022,2021,"Court System","Prof Services Third Party","Agency Vendor Report",0,"Monika B Ridley",2894.76
1,"July",2022,2021,"Court System","Prof Services Third Party","Agency Vendor Report",0,"Hal J Boyd",1135
1,"July",2022,2021,"Court System","Supplies and Materials","Agency Vendor Report",0,"Basics Corporation",65.35
1,"July",2022,2021,"Court System","Data Processing","Agency Vendor Report",0,"Basics Corporation",47.98
1,"July",2022,2021,"Court System","Prof Services Third Party","Agency Vendor Report",0,"Blackwatch Investigations and Mitigation",4112.82
1,"July",2022,2021,"Court System","Prof Services Third Party","Agency Vendor Report",0,"Jacob W Fendley",2510
1,"July",2022,2021,"Court System","Prof Services Third Party","Agency Vendor Report",0,"Melanie Totty Cagle Atty",400
1,"July",2022,2021,"Court System","Prof Services Third Party","Agency Vendor Report",0,"Multi Lingual Services",4199.8
1,"July",2022,2021,"Transportation","Grants and Subsidies","Agency Vendor Report",0,"Grundy County Trustee",2415.06
1,"July",2022,2021,"Transportation","Maint and Repairs","Agency Vendor Report",0,"Hamilton County Accounting Dept",11724.71
1,"July",2022,2021,"Transportation","Grants and Subsidies","Agency Vendor Report",0,"Hamilton County Trustee",3700
1,"July",2022,2021,"Transportation","Grants and Subsidies","Agency Vendor Report",0,"HARDEMAN COUNTY",200.24
1,"July",2022,2021,"Transportation","Prof Services Third Party","Agency Vendor Report",0,"Hardin County",227
1,"July",2022,2021,"Transportation","Grants and Subsidies","Agency Vendor Report",0,"Henderson County Trustee",8184.58
1,"July",2022,2021,"Transportation","Prof Services Third Party","Agency Vendor Report",0,"Henderson County Register Of Deeds",27
1,"July",2022,2021,"Transportation","Grants and Subsidies","Agency Vendor Report",0,"County Of Henry",4121.99
1,"July",2022,2021,"Transportation","Grants and Subsidies","Agency Vendor Report",0,"Humphreys County Trustee",2496
1,"July",2022,2021,"Transportation","Grants and Subsidies","Agency Vendor Report",0,"County Of Jackson",9829
1,"July",2022,2021,"Transportation","Maint and Repairs","Agency Vendor Report",0,"Jackson County Sheriff",9206.12
1,"July",2022,2021,"Transportation","Prof Services Third Party","Agency Vendor Report",0,"The Tennessean",32
1,"July",2022,2021,"Transportation","Supplies and Materials","Agency Vendor Report",0,"United Rentals Inc",999
1,"July",2022,2021,"Transportation","Motor Vehicle Operation","Agency Vendor Report",0,"Stribling Equipment LLC",2536.7
1,"July",2022,2021,"Transportation","Prof Services Third Party","Agency Vendor Report",0,"Gartner Inc",90500
1,"July",2022,2021,"Transportation","Motor Vehicle Operation","Agency Vendor Report",0,"TruckPro LLC",4474.32
1,"July",2022,2021,"Transportation","Motor Vehicle Operation","Agency Vendor Report",0,"Kings Auto Parts",36.37
1,"July",2022,2021,"Transportation","Supplies and Materials","Agency Vendor Report",0,"B & H Photo & Video",611.67
1,"July",2022,2021,"Transportation","Prof Services Third Party","Agency Vendor Report",0,"WSP USA Inc",352959.26
1,"July",2022,2021,"Transportation","Supplies and Materials","Agency Vendor Report",0,"Best Plumbing Specialties Inc",460.47
1,"July",2022,2021,"Transportation","Prof Services Third Party","Agency Vendor Report",0,"Stantec Consulting Services Inc",299691.1
1,"July",2022,2021,"Transportation","Highway Construction","Agency Vendor Report",0,"Caudill Mowing, Inc",369361.77
1,"July",2022,2021,"Transportation","Communications","Agency Vendor Report",0,"AT&T",1100.7
1,"July",2022,2021,"Transportation","Communications","Agency Vendor Report",0,"AT & T",5003.05
1,"July",2022,2021,"Transportation","Rentals and Insurance","Agency Vendor Report",0,"Herc Rentals Inc",44313.81
1,"July",2022,2021,"Transportation","Motor Vehicle Operation","Agency Vendor Report",0,"Herc Rentals Inc",42.41
1,"July",2022,2021,"Transportation","Motor Vehicle Operation","Agency Vendor Report",0,"Saf-T-Enterprises",690
1,"July",2022,2021,"Transportation","Prof Services Third Party","Agency Vendor Report",0,"ELITE BRENTWOOD REPORTING SERV",2376.15
1,"July",2022,2021,"Transportation","Maint and Repairs","Agency Vendor Report",0,"Roto Rooter",850
1,"July",2022,2021,"Transportation","Motor Vehicle Operation","Agency Vendor Report",0,"G & R Hydralics,Llc",145
1,"July",2022,2021,"Transportation","Prof Services Third Party","Agency Vendor Report",0,"Pipkin & Associates Llc",11525
1,"July",2022,2021,"Court System","Prof Services Third Party","Agency Vendor Report",0,"Joseph Ryan Williams",3695
1,"July",2022,2021,"Court System","Prof Services Third Party","Agency Vendor Report",0,"Ragsdale Reporting Services",2280.16
1,"July",2022,2021,"Court System","Prof Services Third Party","Agency Vendor Report",0,"EK Law PC",1240
1,"July",2022,2021,"Transportation","Maint and Repairs","Agency Vendor Report",0,"Johnstone Supply of Knoxville",11.99
1,"July",2022,2021,"Transportation","Supplies and Materials","Agency Vendor Report",0,"Johnstone Supply of Knoxville",265.78
1,"July",2022,2021,"Transportation","Supplies and Materials","Agency Vendor Report",0,"Jen Hill Con Matls Of Tn & Ky Inc",9280
1,"July",2022,2021,"Transportation","Grants and Subsidies","Agency Vendor Report",0,"Winchester Airport Authority",138357.5
1,"July",2022,2021,"Transportation","Motor Vehicle Operation","Agency Vendor Report",0,"R.G.C.",598
1,"July",2022,2021,"Transportation","Maint and Repairs","Agency Vendor Report",0,"Grose Fire Protection Inc",352.61
1,"July",2022,2021,"Transportation","Motor Vehicle Operation","Agency Vendor Report",0,"Alexander Chevrolet Buick LLC",131.22
1,"July",2022,2021,"Transportation","Maint and Repairs","Agency Vendor Report",0,"Nerrens Floor To Ceiling 2",2663.28
1,"July",2022,2021,"Transportation","Supplies and Materials","Agency Vendor Report",0,"Yates & Sons Tile & Culvert",528.25
1,"July",2022,2021,"Transportation","Motor Vehicle Operation","Agency Vendor Report",0,"Cumberland International Truck",42948.22
1,"July",2022,2021,"Transportation","Motor Vehicle Operation","Agency Vendor Report",0,"CUMBERLAND INTERNATIONAL TRUCKS INC",852.97
1,"July",2022,2021,"Transportation","Prof Services Third Party","Agency Vendor Report",0,"Bowlby & Associates Inc",15207.59
1,"July",2022,2021,"Transportation","Motor Vehicle Operation","Agency Vendor Report",0,"Auto Zone Store 076",1159.98
1,"July",2022,2021,"Transportation","Supplies and Materials","Agency Vendor Report",0,"Wallys Restaurant",250
1,"July",2022,2021,"Transportation","Supplies and Materials","Agency Vendor Report",0,"B R Supply Inc",13.8
1,"July",2022,2021,"Transportation","Supplies and Materials","Agency Vendor Report",0,"OFFICE DEPOT LLC",9292.61
1,"July",2022,2021,"Transportation","Data Processing","Agency Vendor Report",0,"OFFICE DEPOT LLC",2289.03
1,"July",2022,2021,"Transportation","Supplies and Materials","Agency Vendor Report",0,"Office Depot Inc",1337.09
1,"July",2022,2021,"Transportation","Data Processing","Agency Vendor Report",0,"Office Depot Inc",155.57
1,"July",2022,2021,"Transportation","Supplies and Materials","Agency Vendor Report",0,"Crossville Cash Home Center Inc",1167.43
1,"July",2022,2021,"Transportation","Supplies and Materials","Agency Vendor Report",0,"Potters Furniture Showroom",159.06
1,"July",2022,2021,"Transportation","Utilities and Fuel","Agency Vendor Report",0,"Resource Authority In Sumner County",722.84
1,"July",2022,2021,"Transportation","Supplies and Materials","Agency Vendor Report",0,"BWB Of Tennessee Inc",8757.14
1,"July",2022,2021,"Transportation","Motor Vehicle Operation","Agency Vendor Report",0,"BWB Of Tennessee Inc",2245.18
1,"July",2022,2021,"Transportation","Motor Vehicle Operation","Agency Vendor Report",0,"Union City Parts Inc",58.91
1,"July",2022,2021,"Transportation","Rentals and Insurance","Agency Vendor Report",0,"All Brite Inc Signs & Rentals",355.2
1,"July",2022,2021,"Transportation","Motor Vehicle Operation","Agency Vendor Report",0,"Whites Cycle & Marine",879.6
1,"July",2022,2021,"Transportation","Motor Vehicle Operation","Agency Vendor Report",0,"B & M Auto Service",3151.04
1,"July",2022,2021,"Transportation","Grants and Subsidies","Agency Vendor Report",0,"East Tennessee Human Resource Agency Inc",813502.63
1,"July",2022,2021,"Transportation","Communications","Agency Vendor Report",0,"Kenny Pipe & Supply",36.17
1,"July",2022,2021,"Transportation","Supplies and Materials","Agency Vendor Report",0,"Kenny Pipe & Supply",84.51
1,"July",2022,2021,"Transportation","Supplies and Materials","Agency Vendor Report",0,"Lauderdale Lumber & Hdwe",164.49
1,"July",2022,2021,"Transportation","Motor Vehicle Operation","Agency Vendor Report",0,"Truck N Trailers Usa",175
1,"July",2022,2021,"Transportation","Supplies and Materials","Agency Vendor Report",0,"Isenhour Door Products Inc",43.14
1,"July",2022,2021,"Transportation","Motor Vehicle Operation","Agency Vendor Report",0,"Davids Commercial Tire Inc",1405.15
1,"July",2022,2021,"Transportation","Prof Services Third Party","Agency Vendor Report",0,"A2H Inc",1083.94
1,"July",2022,2021,"Transportation","Motor Vehicle Operation","Agency Vendor Report",0,"Porters Tire Stores Inc",3013.95
1,"July",2022,2021,"Transportation","Prof Services Third Party","Agency Vendor Report",0,"Roger Wayne Fish",6930
1,"July",2022,2021,"Transportation","Highway Construction","Agency Vendor Report",0,"Dement Construction Co LLC",5267352.61
1,"July",2022,2021,"Transportation","Communications","Agency Vendor Report",0,"Isco Industries Inc",150
1,"July",2022,2021,"Transportation","Supplies and Materials","Agency Vendor Report",0,"Isco Industries Inc",53218.47
1,"July",2022,2021,"Transportation","Prof Services Third Party","Agency Vendor Report",0,"Palmer Engineering Company",424280.83
1,"July",2022,2021,"Transportation","Prof Services Third Party","Agency Vendor Report",0,"Qk4 Inc",1730.16
1,"July",2022,2021,"Transportation","Motor Vehicle Operation","Agency Vendor Report",0,"Worldwide Equipment Inc",11126.6
1,"July",2022,2021,"Transportation","Equipment","Agency Vendor Report",0,"Worldwide Equipment Inc",1473500
1,"July",2022,2021,"Transportation","Highway Construction","Agency Vendor Report",0,"Harold Coffey Constr Co Inc",1304563.66
1,"July",2022,2021,"Transportation","Highway Construction","Agency Vendor Report",0,"Kay & Kay Contracting LLC",341443.15
1,"July",2022,2021,"Transportation","Supplies and Materials","Agency Vendor Report",0,"Mister Automotive Of Newport Inc",6967.34
1,"July",2022,2021,"Transportation","Motor Vehicle Operation","Agency Vendor Report",0,"Mister Automotive Of Newport Inc",2231.6
1,"July",2022,2021,"Transportation","Utilities and Fuel","Agency Vendor Report",0,"North Greene Utilities Inc",2100.01
1,"July",2022,2021,"Transportation","Motor Vehicle Operation","Agency Vendor Report",0,"Miracle Ford Inc",462.65
1,"July",2022,2021,"Transportation","Supplies and Materials","Agency Vendor Report",0,"Dcp & E Inc",1848.25
1,"July",2022,2021,"Transportation","Motor Vehicle Operation","Agency Vendor Report",0,"Reliable Glass & Paint Co Inc",411
1,"July",2022,2021,"Transportation","Equipment","Agency Vendor Report",0,"Mid South Equipment Co",7382.26
1,"July",2022,2021,"Transportation","Motor Vehicle Operation","Agency Vendor Report",0,"Heritage Automotive Center Inc",1199.15
1,"July",2022,2021,"Transportation","Grants and Subsidies","Agency Vendor Report",0,"Regional Transportation Authority",78716.13
1,"July",2022,2021,"Court System","Data Processing","Agency Vendor Report",0,"US Bank National Association",8441.49
1,"July",2022,2021,"Court System","Prof Services Third Party","Agency Vendor Report",0,"Mike J Urquhart Attorney",3242.35
1,"July",2022,2021,"Court System","Prof Services Third Party","Agency Vendor Report",0,"Omega Interpretations LLC",1356.02
1,"July",2022,2021,"Court System","Prof Services Third Party","Agency Vendor Report",0,"Deeshawn Peoples",3753.57
1,"July",2022,2021,"Court System","Prof Services Third Party","Agency Vendor Report",0,"Carlton L Ross",7555
1,"July",2022,2021,"Court System","Prof Services Third Party","Agency Vendor Report",0,"National Conference Of Commissioners On",63600
1,"July",2022,2021,"Wildlife Resources Agency","Maint and Repairs","Agency Vendor Report",0,"UPCHURCH PLUMBING INC",2722.41
1,"July",2022,2021,"Wildlife Resources Agency","Rentals and Insurance","Agency Vendor Report",0,"Sligo Resort and Marina",200
1,"July",2022,2021,"Wildlife Resources Agency","Communications","Agency Vendor Report",0,"Spectrum",84.99
1,"July",2022,2021,"Wildlife Resources Agency","Prof Services Third Party","Agency Vendor Report",0,"Kenneth Anchor PhD",4750
1,"July",2022,2021,"Wildlife Resources Agency","Rentals and Insurance","Agency Vendor Report",0,"German Creek Resort LLC",100
1,"July",2022,2021,"Wildlife Resources Agency","Maint and Repairs","Agency Vendor Report",0,"ROBERT E KOGER",9460
1,"July",2022,2021,"Wildlife Resources Agency","Custodial Funds Payments","Agency Vendor Report",0,"Dept Of Game And Inland Fisher",25660
1,"July",2022,2021,"Wildlife Resources Agency","Prof Services Third Party","Agency Vendor Report",0,"Alan Michael Neal",1000
1,"July",2022,2021,"Wildlife Resources Agency","Rentals and Insurance","Agency Vendor Report",0,"The Dandridge Point Marina",200
1,"July",2022,2021,"Wildlife Resources Agency","Communications","Agency Vendor Report",0,"Comcast Cable Communications Management",96.9
1,"July",2022,2021,"Transportation","Supplies and Materials","Agency Vendor Report",0,"Nutrien AG Solutions Inc",142
1,"July",2022,2021,"Transportation","Motor Vehicle Operation","Agency Vendor Report",0,"Nutrien AG Solutions Inc",750
1,"July",2022,2021,"Transportation","Grants and Subsidies","Agency Vendor Report",0,"Trustee Giles County",295208.56
1,"July",2022,2021,"Transportation","Maint and Repairs","Agency Vendor Report",0,"Geraldine R Eads",315
1,"July",2022,2021,"Transportation","Supplies and Materials","Agency Vendor Report",0,"Volunteer Service Company LLC",1772
1,"July",2022,2021,"Transportation","Motor Vehicle Operation","Agency Vendor Report",0,"Volunteer Service Company LLC",2770
1,"July",2022,2021,"Transportation","Communications","Agency Vendor Report",0,"DISTILL LLC",130
1,"July",2022,2021,"Transportation","Motor Vehicle Operation","Agency Vendor Report",0,"Duncan Family Automotive Group",3368.85
1,"July",2022,2021,"Transportation","Supplies and Materials","Agency Vendor Report",0,"Fowler Paving Co LLC",225
1,"July",2022,2021,"Transportation","Prof Services Third Party","Agency Vendor Report",0,"Claims Management Resources Inc",150783.09
1,"July",2022,2021,"Transportation","Motor Vehicle Operation","Agency Vendor Report",0,"Walkers Trailer Sales LLC",811.57
1,"July",2022,2021,"Transportation","Motor Vehicle Operation","Agency Vendor Report",0,"Lyons Ford LLC",1200.14
1,"July",2022,2021,"Transportation","Supplies and Materials","Agency Vendor Report",0,"Napa Of Winchester",1685.45
1,"July",2022,2021,"Transportation","Motor Vehicle Operation","Agency Vendor Report",0,"Napa Of Winchester",1511.88
1,"July",2022,2021,"Transportation","Supplies and Materials","Agency Vendor Report",0,"QUALITY PAVEMENT REPAIR",570.15
1,"July",2022,2021,"Transportation","Maint and Repairs","Agency Vendor Report",0,"Jenkins Tower Services",1500
1,"July",2022,2021,"Transportation","Supplies and Materials","Agency Vendor Report",0,"HCI Supply Of Dyersburg",151.68
1,"July",2022,2021,"Transportation","Motor Vehicle Operation","Agency Vendor Report",0,"HCI Supply Of Dyersburg",447.86
1,"July",2022,2021,"Transportation","Motor Vehicle Operation","Agency Vendor Report",0,"Jackson Wholesale Hardware Co",170.17
1,"July",2022,2021,"Transportation","Motor Vehicle Operation","Agency Vendor Report",0,"ARB Enterprises Inc",530.65
1,"July",2022,2021,"Transportation","Supplies and Materials","Agency Vendor Report",0,"Collins Building Materials",219.5
1,"July",2022,2021,"Transportation","Motor Vehicle Operation","Agency Vendor Report",0,"Tri City Rubber & Gasket Co Inc",104.39
1,"July",2022,2021,"Transportation","Supplies and Materials","Agency Vendor Report",0,"Buddys Bar-B-Q Office",1332.3
1,"July",2022,2021,"Transportation","Utilities and Fuel","Agency Vendor Report",0,"Hillsville Utility District",576.05
1,"July",2022,2021,"Transportation","Motor Vehicle Operation","Agency Vendor Report",0,"Marshall Mize Ford",2664.55
1,"July",2022,2021,"Transportation","Motor Vehicle Operation","Agency Vendor Report",0,"Sharp Motor Company Inc",1421.48
1,"July",2022,2021,"Transportation","Supplies and Materials","Agency Vendor Report",0,"Affordable Ace Hardware, Inc",40.53
1,"July",2022,2021,"Mental Health and Substance Abuse Services","Grants and Subsidies","Agency Vendor Report",0,"Meridian Behavioral Health Services",15437
1,"July",2022,2021,"Mental Health and Substance Abuse Services","Grants and Subsidies","Agency Vendor Report",0,"Karat Place Inc",1407
1,"July",2022,2021,"Mental Health and Substance Abuse Services","Supplies and Materials","Agency Vendor Report",0,"Keefe Supply Company",17.8
1,"July",2022,2021,"Mental Health and Substance Abuse Services","Grants and Subsidies","Agency Vendor Report",0,"Educare",19001.29
1,"July",2022,2021,"Mental Health and Substance Abuse Services","Grants and Subsidies","Agency Vendor Report",0,"Align9",8289.75
1,"July",2022,2021,"Mental Health and Substance Abuse Services","Grants and Subsidies","Agency Vendor Report",0,"Cedar Recovery Center of Middle TN LLC",86469
1,"July",2022,2021,"Health","Prof Services Third Party","Agency Vendor Report",0,"Jasons Deli",34.87
1,"July",2022,2021,"Health","Prof Services Third Party","Agency Vendor Report",0,"D & S Diversified Technologies LLP",17640
1,"July",2022,2021,"Health","Prof Services Third Party","Agency Vendor Report",0,"Pathgroup Labs LLC",2470.53
1,"July",2022,2021,"Health","Prof Services Third Party","Agency Vendor Report",0,"University Pediatric Urology",373.32
1,"July",2022,2021,"Health","Prof Services Third Party","Agency Vendor Report",0,"Womens Diagnostic Group PLLC",7993.18
1,"July",2022,2021,"Health","Prof Services Third Party","Agency Vendor Report",0,"Eyecare Plus HH PLLC",494.1
1,"July",2022,2021,"Health","Supplies and Materials","Agency Vendor Report",0,"Marks Family Pharmacy",267.84
1,"July",2022,2021,"Health","Prof Services Third Party","Agency Vendor Report",0,"Aegis Sciences Corporation",179040
1,"July",2022,2021,"Health","Prof Services Third Party","Agency Vendor Report",0,"Laboratory Corporation Of America",20448.52
1,"July",2022,2021,"Health","Training","Agency Vendor Report",0,"University of Nevada Reno",300
1,"July",2022,2021,"Health","Data Processing","Agency Vendor Report",0,"Microsoft Corporation",23962
1,"July",2022,2021,"Health","Prof Services Third Party","Agency Vendor Report",0,"Maury Regional Medical Group Inc",565.79
1,"July",2022,2021,"Health","Supplies and Materials","Agency Vendor Report",0,"Union Avenue Dental Associates",500
1,"July",2022,2021,"Health","Prof Services Third Party","Agency Vendor Report",0,"University Surgical Associates",3886.7
1,"July",2022,2021,"Health","Grants and Subsidies","Agency Vendor Report",0,"Bailey Park Community Living Center",2187
1,"July",2022,2021,"Health","Grants and Subsidies","Agency Vendor Report",0,"Whitehaven Community Living Ctr",2551.5
1,"July",2022,2021,"Health","Grants and Subsidies","Agency Vendor Report",0,"Hillview Community Living Center",1822.5
1,"July",2022,2021,"Health","Grants and Subsidies","Agency Vendor Report",0,"Lauderdale Community Living Center",2187
1,"July",2022,2021,"Health","Prof Services Third Party","Agency Vendor Report",0,"Pace Analytical Center For Testing And I",3899
1,"July",2022,2021,"Health","Prof Services Third Party","Agency Vendor Report",0,"Blue Ridge Radiology, Pc",2059.2
1,"July",2022,2021,"Health","Prof Services Third Party","Agency Vendor Report",0,"Memphis Health Center",646.74
1,"July",2022,2021,"Health","Supplies and Materials","Agency Vendor Report",0,"The Prescription Shop",510
1,"July",2022,2021,"Health","Grants and Subsidies","Agency Vendor Report",0,"Parkridge East Hospital",129600
1,"July",2022,2021,"Health","Prof Services Third Party","Agency Vendor Report",0,"Abercrombie Radiologist Cons",3669.85
1,"July",2022,2021,"Health","Prof Services Third Party","Agency Vendor Report",0,"Diagnostic Imaging Consultants",432.71
1,"July",2022,2021,"Health","Supplies and Materials","Agency Vendor Report",0,"Williams Medical Supply Inc",566.96
1,"July",2022,2021,"Health","Prof Services Third Party","Agency Vendor Report",0,"BRISTOL SURGICAL ASSOCIATES PC",101.55
1,"July",2022,2021,"Health","Prof Services Third Party","Agency Vendor Report",0,"Blount Pathologists Pllc",36.3
1,"July",2022,2021,"Health","Prof Services Third Party","Agency Vendor Report",0,"TriStar Hendersonville Med Ctr",1086.2
1,"July",2022,2021,"Health","Grants and Subsidies","Agency Vendor Report",0,"Sycamore Shoals Hospital",10442.07
1,"July",2022,2021,"Health","Grants and Subsidies","Agency Vendor Report",0,"Chattanooga CARES Inc",95811.76
1,"July",2022,2021,"Health","Grants and Subsidies","Agency Vendor Report",0,"Centerstone Of Tennessee Inc",189793.66
1,"July",2022,2021,"Health","Grants and Subsidies","Agency Vendor Report",0,"Primary Care Center",52096.56
1,"July",2022,2021,"Health","Prof Services Third Party","Agency Vendor Report",0,"Cumberland Medical Center",1582.29
1,"July",2022,2021,"Health","Prof Services Third Party","Agency Vendor Report",0,"Memphis Physicians Radiological Group PC",601.8
1,"July",2022,2021,"Health","Prof Services Third Party","Agency Vendor Report",0,"Mid-South Imaging And Therapeutics PA",254.99
1,"July",2022,2021,"Health","Prof Services Third Party","Agency Vendor Report",0,"Campbell Clinic PC",150.44
1,"July",2022,2021,"Health","Prof Services Third Party","Agency Vendor Report",0,"Radiology & Imaging Associates Inc.",287.1
1,"July",2022,2021,"Health","Grants and Subsidies","Agency Vendor Report",0,"Exchange Club Holland J Stephens Ctr",170102.07
1,"July",2022,2021,"Health","Prof Services Third Party","Agency Vendor Report",0,"Associated Pathologists LLC",357576.38
1,"July",2022,2021,"Health","Supplies and Materials","Agency Vendor Report",0,"Crawfords Pharmacy",410
1,"July",2022,2021,"Health","Prof Services Third Party","Agency Vendor Report",0,"OrthoTennessee",2179.56
1,"July",2022,2021,"Health","Prof Services Third Party","Agency Vendor Report",0,"Middle TN Surgical Specialists PLLC",398.26
1,"July",2022,2021,"Health","Prof Services Third Party","Agency Vendor Report",0,"Professional Hearing Aid Center",418.51
1,"July",2022,2021,"Health","Grants and Subsidies","Agency Vendor Report",0,"Chota Community Health Service",8000
1,"July",2022,2021,"Health","Communications","Agency Vendor Report",0,"FedEx",12690.78
1,"July",2022,2021,"Health","Prof Services Third Party","Agency Vendor Report",0,"Memphis Radiological PC",977.79
1,"July",2022,2021,"Health","Prof Services Third Party","Agency Vendor Report",0,"Murfreesboro Medical Clinic PA",359.81
1,"July",2022,2021,"Health","Prof Services Third Party","Agency Vendor Report",0,"Jackson Radiology Associates Pa",2099.74
1,"July",2022,2021,"Health","Prof Services Third Party","Agency Vendor Report",0,"Advanced Diagnostic Imaging Pc",2564.32
1,"July",2022,2021,"Health","Prof Services Third Party","Agency Vendor Report",0,"UNIVERSITY PATHOLOGISTS PC",455.01
1,"July",2022,2021,"Health","Prof Services Third Party","Agency Vendor Report",0,"Fort Loudoun Medical Center",1175.71
1,"July",2022,2021,"Health","Prof Services Third Party","Agency Vendor Report",0,"Top Rehab Svcs P C",297
1,"July",2022,2021,"Health","Maint and Repairs","Agency Vendor Report",0,"Telemetrics",184
1,"July",2022,2021,"Health","Prof Services Third Party","Agency Vendor Report",0,"Trumbull Laboratories Llc",902.43
1,"July",2022,2021,"Health","Supplies and Materials","Agency Vendor Report",0,"B Js Trailers LLC",48080
1,"July",2022,2021,"Health","Prof Services Third Party","Agency Vendor Report",0,"C & C Enterprises Llc",265.19
1,"July",2022,2021,"Health","Prof Services Third Party","Agency Vendor Report",0,"Pca Southeast",1702.06
1,"July",2022,2021,"Finance and Administration","Grants and Subsidies","Agency Vendor Report",0,"Blount County Childrens Advocacy Center",24558.11
1,"July",2022,2021,"Finance and Administration","Grants and Subsidies","Agency Vendor Report",0,"Change Is Possible, Inc",21730.61
1,"July",2022,2021,"Finance and Administration","Grants and Subsidies","Agency Vendor Report",0,"Child Advocacy Ctr Of The 3rd Judicial",7138.85
1,"July",2022,2021,"Finance and Administration","Grants and Subsidies","Agency Vendor Report",0,"Nashville Conflict Resolution Center",38340.47
1,"July",2022,2021,"Finance and Administration","Grants and Subsidies","Agency Vendor Report",0,"Exchange Club-Carl Perkins Ctr",135643.9
1,"July",2022,2021,"Finance and Administration","Grants and Subsidies","Agency Vendor Report",0,"Child Advocacy Center Of The",76139.9
1,"July",2022,2021,"Finance and Administration","Grants and Subsidies","Agency Vendor Report",0,"Robertson County Child Advocacy Center",3458.33
1,"July",2022,2021,"Finance and Administration","Grants and Subsidies","Agency Vendor Report",0,"Juniors House Inc",8551.56
1,"July",2022,2021,"Finance and Administration","Grants and Subsidies","Agency Vendor Report",0,"Hope House Day Care Center Inc",5960.38
1,"July",2022,2021,"Finance and Administration","Grants and Subsidies","Agency Vendor Report",0,"Williamson County CASA Inc",2320.26
1,"July",2022,2021,"Finance and Administration","Grants and Subsidies","Agency Vendor Report",0,"Childrens Center Of The Cumberlands",9348.44
1,"July",2022,2021,"Finance and Administration","Grants and Subsidies","Agency Vendor Report",0,"YWCA and S&ME",41046.78
1,"July",2022,2021,"Finance and Administration","Prof Services Third Party","Agency Vendor Report",0,"Bridges for the Deaf and Hard of Hearing",520
1,"July",2022,2021,"Finance and Administration","Grants and Subsidies","Agency Vendor Report",0,"Family & Childrens Service",14342.59
1,"July",2022,2021,"Finance and Administration","Communications","Agency Vendor Report",0,"DTC Communications",1517.42
1,"July",2022,2021,"Finance and Administration","Communications","Agency Vendor Report",0,"North Central Telephone Cooperative Inc",834.9
1,"July",2022,2021,"Finance and Administration","Communications","Agency Vendor Report",0,"Twin Lakes Telephone Cooperative Corp",3702.23
1,"July",2022,2021,"Finance and Administration","Communications","Agency Vendor Report",0,"Bledsoe Telephone Cooperative",7087.8
1,"July",2022,2021,"Finance and Administration","Communications","Agency Vendor Report",0,"Ben Lomand Connect",881.9
1,"July",2022,2021,"Finance and Administration","Communications","Agency Vendor Report",0,"TEC",526.22
1,"July",2022,2021,"Finance and Administration","Grants and Subsidies","Agency Vendor Report",0,"HELEN ROSS MCNABB CENTER INC",257049.06
1,"July",2022,2021,"Finance and Administration","Communications","Agency Vendor Report",0,"Highland Telephone Cooperative Inc",1627.66
1,"July",2022,2021,"Finance and Administration","Grants and Subsidies","Agency Vendor Report",0,"FiftyForward",7136.88
1,"July",2022,2021,"Finance and Administration","Grants and Subsidies","Agency Vendor Report",0,"Frontier Health Inc",61495.5
1,"July",2022,2021,"Finance and Administration","Grants and Subsidies","Agency Vendor Report",0,"Scott Appalachian Industries",5423.56
1,"July",2022,2021,"Finance and Administration","Grants and Subsidies","Agency Vendor Report",0,"CASA INC",23484.97
1,"July",2022,2021,"Finance and Administration","Grants and Subsidies","Agency Vendor Report",0,"Volunteer Behavioral Health Care System",35218.72
1,"July",2022,2021,"Finance and Administration","Grants and Subsidies","Agency Vendor Report",0,"Appalachian RC & D Council",20116.11
1,"July",2022,2021,"Bureau of TennCare","Grants and Subsidies","Agency Vendor Report",0,"HAWKINS MEDICAL CTR",790
1,"July",2022,2021,"Bureau of TennCare","Data Processing","Agency Vendor Report",0,"Mythics Inc",95375.16
1,"July",2022,2021,"Bureau of TennCare","Prof Services Third Party","Agency Vendor Report",0,"GAINWELL TECHNOLOGIES LLC",3171471.89
